{"text_format":"1","workbook":"xlsx","n_sheets":22,"sheets":["Copyright","Cover","All Result","Instruction","Sheet1","FW metal nonplant","FW metal nonplant_WS","FW nonmetal nonplant","FW nonmetal nonplant_WS","FW metal plant","FW metal plant_WS","FW nonmetal plant","FW nonmetal plant_WS","MEW nonplant","MEW nonplant_WS","MEW plant","MEW plant_WS","Terrestrial Data QA","Terrestrial Quality","Sediment Data QA","Sediment Quality","Sheet2"],"not_rendered":{"charts":0,"images":0,"macros":1,"external_links":0,"defined_names":9,"comments":11,"pivot_tables":0},"unopened":[],"bounds":{"document_bytes":16777216,"sheet_cells":100000,"rows_first":2000,"rows_last":500,"rows_between":2000,"halvings":0,"cell_chars":16384,"cell_head_chars":4096},"cells_cut":0,"cells_raw":0,"read":"whole","date_system":"1900"}

{"sheet":"Copyright","index":0,"n_rows":0,"n_cols":0,"rows_kept":0,"cut":false,"hidden":false,"merged":[]}

{"sheet":"Cover","index":1,"n_rows":20,"n_cols":7,"rows_kept":20,"cut":false,"hidden":false,"merged":[[18,6,18,8],[14,6,14,8],[13,6,13,8],[4,4,4,10],[9,6,9,8],[12,6,12,8],[5,5,6,9]]}
[]
[]
[]
[]
[null,null,null,null,"Ecotoxicity Data Quality Assessment Method V2"]
[null,null,null,null,null,"To be used to assess the quality of data used for the Australian and New Zealand Guidelines for Fresh and Marine Water Quality (including sediment) and the Australian National Environment Protection (Assessment of Site Contamination) Measure"]
[]
[]
[]
[null,null,null,null,null,null,"Developed by "]
[]
[]
[null,null,null,null,null,null,"Zoe Zhang"]
[null,null,null,null,null,null,"   Dr. Michael Warne"]
[null,null,null,null,null,null,"Alison Vieritz "]
[]
[]
[]
[null,null,null,null,null,null,"Water Quality & Investigations "]
[null,null,null,null,null,"                 Department of Science,Information Technology and Innovation"]

{"sheet":"All Result","index":2,"n_rows":113,"n_cols":22,"rows_kept":113,"cut":false,"hidden":false,"merged":[]}
[null,"Chemical:","Ammonia"]
[null,null,null,null,null,null,null,null,null,null,"Un-ionised µg N/L (refer to Attachment G for further details on test pH, temperature, %un-ionised ammonia, total ammonia and normalised total ammonia values were reported and calculated)"]
[{"$f":"'FW nonmetal plant'!C2","v":"Category"},{"$f":"'FW nonmetal plant'!C3","v":"Paper and data unique identifier(eg. 1-1,10-150)"},{"$f":"'FW nonmetal plant'!C70","v":"Total score"},{"$f":"'FW nonmetal plant'!C72","v":"Quality Score"},"Comment ",{"$f":"'FW nonmetal plant'!G3","v":"Species (Scientific name)"},{"$f":"'FW nonmetal plant'!G4","v":"Lifestage"},{"$f":"'FW nonmetal plant'!G5","v":"Exposure duration"},{"$f":"'FW nonmetal plant'!G6","v":"Measure of toxicity"},{"$f":"'FW nonmetal plant'!G7","v":"Toxicity endpoint"},{"$f":"'FW nonmetal plant'!G8","v":"Toxicity value"},{"$f":"'FW nonmetal plant'!J2","v":"Taxonomic group"},{"$f":"'FW nonmetal plant'!J3","v":"Phylum"},{"$f":"'FW nonmetal plant'!J4","v":"Class"},{"$f":"'FW nonmetal plant'!J5","v":"Media"},{"$f":"'FW nonmetal plant'!J6","v":"Temperature "},{"$f":"'FW nonmetal plant'!J7","v":"Acute Or Chronic "},{"$f":"'FW nonmetal plant'!J8","v":"PH"},{"$f":"'FW metal plant'!J9","v":"Salinity/Conductivity"},{"$f":"'FW metal plant'!C4","v":"Citation"},{"$f":"'FW metal plant'!G2","v":"Citation No."}]
["Freshwater/non-metal/non- plant","220-1",75,0.82417582417582413,"All toxicity values are un-ionised ammonia as µg N/L","Notropis topeka","Adult","96 h","LC50","Mortality",990,"Fish","Chordata","Actinopterygii","Freshwater",24.6,"Acute ",7.85,"N.A.","Aldelman IR, Kusilek LI, Koehle J and Hess J (2009) Acute and chronic toxicity of ammonia, nitrite, and nitrate to the endangered Topeka shiner (Notropis topeka) and Fathead minnows (pimephales promelas). Environmental Toxicology and Chemistry, 28, 2216-2223.","220","Do not use: Chronic data available for this species"]
["Freshwater/non-metal/non- plant","220-2",75,0.82417582417582413,"","Notropis topeka","Juvenile","96 h","LC50","Mortality",1370,"Fish","Chordata","Actinopterygii","Freshwater",25,"Acute ",8.0500000000000007,"N.A.","Aldelman IR, Kusilek LI, Koehle J and Hess J (2009) Acute and chronic toxicity of ammonia, nitrite, and nitrate to the endangered Topeka shiner (Notropis topeka) and Fathead minnows (pimephales promelas). Environmental Toxicology and Chemistry, 28, 2216-2223.","220","Do not use: Chronic data available for this species"]
["Freshwater/non-metal/non- plant","220-3",75,0.82417582417582413,"","Notropis topeka","Juvenile","96 h","LC50","Mortality",1010,"Fish","Chordata","Actinopterygii","Freshwater",13.2,"Acute ",8.09,"N.A.","Aldelman IR, Kusilek LI, Koehle J and Hess J (2009) Acute and chronic toxicity of ammonia, nitrite, and nitrate to the endangered Topeka shiner (Notropis topeka) and Fathead minnows (pimephales promelas). Environmental Toxicology and Chemistry, 28, 2216-2223.","220","Do not use: Chronic data available for this species"]
["Freshwater/non-metal/non- plant","220-4",79,0.86813186813186816,"","Notropis topeka","Adult","30 d","NOEC","Survival",480,"Fish","Chordata","Actinopterygii","Freshwater",24.7,"Chronic",7.94,"N.A.","Aldelman IR, Kusilek LI, Koehle J and Hess J (2009) Acute and chronic toxicity of ammonia, nitrite, and nitrate to the endangered Topeka shiner (Notropis topeka) and Fathead minnows (pimephales promelas). Environmental Toxicology and Chemistry, 28, 2216-2223.","220"]
["Freshwater/non-metal/non- plant","220-5",79,0.86813186813186816,"","Notropis topeka","Juvenile","30 d","NOEC","Growth (specific growth rate)",230,"Fish","Chordata","Actinopterygii","Freshwater",12.4,"Chronic",8.07,"N.A.","Aldelman IR, Kusilek LI, Koehle J and Hess J (2009) Acute and chronic toxicity of ammonia, nitrite, and nitrate to the endangered Topeka shiner (Notropis topeka) and Fathead minnows (pimephales promelas). Environmental Toxicology and Chemistry, 28, 2216-2223.","220"]
["Freshwater/non-metal/non- plant","220-6",79,0.86813186813186816,"","Pimephales promelas","Juvenile","30 d","NOEC","Survival",780,"Fish","Chordata","Actinopterygii","Freshwater",24.7,"Chronic",7.92,"N.A.","Aldelman IR, Kusilek LI, Koehle J and Hess J (2009) Acute and chronic toxicity of ammonia, nitrite, and nitrate to the endangered Topeka shiner (Notropis topeka) and Fathead minnows (pimephales promelas). Environmental Toxicology and Chemistry, 28, 2216-2223.","220"]
["Freshwater/non-metal/non- plant","220-7",79,0.86813186813186816,"","Pimephales promelas","Embryo","32 d","NOEC","hatching to swimming fry",410,"Fish","Chordata","Actinopterygii","Freshwater",25.5,"Chronic",7.95,"N.A.","Aldelman IR, Kusilek LI, Koehle J and Hess J (2009) Acute and chronic toxicity of ammonia, nitrite, and nitrate to the endangered Topeka shiner (Notropis topeka) and Fathead minnows (pimephales promelas). Environmental Toxicology and Chemistry, 28, 2216-2223.","220"]
["Freshwater/non-metal/non- plant","221-1",69,0.75824175824175821,"","Hyalella azteca","Young (<1 week old)","10 weeks","NOEC","Survival",492,"Microcrustacean","Arthropoda","Malacostraca","Freshwater","25°C","Chronic",8.0399999999999991,"N.A.","Borgmann U (1994) Chronic toxicity of ammonia to the amphipod Hyalella azteca; importance of ammonium ion and water hardness. Environmental Pollution, 86, 329-335. ","221"]
["Freshwater/non-metal/non- plant","221-2",69,0.75824175824175821,"","Hyalella azteca","Young (<1 week old)","10 weeks","NOEC","Reproduction",146,"Microcrustacean","Arthropoda","Malacostraca","Freshwater","25°C","Chronic",8.0399999999999991,"N.A.","Borgmann U (1994) Chronic toxicity of ammonia to the amphipod Hyalella azteca; importance of ammonium ion and water hardness. Environmental Pollution, 86, 329-335. ","221"]
["Freshwater/non-metal/non- plant","221-3",69,0.75824175824175821,"","Hyalella azteca","Adult (4 weeks old)","6 weeks","NOEC","Survival",1126,"Microcrustacean","Arthropoda","Malacostraca","Freshwater","25°C","Chronic",8.0399999999999991,"N.A.","Borgmann U (1994) Chronic toxicity of ammonia to the amphipod Hyalella azteca; importance of ammonium ion and water hardness. Environmental Pollution, 86, 329-335. ","221"]
["Freshwater/non-metal/non- plant","221-4",69,0.75824175824175821,"","Hyalella azteca","Adult (4 weeks old)","6 weeks","NOEC","Reproduction",662,"Microcrustacean","Arthropoda","Malacostraca","Freshwater","25°C","Chronic",8.43,"N.A.","Borgmann U (1994) Chronic toxicity of ammonia to the amphipod Hyalella azteca; importance of ammonium ion and water hardness. Environmental Pollution, 86, 329-335. ","221"]
["Freshwater/non-metal/non- plant","221-5",74,0.81318681318681318,"","Hyalella azteca","Young (<1 week old)","4 weeks","LC50","Survival",17,"Microcrustacean","Arthropoda","Malacostraca","Freshwater","25°C","Chronic",7.4,"N.A.","Borgmann U (1994) Chronic toxicity of ammonia to the amphipod Hyalella azteca; importance of ammonium ion and water hardness. Environmental Pollution, 86, 329-335. ","221"]
["Freshwater/non-metal/non- plant","221-6",74,0.81318681318681318,"","Hyalella azteca","Young (<1 week old)","4 weeks","LC50","Survival",110,"Microcrustacean","Arthropoda","Malacostraca","Freshwater","25°C","Chronic",7.28,"N.A.","Borgmann U (1994) Chronic toxicity of ammonia to the amphipod Hyalella azteca; importance of ammonium ion and water hardness. Environmental Pollution, 86, 329-335. ","221"]
["Freshwater/non-metal/non- plant","221-7",74,0.81318681318681318,"","Hyalella azteca","Young (<1 week old)","4 weeks","LC50","Survival",1100,"Microcrustacean","Arthropoda","Malacostraca","Freshwater","25°C","Chronic",8.0399999999999991,"N.A.","Borgmann U (1994) Chronic toxicity of ammonia to the amphipod Hyalella azteca; importance of ammonium ion and water hardness. Environmental Pollution, 86, 329-335. ","221"]
["Freshwater/non-metal/non- plant","221-8",74,0.81318681318681318,"","Hyalella azteca","Young (<1 week old)","4 weeks","LC50","Survival",1500,"Microcrustacean","Arthropoda","Malacostraca","Freshwater","25°C","Chronic",8.43,"N.A.","Borgmann U (1994) Chronic toxicity of ammonia to the amphipod Hyalella azteca; importance of ammonium ion and water hardness. Environmental Pollution, 86, 329-335. ","221"]
["Freshwater/non-metal/non- plant","222-1",72,0.79120879120879117,"","Oncorhynchus mykiss","Eggs","~17 d","NOEC","Hatching success",">193","Fish","Chordata","Actinopterygii","Freshwater",11.4,"Chronic",7.75,"N.A.","Brinkman SF, Woodling JD, Vajda AM and Norris DO (2009) Chronic toxicity of ammonia to early life stage rainbow trout. Transactions of the American Fisheries Society, 138, 443-440. ","222","Do not use: > toxicity value and other data available"]
["Freshwater/non-metal/non- plant","222-2",72,0.79120879120879117,"","Oncorhynchus mykiss","Sac fry","~21 d","NOEC","Survival",">193","Fish","Chordata","Actinopterygii","Freshwater",11.4,"Chronic",7.75,"N.A.","Brinkman SF, Woodling JD, Vajda AM and Norris DO (2009) Chronic toxicity of ammonia to early life stage rainbow trout. Transactions of the American Fisheries Society, 138, 443-440. ","222","Do not use: > toxicity value and other data available"]
["Freshwater/non-metal/non- plant","222-3",82,0.90109890109890112,"","Oncorhynchus mykiss","Eggs","90 d","NOEC","Survival",85.6,"Fish","Chordata","Actinopterygii","Freshwater",11.4,"Chronic",7.75,"N.A.","Brinkman SF, Woodling JD, Vajda AM and Norris DO (2009) Chronic toxicity of ammonia to early life stage rainbow trout. Transactions of the American Fisheries Society, 138, 443-440. ","222"]
["Freshwater/non-metal/non- plant","222-4",82,0.90109890109890112,"","Oncorhynchus mykiss","Eggs","90 d","NOEC","Weight",85.6,"Fish","Chordata","Actinopterygii","Freshwater",11.4,"Chronic",7.75,"N.A.","Brinkman SF, Woodling JD, Vajda AM and Norris DO (2009) Chronic toxicity of ammonia to early life stage rainbow trout. Transactions of the American Fisheries Society, 138, 443-440. ","222"]
["Freshwater/non-metal/non- plant","222-5",82,0.90109890109890112,"","Oncorhynchus mykiss","Eggs","90 d","NOEC","Length",85.6,"Fish","Chordata","Actinopterygii","Freshwater",11.4,"Chronic",7.75,"N.A.","Brinkman SF, Woodling JD, Vajda AM and Norris DO (2009) Chronic toxicity of ammonia to early life stage rainbow trout. Transactions of the American Fisheries Society, 138, 443-440. ","222"]
["Freshwater/non-metal/non- plant","222-6",87,0.95604395604395609,"","Oncorhynchus mykiss","Eggs","90 d","NOEC","Condition factor (K)",">193","Fish","Chordata","Actinopterygii","Freshwater",11.4,"Chronic",7.75,"N.A.","Brinkman SF, Woodling JD, Vajda AM and Norris DO (2009) Chronic toxicity of ammonia to early life stage rainbow trout. Transactions of the American Fisheries Society, 138, 443-440. ","222","Do not use: > toxicity value and other data available"]
["Freshwater/non-metal/non- plant","222-7",87,0.95604395604395609,"","Oncorhynchus mykiss","Eggs","90 d","NOEC","Biomass",85.6,"Fish","Chordata","Actinopterygii","Freshwater",11.4,"Chronic",7.75,"N.A.","Brinkman SF, Woodling JD, Vajda AM and Norris DO (2009) Chronic toxicity of ammonia to early life stage rainbow trout. Transactions of the American Fisheries Society, 138, 443-440. ","222"]
["Freshwater/non-metal/non- plant","223-2",82,0.90109890109890112,"","Pimephales promelas","Young (4-d post-hatch)","14 d","NOEC","Mortality",310,"Fish","Chordata","Actinopterygii","Freshwater",20,"Acute ",8.24,"N.A.","Fairchild JF, Allert, A.L., Sappington, L.C. and Waddel B. (2005).Chronic toxicity of un-ionized ammonia to early life-stages of endangered Colorada Pikeminnow (Ptychocheilus lucius) and Razorback Sucker (Xyrauchen texanus) compared to the surrogate fathead minnow (Pimephales promelas) (2005) Archives of Environmental Contamination and Toxicology, 49, 378-384.","223","Do not use: Chronic data available for this species"]
["Freshwater/non-metal/non- plant","223-1",82,0.90109890109890112,"","Pimephales promelas","Young (4-d post-hatch)","7 d","NOEC","Mortality",310,"Fish","Chordata","Actinopterygii","Freshwater",20,"Acute ",8.24,"N.A.","Fairchild JF, Allert, A.L., Sappington, L.C. and Waddel B. (2005).Chronic toxicity of un-ionized ammonia to early life-stages of endangered Colorada Pikeminnow (Ptychocheilus lucius) and Razorback Sucker (Xyrauchen texanus) compared to the surrogate fathead minnow (Pimephales promelas) (2005) Archives of Environmental Contamination and Toxicology, 49, 378-384.","223","Do not use: Chronic data available for this species"]
["Freshwater/non-metal/non- plant","223-3",82,0.90109890109890112,"","Pimephales promelas","Young (4-d post-hatch)","21 d","NOEC","Mortality",310,"Fish","Chordata","Actinopterygii","Freshwater",20,"Chronic",8.24,"N.A.","Fairchild JF, Allert, A.L., Sappington, L.C. and Waddel B. (2005).Chronic toxicity of un-ionized ammonia to early life-stages of endangered Colorada Pikeminnow (Ptychocheilus lucius) and Razorback Sucker (Xyrauchen texanus) compared to the surrogate fathead minnow (Pimephales promelas) (2005) Archives of Environmental Contamination and Toxicology, 49, 378-384.","223"]
["Freshwater/non-metal/non- plant","223-4",82,0.90109890109890112,"","Pimephales promelas","Young (4-d post-hatch)","28 d","NOEC","Mortality",310,"Fish","Chordata","Actinopterygii","Freshwater",20,"Chronic",8.24,"N.A.","Fairchild JF, Allert, A.L., Sappington, L.C. and Waddel B. (2005).Chronic toxicity of un-ionized ammonia to early life-stages of endangered Colorada Pikeminnow (Ptychocheilus lucius) and Razorback Sucker (Xyrauchen texanus) compared to the surrogate fathead minnow (Pimephales promelas) (2005) Archives of Environmental Contamination and Toxicology, 49, 378-384.","223"]
["Freshwater/non-metal/non- plant","223-5",87,0.95604395604395609,"","Pimephales promelas","Young (4-d post-hatch)","28 d","NOEC","Weight",930,"Fish","Chordata","Actinopterygii","Freshwater",20,"Chronic",8.24,"N.A.","Fairchild JF, Allert, A.L., Sappington, L.C. and Waddel B. (2005).Chronic toxicity of un-ionized ammonia to early life-stages of endangered Colorada Pikeminnow (Ptychocheilus lucius) and Razorback Sucker (Xyrauchen texanus) compared to the surrogate fathead minnow (Pimephales promelas) (2005) Archives of Environmental Contamination and Toxicology, 49, 378-384.","223"]
["Freshwater/non-metal/non- plant","223-6",82,0.90109890109890112,"","Pimephales promelas","Young (4-d post-hatch)","4 d","LC50","Mortality",870,"Fish","Chordata","Actinopterygii","Freshwater",20,"Acute ",8.24,"N.A.","Fairchild JF, Allert, A.L., Sappington, L.C. and Waddel B. (2005).Chronic toxicity of un-ionized ammonia to early life-stages of endangered Colorada Pikeminnow (Ptychocheilus lucius) and Razorback Sucker (Xyrauchen texanus) compared to the surrogate fathead minnow (Pimephales promelas) (2005) Archives of Environmental Contamination and Toxicology, 49, 378-384.","223","Do not use: Chronic data available for this species"]
["Freshwater/non-metal/non- plant","223-7",82,0.90109890109890112,"","Pimephales promelas","Young (4-d post-hatch)","7 d","LC50","Mortality",720,"Fish","Chordata","Actinopterygii","Freshwater",20,"Acute ",8.24,"N.A.","Fairchild JF, Allert, A.L., Sappington, L.C. and Waddel B. (2005).Chronic toxicity of un-ionized ammonia to early life-stages of endangered Colorada Pikeminnow (Ptychocheilus lucius) and Razorback Sucker (Xyrauchen texanus) compared to the surrogate fathead minnow (Pimephales promelas) (2005) Archives of Environmental Contamination and Toxicology, 49, 378-384.","223","Do not use: Chronic data available for this species"]
["Freshwater/non-metal/non- plant","223-8",82,0.90109890109890112,"","Pimephales promelas","Young (4-d post-hatch)","14 d","LC50","Mortality",670,"Fish","Chordata","Actinopterygii","Freshwater",20,"Acute ",8.24,"N.A.","Fairchild JF, Allert, A.L., Sappington, L.C. and Waddel B. (2005).Chronic toxicity of un-ionized ammonia to early life-stages of endangered Colorada Pikeminnow (Ptychocheilus lucius) and Razorback Sucker (Xyrauchen texanus) compared to the surrogate fathead minnow (Pimephales promelas) (2005) Archives of Environmental Contamination and Toxicology, 49, 378-384.","223","Do not use: Chronic data available for this species"]
["Freshwater/non-metal/non- plant","223-9",82,0.90109890109890112,"","Pimephales promelas","Young (4-d post-hatch)","21 d","LC50","Mortality",690,"Fish","Chordata","Actinopterygii","Freshwater",20,"Chronic",8.24,"N.A.","Fairchild JF, Allert, A.L., Sappington, L.C. and Waddel B. (2005).Chronic toxicity of un-ionized ammonia to early life-stages of endangered Colorada Pikeminnow (Ptychocheilus lucius) and Razorback Sucker (Xyrauchen texanus) compared to the surrogate fathead minnow (Pimephales promelas) (2005) Archives of Environmental Contamination and Toxicology, 49, 378-384.","223"]
["Freshwater/non-metal/non- plant","223-10",82,0.90109890109890112,"","Pimephales promelas","Young (4-d post-hatch)","28 d","LC50","Mortality",690,"Fish","Chordata","Actinopterygii","Freshwater",20,"Chronic",8.24,"N.A.","Fairchild JF, Allert, A.L., Sappington, L.C. and Waddel B. (2005).Chronic toxicity of un-ionized ammonia to early life-stages of endangered Colorada Pikeminnow (Ptychocheilus lucius) and Razorback Sucker (Xyrauchen texanus) compared to the surrogate fathead minnow (Pimephales promelas) (2005) Archives of Environmental Contamination and Toxicology, 49, 378-384.","223"]
["Freshwater/non-metal/non- plant","223-11",82,0.90109890109890112,"","Pimephales promelas","Young (4-d post-hatch)","28 d","LC1","Mortality",130,"Fish","Chordata","Actinopterygii","Freshwater",20,"Chronic",8.24,"N.A.","Fairchild JF, Allert, A.L., Sappington, L.C. and Waddel B. (2005).Chronic toxicity of un-ionized ammonia to early life-stages of endangered Colorada Pikeminnow (Ptychocheilus lucius) and Razorback Sucker (Xyrauchen texanus) compared to the surrogate fathead minnow (Pimephales promelas) (2005) Archives of Environmental Contamination and Toxicology, 49, 378-384.","223"]
["Freshwater/non-metal/non- plant","223-12",82,0.90109890109890112,"","Pimephales promelas","Young (4-d post-hatch)","28 d","LC20","Mortality",420,"Fish","Chordata","Actinopterygii","Freshwater",20,"Chronic",8.24,"N.A.","Fairchild JF, Allert, A.L., Sappington, L.C. and Waddel B. (2005).Chronic toxicity of un-ionized ammonia to early life-stages of endangered Colorada Pikeminnow (Ptychocheilus lucius) and Razorback Sucker (Xyrauchen texanus) compared to the surrogate fathead minnow (Pimephales promelas) (2005) Archives of Environmental Contamination and Toxicology, 49, 378-384.","223"]
["Freshwater/non-metal/non- plant","223-13",82,0.90109890109890112,"","Ptychocheilus lucius","Young (8-d post hatch)","7 d","NOEC","Mortality",540,"Fish","Chordata","Actinopterygii","Freshwater",20,"Acute ",8.24,"N.A.","Fairchild JF, Allert, A.L., Sappington, L.C. and Waddel B. (2005).Chronic toxicity of un-ionized ammonia to early life-stages of endangered Colorada Pikeminnow (Ptychocheilus lucius) and Razorback Sucker (Xyrauchen texanus) compared to the surrogate fathead minnow (Pimephales promelas) (2005) Archives of Environmental Contamination and Toxicology, 49, 378-384.","223","Do not use: Chronic data available for this species"]
["Freshwater/non-metal/non- plant","223-14",82,0.90109890109890112,"","Ptychocheilus lucius","Young (8-d post hatch)","14 d","NOEC","Mortality",540,"Fish","Chordata","Actinopterygii","Freshwater",20,"Acute ",8.24,"N.A.","Fairchild JF, Allert, A.L., Sappington, L.C. and Waddel B. (2005).Chronic toxicity of un-ionized ammonia to early life-stages of endangered Colorada Pikeminnow (Ptychocheilus lucius) and Razorback Sucker (Xyrauchen texanus) compared to the surrogate fathead minnow (Pimephales promelas) (2005) Archives of Environmental Contamination and Toxicology, 49, 378-384.","223","Do not use: Chronic data available for this species"]
["Freshwater/non-metal/non- plant","223-15",82,0.90109890109890112,"","Ptychocheilus lucius","Young (8-d post hatch)","21 d","NOEC","Mortality",540,"Fish","Chordata","Actinopterygii","Freshwater",20,"Chronic",8.24,"N.A.","Fairchild JF, Allert, A.L., Sappington, L.C. and Waddel B. (2005).Chronic toxicity of un-ionized ammonia to early life-stages of endangered Colorada Pikeminnow (Ptychocheilus lucius) and Razorback Sucker (Xyrauchen texanus) compared to the surrogate fathead minnow (Pimephales promelas) (2005) Archives of Environmental Contamination and Toxicology, 49, 378-384.","223"]
["Freshwater/non-metal/non- plant","223-16",82,0.90109890109890112,"","Ptychocheilus lucius","Young (8-d post hatch)","28 d","NOEC","Mortality",540,"Fish","Chordata","Actinopterygii","Freshwater",20,"Chronic",8.24,"N.A.","Fairchild JF, Allert, A.L., Sappington, L.C. and Waddel B. (2005).Chronic toxicity of un-ionized ammonia to early life-stages of endangered Colorada Pikeminnow (Ptychocheilus lucius) and Razorback Sucker (Xyrauchen texanus) compared to the surrogate fathead minnow (Pimephales promelas) (2005) Archives of Environmental Contamination and Toxicology, 49, 378-384.","223"]
["Freshwater/non-metal/non- plant","223-17",87,0.95604395604395609,"","Ptychocheilus lucius","Young (8-d post hatch)","28 d","LC50","Weight",290,"Fish","Chordata","Actinopterygii","Freshwater",20,"Chronic",8.24,"N.A.","Fairchild JF, Allert, A.L., Sappington, L.C. and Waddel B. (2005).Chronic toxicity of un-ionized ammonia to early life-stages of endangered Colorada Pikeminnow (Ptychocheilus lucius) and Razorback Sucker (Xyrauchen texanus) compared to the surrogate fathead minnow (Pimephales promelas) (2005) Archives of Environmental Contamination and Toxicology, 49, 378-384.","223"]
["Freshwater/non-metal/non- plant","223-18",82,0.90109890109890112,"","Ptychocheilus lucius","Young (8-d post hatch)","4 d","LC50","Mortality",">920","Fish","Chordata","Actinopterygii","Freshwater",20,"Acute ",8.24,"N.A.","Fairchild JF, Allert, A.L., Sappington, L.C. and Waddel B. (2005).Chronic toxicity of un-ionized ammonia to early life-stages of endangered Colorada Pikeminnow (Ptychocheilus lucius) and Razorback Sucker (Xyrauchen texanus) compared to the surrogate fathead minnow (Pimephales promelas) (2005) Archives of Environmental Contamination and Toxicology, 49, 378-384.","223","Do not use: Chronic data available for this species"]
["Freshwater/non-metal/non- plant","223-19",82,0.90109890109890112,"","Ptychocheilus lucius","Young (8-d post hatch)","7 d","LC50","Mortality",">920","Fish","Chordata","Actinopterygii","Freshwater",20,"Acute ",8.24,"N.A.","Fairchild JF, Allert, A.L., Sappington, L.C. and Waddel B. (2005).Chronic toxicity of un-ionized ammonia to early life-stages of endangered Colorada Pikeminnow (Ptychocheilus lucius) and Razorback Sucker (Xyrauchen texanus) compared to the surrogate fathead minnow (Pimephales promelas) (2005) Archives of Environmental Contamination and Toxicology, 49, 378-384.","223","Do not use: Chronic data available for this species"]
["Freshwater/non-metal/non- plant","223-20",82,0.90109890109890112,"","Ptychocheilus lucius","Young (8-d post hatch)","14 d","LC50","Mortality",830,"Fish","Chordata","Actinopterygii","Freshwater",20,"Acute ",8.24,"N.A.","Fairchild JF, Allert, A.L., Sappington, L.C. and Waddel B. (2005).Chronic toxicity of un-ionized ammonia to early life-stages of endangered Colorada Pikeminnow (Ptychocheilus lucius) and Razorback Sucker (Xyrauchen texanus) compared to the surrogate fathead minnow (Pimephales promelas) (2005) Archives of Environmental Contamination and Toxicology, 49, 378-384.","223","Do not use: Chronic data available for this species"]
["Freshwater/non-metal/non- plant","223-21",82,0.90109890109890112,"","Ptychocheilus lucius","Young (8-d post hatch)","21 d","LC50","Mortality",750,"Fish","Chordata","Actinopterygii","Freshwater",20,"Chronic",8.24,"N.A.","Fairchild JF, Allert, A.L., Sappington, L.C. and Waddel B. (2005).Chronic toxicity of un-ionized ammonia to early life-stages of endangered Colorada Pikeminnow (Ptychocheilus lucius) and Razorback Sucker (Xyrauchen texanus) compared to the surrogate fathead minnow (Pimephales promelas) (2005) Archives of Environmental Contamination and Toxicology, 49, 378-384.","223"]
["Freshwater/non-metal/non- plant","223-22",82,0.90109890109890112,"","Ptychocheilus lucius","Young (8-d post hatch)","28 d","LC50","Mortality",760,"Fish","Chordata","Actinopterygii","Freshwater",20,"Chronic",8.24,"N.A.","Fairchild JF, Allert, A.L., Sappington, L.C. and Waddel B. (2005).Chronic toxicity of un-ionized ammonia to early life-stages of endangered Colorada Pikeminnow (Ptychocheilus lucius) and Razorback Sucker (Xyrauchen texanus) compared to the surrogate fathead minnow (Pimephales promelas) (2005) Archives of Environmental Contamination and Toxicology, 49, 378-384.","223"]
["Freshwater/non-metal/non- plant","223-23",82,0.90109890109890112,"","Ptychocheilus lucius","Young (8-d post hatch)","28 d","LC1","Mortality",380,"Fish","Chordata","Actinopterygii","Freshwater",20,"Chronic",8.24,"N.A.","Fairchild JF, Allert, A.L., Sappington, L.C. and Waddel B. (2005).Chronic toxicity of un-ionized ammonia to early life-stages of endangered Colorada Pikeminnow (Ptychocheilus lucius) and Razorback Sucker (Xyrauchen texanus) compared to the surrogate fathead minnow (Pimephales promelas) (2005) Archives of Environmental Contamination and Toxicology, 49, 378-384.","223"]
["Freshwater/non-metal/non- plant","223-24",82,0.90109890109890112,"","Ptychocheilus lucius","Young (8-d post hatch)","28 d","LC20","Mortality",610,"Fish","Chordata","Actinopterygii","Freshwater",20,"Chronic",8.24,"N.A.","Fairchild JF, Allert, A.L., Sappington, L.C. and Waddel B. (2005).Chronic toxicity of un-ionized ammonia to early life-stages of endangered Colorada Pikeminnow (Ptychocheilus lucius) and Razorback Sucker (Xyrauchen texanus) compared to the surrogate fathead minnow (Pimephales promelas) (2005) Archives of Environmental Contamination and Toxicology, 49, 378-384.","223"]
["Freshwater/non-metal/non- plant","223-25",82,0.90109890109890112,"","Xyrauchen texanus","Young (9-d post hatch)","7 d","NOEC","Mortality",">850","Fish","Chordata","Actinopterygii","Freshwater",20,"Acute ",8.24,"N.A.","Fairchild JF, Allert, A.L., Sappington, L.C. and Waddel B. (2005).Chronic toxicity of un-ionized ammonia to early life-stages of endangered Colorada Pikeminnow (Ptychocheilus lucius) and Razorback Sucker (Xyrauchen texanus) compared to the surrogate fathead minnow (Pimephales promelas) (2005) Archives of Environmental Contamination and Toxicology, 49, 378-384.","223","Do not use: Chronic data available for this species"]
["Freshwater/non-metal/non- plant","223-26",82,0.90109890109890112,"","Xyrauchen texanus","Young (9-d post hatch)","14 d","NOEC","Mortality",530,"Fish","Chordata","Actinopterygii","Freshwater",20,"Acute ",8.24,"N.A.","Fairchild JF, Allert, A.L., Sappington, L.C. and Waddel B. (2005).Chronic toxicity of un-ionized ammonia to early life-stages of endangered Colorada Pikeminnow (Ptychocheilus lucius) and Razorback Sucker (Xyrauchen texanus) compared to the surrogate fathead minnow (Pimephales promelas) (2005) Archives of Environmental Contamination and Toxicology, 49, 378-384.","223","Do not use: Chronic data available for this species"]
["Freshwater/non-metal/non- plant","223-27",82,0.90109890109890112,"","Xyrauchen texanus","Young (9-d post hatch)","21 d","NOEC","Mortality",530,"Fish","Chordata","Actinopterygii","Freshwater",20,"Chronic",8.24,"N.A.","Fairchild JF, Allert, A.L., Sappington, L.C. and Waddel B. (2005).Chronic toxicity of un-ionized ammonia to early life-stages of endangered Colorada Pikeminnow (Ptychocheilus lucius) and Razorback Sucker (Xyrauchen texanus) compared to the surrogate fathead minnow (Pimephales promelas) (2005) Archives of Environmental Contamination and Toxicology, 49, 378-384.","223"]
["Freshwater/non-metal/non- plant","223-28",82,0.90109890109890112,"","Xyrauchen texanus","Young (9-d post hatch)","28 d","NOEC","Mortality",530,"Fish","Chordata","Actinopterygii","Freshwater",20,"Chronic",8.24,"N.A.","Fairchild JF, Allert, A.L., Sappington, L.C. and Waddel B. (2005).Chronic toxicity of un-ionized ammonia to early life-stages of endangered Colorada Pikeminnow (Ptychocheilus lucius) and Razorback Sucker (Xyrauchen texanus) compared to the surrogate fathead minnow (Pimephales promelas) (2005) Archives of Environmental Contamination and Toxicology, 49, 378-384.","223"]
["Freshwater/non-metal/non- plant","223-29",87,0.95604395604395609,"","Xyrauchen texanus","Young (9-d post hatch)","28 d","NOEC","Weight",">530","Fish","Chordata","Actinopterygii","Freshwater",20,"Chronic",8.24,"N.A.","Fairchild JF, Allert, A.L., Sappington, L.C. and Waddel B. (2005).Chronic toxicity of un-ionized ammonia to early life-stages of endangered Colorada Pikeminnow (Ptychocheilus lucius) and Razorback Sucker (Xyrauchen texanus) compared to the surrogate fathead minnow (Pimephales promelas) (2005) Archives of Environmental Contamination and Toxicology, 49, 378-384.","223","Do not use: > toxicity value and other data available"]
["Freshwater/non-metal/non- plant","223-30",82,0.90109890109890112,"","Xyrauchen texanus","Young (9-d post hatch)","4 d","LC50","Mortality",">850","Fish","Chordata","Actinopterygii","Freshwater",20,"Acute ",8.24,"N.A.","Fairchild JF, Allert, A.L., Sappington, L.C. and Waddel B. (2005).Chronic toxicity of un-ionized ammonia to early life-stages of endangered Colorada Pikeminnow (Ptychocheilus lucius) and Razorback Sucker (Xyrauchen texanus) compared to the surrogate fathead minnow (Pimephales promelas) (2005) Archives of Environmental Contamination and Toxicology, 49, 378-384.","223","Do not use: Chronic data available for this species"]
["Freshwater/non-metal/non- plant","223-31",82,0.90109890109890112,"","Xyrauchen texanus","Young (9-d post hatch)","7 d","LC50","Mortality",">850","Fish","Chordata","Actinopterygii","Freshwater",20,"Acute ",8.24,"N.A.","Fairchild JF, Allert, A.L., Sappington, L.C. and Waddel B. (2005).Chronic toxicity of un-ionized ammonia to early life-stages of endangered Colorada Pikeminnow (Ptychocheilus lucius) and Razorback Sucker (Xyrauchen texanus) compared to the surrogate fathead minnow (Pimephales promelas) (2005) Archives of Environmental Contamination and Toxicology, 49, 378-384.","223","Do not use: Chronic data available for this species"]
["Freshwater/non-metal/non- plant","223-32",82,0.90109890109890112,"","Xyrauchen texanus","Young (9-d post hatch)","14 d","LC50","Mortality",">850","Fish","Chordata","Actinopterygii","Freshwater",20,"Acute ",8.24,"N.A.","Fairchild JF, Allert, A.L., Sappington, L.C. and Waddel B. (2005).Chronic toxicity of un-ionized ammonia to early life-stages of endangered Colorada Pikeminnow (Ptychocheilus lucius) and Razorback Sucker (Xyrauchen texanus) compared to the surrogate fathead minnow (Pimephales promelas) (2005) Archives of Environmental Contamination and Toxicology, 49, 378-384.","223","Do not use: Chronic data available for this species"]
["Freshwater/non-metal/non- plant","223-33",82,0.90109890109890112,"","Xyrauchen texanus","Young (9-d post hatch)","21 d","LC50","Mortality",670,"Fish","Chordata","Actinopterygii","Freshwater",20,"Chronic",8.24,"N.A.","Fairchild JF, Allert, A.L., Sappington, L.C. and Waddel B. (2005).Chronic toxicity of un-ionized ammonia to early life-stages of endangered Colorada Pikeminnow (Ptychocheilus lucius) and Razorback Sucker (Xyrauchen texanus) compared to the surrogate fathead minnow (Pimephales promelas) (2005) Archives of Environmental Contamination and Toxicology, 49, 378-384.","223"]
["Freshwater/non-metal/non- plant","223-34",82,0.90109890109890112,"","Xyrauchen texanus","Young (9-d post hatch)","28 d","LC50","Mortality",540,"Fish","Chordata","Actinopterygii","Freshwater",20,"Chronic",8.24,"N.A.","Fairchild JF, Allert, A.L., Sappington, L.C. and Waddel B. (2005).Chronic toxicity of un-ionized ammonia to early life-stages of endangered Colorada Pikeminnow (Ptychocheilus lucius) and Razorback Sucker (Xyrauchen texanus) compared to the surrogate fathead minnow (Pimephales promelas) (2005) Archives of Environmental Contamination and Toxicology, 49, 378-384.","223"]
["Freshwater/non-metal/non- plant","223-35",82,0.90109890109890112,"","Xyrauchen texanus","Young (9-d post hatch)","28 d","LC1","Mortality",250,"Fish","Chordata","Actinopterygii","Freshwater",20,"Chronic",8.24,"N.A.","Fairchild JF, Allert, A.L., Sappington, L.C. and Waddel B. (2005).Chronic toxicity of un-ionized ammonia to early life-stages of endangered Colorada Pikeminnow (Ptychocheilus lucius) and Razorback Sucker (Xyrauchen texanus) compared to the surrogate fathead minnow (Pimephales promelas) (2005) Archives of Environmental Contamination and Toxicology, 49, 378-384.","223"]
["Freshwater/non-metal/non- plant","223-36",82,0.90109890109890112,"","Xyrauchen texanus","Young (9-d post hatch)","28 d","LC20","Mortality",380,"Fish","Chordata","Actinopterygii","Freshwater",20,"Chronic",8.24,"N.A.","Fairchild JF, Allert, A.L., Sappington, L.C. and Waddel B. (2005).Chronic toxicity of un-ionized ammonia to early life-stages of endangered Colorada Pikeminnow (Ptychocheilus lucius) and Razorback Sucker (Xyrauchen texanus) compared to the surrogate fathead minnow (Pimephales promelas) (2005) Archives of Environmental Contamination and Toxicology, 49, 378-384.","223"]
["Freshwater/non-metal/non- plant","224-1",71,0.78021978021978022,"Data converted to unionised ammonia as µg N/L (some assumptions were made with this conversion)","Ceriodaphnia dubia (Aust isol)","Neonates (<24 h old)","48 h","LC50","Mortality",600,"Microcrustacean","Arthropoda","Branchiopoda","Freshwater",23,"Acute ","7.0-7.8","N.A.","Manning TM, Wilson SP and Chapman JC (1996) Toxicity of chlorine and other chlorinated compounds to some Australian aquatic organisms. Bulletin of Environmental Contamination and Toxicology, 56, 971-976.","224","Do not use: Chronic data available for this species"]
["Freshwater/non-metal/non- plant","224-2",62,0.68131868131868134,"Data converted to unionised ammonia as µg N/L (some assumptions were made with this conversion)","Ceriodaphnia dubia (Aust isol)","Neonates (<24 h old)","10 d","NOEC","Reproduction",">1579","Microcrustacean","Arthropoda","Branchiopoda","Freshwater",23,"Chronic","7.3-8.4","N.A.","Manning TM, Wilson SP and Chapman JC (1996) Toxicity of chlorine and other chlorinated compounds to some Australian aquatic organisms. Bulletin of Environmental Contamination and Toxicology, 56, 971-976.","224"]
["Freshwater/non-metal/non- plant","225-1",87,0.95604395604395609,"","Esox lucius","Eggs (fertilised)","15-20 d","NOEC","Hatching success",">432","Fish","Chordata","Actinopterygii","Freshwater",8.6,"Chronic",7.62,"N.A.","Harrahy EA, Barman M, Geis S, Hemming J, Karner D and Mager A (2004) Effects of ammonia on the early life stages of Northern Pike (Esox lucius) ","225","Do not use: > toxicity value and other data available"]
["Freshwater/non-metal/non- plant","225-2",83,0.91208791208791207,"","Esox lucius","Eggs (fertilised)","15-20 d","EC20","Hatching success",298,"Fish","Chordata","Actinopterygii","Freshwater",8.6,"Chronic",7.62,"N.A.","Harrahy EA, Barman M, Geis S, Hemming J, Karner D and Mager A (2004) Effects of ammonia on the early life stages of Northern Pike (Esox lucius) ","225"]
["Freshwater/non-metal/non- plant","225-3",87,0.95604395604395609,"","Esox lucius","Eggs (fertilised)","52 d","NOEC","Mortality",104,"Fish","Chordata","Actinopterygii","Freshwater",8.6,"Chronic",7.62,"N.A.","Harrahy EA, Barman M, Geis S, Hemming J, Karner D and Mager A (2004) Effects of ammonia on the early life stages of Northern Pike (Esox lucius) ","225"]
["Freshwater/non-metal/non- plant","225-4",82,0.90109890109890112,"","Esox lucius","Eggs (fertilised)","52 d","LC20","Mortality",142,"Fish","Chordata","Actinopterygii","Freshwater",8.6,"Chronic",7.62,"N.A.","Harrahy EA, Barman M, Geis S, Hemming J, Karner D and Mager A (2004) Effects of ammonia on the early life stages of Northern Pike (Esox lucius) ","225"]
["Freshwater/non-metal/non- plant","225-5",87,0.95604395604395609,"","Esox lucius","Eggs (fertilised)","52 d","NOEC","Weight",53,"Fish","Chordata","Actinopterygii","Freshwater",8.6,"Chronic",7.62,"N.A.","Harrahy EA, Barman M, Geis S, Hemming J, Karner D and Mager A (2004) Effects of ammonia on the early life stages of Northern Pike (Esox lucius) ","225"]
["Freshwater/non-metal/non- plant","225-6",87,0.95604395604395609,"","Esox lucius","Eggs (fertilised)","52 d","EC20","Weight",91,"Fish","Chordata","Actinopterygii","Freshwater",8.6,"Chronic",7.62,"N.A.","Harrahy EA, Barman M, Geis S, Hemming J, Karner D and Mager A (2004) Effects of ammonia on the early life stages of Northern Pike (Esox lucius) ","225"]
["Freshwater/non-metal/non- plant","225-7",87,0.95604395604395609,"","Esox lucius","Eggs (fertilised)","52 d","NOEC","Biomass",">432","Fish","Chordata","Actinopterygii","Freshwater",8.6,"Chronic",7.62,"N.A.","Harrahy EA, Barman M, Geis S, Hemming J, Karner D and Mager A (2004) Effects of ammonia on the early life stages of Northern Pike (Esox lucius) ","225","Do not use: > toxicity value and other data available"]
["Freshwater/non-metal/non- plant","225-8",87,0.95604395604395609,"","Esox lucius","Eggs (fertilised)","52 d","EC20","Biomass",92,"Fish","Chordata","Actinopterygii","Freshwater",8.6,"Chronic",7.62,"N.A.","Harrahy EA, Barman M, Geis S, Hemming J, Karner D and Mager A (2004) Effects of ammonia on the early life stages of Northern Pike (Esox lucius) ","225"]
["Freshwater/non-metal/non- plant","226-1",82,0.90109890109890112,"","Cyprinus carpio","Fry (larvae)","7 d","LC50","Mortality",1640,"Fish","Chordata","Actinopterygii","Freshwater",28,"Chronic",7.72,"N.A.","Hasan MR and MacIntosh DJ (1986) Acute toxicity of ammonia to common carp fry. Aquaculture, 54, 97-107.","226"]
["Freshwater/non-metal/non- plant","226-2",82,0.90109890109890112,"","Cyprinus carpio","Fry (larvae)","7 d","LC50","Mortality",1790,"Fish","Chordata","Actinopterygii","Freshwater",28,"Chronic",7.72,"N.A.","Hasan MR and MacIntosh DJ (1986) Acute toxicity of ammonia to common carp fry. Aquaculture, 54, 97-107.","226"]
["Freshwater/non-metal/non- plant","227-1",82,0.90109890109890112,"Fail QA Question but accept based on quality of study and chem analyses","Deltistes luxatus","Larvae (late stage)","30 d","LC50","Mortality",450,"Fish","Chordata","Actinopterygii","Freshwater",22.3,"Chronic",9.5,"N.A.","Meyer JS and Hansen JA (2002) Subchronic toxicity of low dissolved oxygen concentrations, elevated pH, and elevated ammonia concentrations to Lost River Suckers. Transactions of the American Fisheries Society, 131, 656-666.","227"]
["Freshwater/non-metal/non- plant","227-2",82,0.90109890109890112,"Fail QA Question but accept based on quality of study and chem analyses","Deltistes luxatus","Larvae (late stage)","30 d","NOEC","Mortality",370,"Fish","Chordata","Actinopterygii","Freshwater",22.3,"Chronic",9.5,"N.A.","Meyer JS and Hansen JA (2002) Subchronic toxicity of low dissolved oxygen concentrations, elevated pH, and elevated ammonia concentrations to Lost River Suckers. Transactions of the American Fisheries Society, 131, 656-666.","227"]
["Freshwater/non-metal/non- plant","228-1",79,0.86813186813186816,"","Pseudacris regilla","Embryo","10 d","LC50","Mortality",360,"Amphibian","Chordata","Amphibia","Freshwater",22,"Chronic",6.7,"N.A.","Schuytema GS and Nebeker AV (1999) Comparitive effects of ammonium and nitrate compounds on Pacific Treefrog and African Clawed Frog embryos. Archives of Environmental Contamination and Toxicology, 36, 200-206.","228"]
["Freshwater/non-metal/non- plant","228-2",79,0.86813186813186816,"","Pseudacris regilla","Embryo","10 d","LC50","Mortality",640,"Amphibian","Chordata","Amphibia","Freshwater",22,"Chronic",6.7,"N.A.","Schuytema GS and Nebeker AV (1999) Comparitive effects of ammonium and nitrate compounds on Pacific Treefrog and African Clawed Frog embryos. Archives of Environmental Contamination and Toxicology, 36, 200-206.","228"]
["Freshwater/non-metal/non- plant","228-3",79,0.86813186813186816,"","Pseudacris regilla","Embryo","10 d","LC50","Mortality",520,"Amphibian","Chordata","Amphibia","Freshwater",22,"Chronic",6.7,"N.A.","Schuytema GS and Nebeker AV (1999) Comparitive effects of ammonium and nitrate compounds on Pacific Treefrog and African Clawed Frog embryos. Archives of Environmental Contamination and Toxicology, 36, 200-206.","228"]
["Freshwater/non-metal/non- plant","228-4",84,0.92307692307692313,"","Pseudacris regilla","Embryo","10 d","NOAEL","Length and weight",30,"Amphibian","Chordata","Amphibia","Freshwater",22,"Chronic",6.7,"N.A.","Schuytema GS and Nebeker AV (1999) Comparitive effects of ammonium and nitrate compounds on Pacific Treefrog and African Clawed Frog embryos. Archives of Environmental Contamination and Toxicology, 36, 200-206.","228"]
["Freshwater/non-metal/non- plant","228-5",84,0.92307692307692313,"","Pseudacris regilla","Embryo","10 d","NOAEL","Length, weight and deformaties",230,"Amphibian","Chordata","Amphibia","Freshwater",22,"Chronic",6.7,"N.A.","Schuytema GS and Nebeker AV (1999) Comparitive effects of ammonium and nitrate compounds on Pacific Treefrog and African Clawed Frog embryos. Archives of Environmental Contamination and Toxicology, 36, 200-206.","228"]
["Freshwater/non-metal/non- plant","228-6",84,0.92307692307692313,"","Pseudacris regilla","Embryo","10 d","NOAEL","Weight",90,"Amphibian","Chordata","Amphibia","Freshwater",22,"Chronic",6.7,"N.A.","Schuytema GS and Nebeker AV (1999) Comparitive effects of ammonium and nitrate compounds on Pacific Treefrog and African Clawed Frog embryos. Archives of Environmental Contamination and Toxicology, 36, 200-206.","228"]
["Freshwater/non-metal/non- plant","228-7",79,0.86813186813186816,"","Pseudacris regilla","Embryo","10 d","NOAEL","Length",180,"Amphibian","Chordata","Amphibia","Freshwater",22,"Chronic",6.7,"N.A.","Schuytema GS and Nebeker AV (1999) Comparitive effects of ammonium and nitrate compounds on Pacific Treefrog and African Clawed Frog embryos. Archives of Environmental Contamination and Toxicology, 36, 200-206.","228"]
["Freshwater/non-metal/non- plant","229-1",77,0.84615384615384615,"No NOECs reported but NOEC could be estimated","Pseudacris regilla","Tadpole","10 d","LC50","Mortality",450,"Amphibian","Chordata","Amphibia","Freshwater",22,"Chronic","7.0-7.6","N.A.","Schuytema GS and Nebeker AV (1999) Comparitive toxicity of ammonium and nitrate compounds to Pacific Treefrog and African Clawed Frog tadpoles. Environmental Toxicology and Chemistry, 18, 2251-2257.","229"]
["Freshwater/non-metal/non- plant","229-2",77,0.84615384615384615,"No NOECs reported but NOEC could be estimated","Xenopus laevis","Tadpole","10 d","LC50","Mortality",280,"Amphibian","Chordata","Amphibia","Freshwater",22,"Chronic","6.7-7.6","N.A.","Schuytema GS and Nebeker AV (1999) Comparitive toxicity of ammonium and nitrate compounds to Pacific Treefrog and African Clawed Frog tadpoles. Environmental Toxicology and Chemistry, 18, 2251-2257.","229"]
["Freshwater/non-metal/non- plant","229-3",77,0.84615384615384615,"No NOECs reported but NOEC could be estimated","Pseudacris regilla","Tadpole","10 d","LC50","Mortality",880,"Amphibian","Chordata","Amphibia","Freshwater",22,"Chronic","7.0-7.6","N.A.","Schuytema GS and Nebeker AV (1999) Comparitive toxicity of ammonium and nitrate compounds to Pacific Treefrog and African Clawed Frog tadpoles. Environmental Toxicology and Chemistry, 18, 2251-2257.","229"]
["Freshwater/non-metal/non- plant","229-4",77,0.84615384615384615,"No NOECs reported but NOEC could be estimated","Xenopus laevis","Tadpole","10 d","LC50","Mortality",420,"Amphibian","Chordata","Amphibia","Freshwater",22,"Chronic","6.7-7.6","N.A.","Schuytema GS and Nebeker AV (1999) Comparitive toxicity of ammonium and nitrate compounds to Pacific Treefrog and African Clawed Frog tadpoles. Environmental Toxicology and Chemistry, 18, 2251-2257.","229"]
["Freshwater/non-metal/non- plant","229-5",77,0.84615384615384615,"No NOECs reported but NOEC could be estimated","Xenopus laevis","Tadpole","10 d","LC50","Mortality",330,"Amphibian","Chordata","Amphibia","Freshwater",22,"Chronic","6.7-7.6","N.A.","Schuytema GS and Nebeker AV (1999) Comparitive toxicity of ammonium and nitrate compounds to Pacific Treefrog and African Clawed Frog tadpoles. Environmental Toxicology and Chemistry, 18, 2251-2257.","229"]
["Freshwater/non-metal/non- plant","229-6",82,0.90109890109890112,"No NOECs reported but NOEC could be estimated","Pseudacris regilla","Tadpole","10 d","LC50","Length and weight",230,"Amphibian","Chordata","Amphibia","Freshwater",22,"Chronic","7.0-7.6","N.A.","Schuytema GS and Nebeker AV (1999) Comparitive toxicity of ammonium and nitrate compounds to Pacific Treefrog and African Clawed Frog tadpoles. Environmental Toxicology and Chemistry, 18, 2251-2257.","229"]
["Freshwater/non-metal/non- plant","229-7",82,0.90109890109890112,"","Xenopus laevis","Tadpole","10 d","NOAEL","Length and weight",260,"Amphibian","Chordata","Amphibia","Freshwater",22,"Chronic","6.7-7.6","N.A.","Schuytema GS and Nebeker AV (1999) Comparitive toxicity of ammonium and nitrate compounds to Pacific Treefrog and African Clawed Frog tadpoles. Environmental Toxicology and Chemistry, 18, 2251-2257.","229"]
["Freshwater/non-metal/non- plant","229-8",82,0.90109890109890112,"","Pseudacris regilla","Tadpole","10 d","NOAEL","Length",200,"Amphibian","Chordata","Amphibia","Freshwater",22,"Chronic","7.0-7.6","N.A.","Schuytema GS and Nebeker AV (1999) Comparitive toxicity of ammonium and nitrate compounds to Pacific Treefrog and African Clawed Frog tadpoles. Environmental Toxicology and Chemistry, 18, 2251-2257.","229"]
["Freshwater/non-metal/non- plant","229-9",82,0.90109890109890112,"","Pseudacris regilla","Tadpole","10 d","NOAEL","Weight",110,"Amphibian","Chordata","Amphibia","Freshwater",22,"Chronic","7.0-7.6","N.A.","Schuytema GS and Nebeker AV (1999) Comparitive toxicity of ammonium and nitrate compounds to Pacific Treefrog and African Clawed Frog tadpoles. Environmental Toxicology and Chemistry, 18, 2251-2257.","229"]
["Freshwater/non-metal/non- plant","229-10",82,0.90109890109890112,"","Xenopus laevis","Tadpole","10 d","NOAEL","Length and weight",910,"Amphibian","Chordata","Amphibia","Freshwater",22,"Chronic","6.7-7.6","N.A.","Schuytema GS and Nebeker AV (1999) Comparitive toxicity of ammonium and nitrate compounds to Pacific Treefrog and African Clawed Frog tadpoles. Environmental Toxicology and Chemistry, 18, 2251-2257.","229"]
["Freshwater/non-metal/non- plant","229-11",82,0.90109890109890112,"","Xenopus laevis","Tadpole","10 d","NOAEL","Length and weight",500,"Amphibian","Chordata","Amphibia","Freshwater",22,"Chronic","6.7-7.6","N.A.","Schuytema GS and Nebeker AV (1999) Comparitive toxicity of ammonium and nitrate compounds to Pacific Treefrog and African Clawed Frog tadpoles. Environmental Toxicology and Chemistry, 18, 2251-2257.","229"]
["Freshwater/non-metal/non- plant","230-1",49,0.53846153846153844,"","Oncorhynchus mykiss","Fertilised eggs (24 h)","72 d","LC50","Mortality",46,"Fish","Chordata","Actinopterygii","Freshwater",14.5,"Chronic",7.4,"N.A.","Calamari D, Marchetti R and Vailati G (1981) Effects of long-term exposure to ammonia on the developmental stages of Rainbow Trout (Salmo gairdneri Richardson) Rapports et proces-verbaux des reunions / Conseil International pour I'Exploration de la Mer, 178, 81-86.","230","Do not use: higher scoring studies available for this species"]
["Freshwater/non-metal/non- plant","230-2",45,0.49450549450549453,"","Oncorhynchus mykiss","Fertilised eggs (24 h)","72 d","LC15","Mortality",8.1999999999999993,"Fish","Chordata","Actinopterygii","Freshwater",14.5,"Chronic",7.4,"N.A.","Calamari D, Marchetti R and Vailati G (1981) Effects of long-term exposure to ammonia on the developmental stages of Rainbow Trout (Salmo gairdneri Richardson) Rapports et proces-verbaux des reunions / Conseil International pour I'Exploration de la Mer, 178, 81-86.","230","Do not use: fail quality scoring and higher quality studies available for this species"]
["Freshwater/non-metal/non- plant","231-1",75,0.82417582417582413,"Mesocosm study, therefore this score is not relevant, but it does suggest that the study is of high quality. The study also met the mesocosm data requirements in Warne et al., 2018","Deleatidium sp.","Mixed (natural population)","29 d","NOEC","Abundance (numbe of juveniles)",66,"Insect","Arthropoda","Insecta","Freshwater",16,"Chronic","8.3-8.4","N.A.","Hickey, C.W., Golding, L.A., Martin, M.L. and Croker, G.F. (1999) Chronic toxicity of ammonia to New Zealand freshwater invertebrates: a mesocosm study. Archives of Environmental Contamination and Toxicology, 37:338–351.","231"]
["Freshwater/non-metal/non- plant","232-1",74,0.81318681318681318,"","Hydra viridissima","mature (with bud)","96 h","EC10","Growth (specific growth rate)",1.1100000000000001,"Hydrozoa","Cnidaria","Hydrozoa","Freshwater",27,"Chronic",6,"N.A.","Mooney, T.J., Pease, C., Trenfield, M., van Dam, R. and Harford, A.J. (2018) Modeling the pH-ammonia toxicity relationship for Hydra viridissima in sof waters with low ionic concentrations. Environmental Toxicology and Chemsitry, 37:1189–1196.","232","Data not used in DGV: water quality has very low pH, conductivity and hardness "]
["Freshwater/non-metal/non- plant","232-2",74,0.81318681318681318,"","Hydra viridissima","mature (with bud)","96 h","EC10","Growth (specific growth rate)",2.59,"Hydrozoa","Cnidaria","Hydrozoa","Freshwater",27,"Chronic",6.6,"N.A.","Mooney, T.J., Pease, C., Trenfield, M., van Dam, R. and Harford, A.J. (2018) Modeling the pH-ammonia toxicity relationship for Hydra viridissima in sof waters with low ionic concentrations. Environmental Toxicology and Chemsitry, 37:1189–1196.","232","Data not used in DGV: water quality has very low pH, conductivity and hardness "]
["Freshwater/non-metal/non- plant","232-3",74,0.81318681318681318,"","Hydra viridissima","mature (with bud)","96 h","EC10","Growth (specific growth rate)",3.18,"Hydrozoa","Cnidaria","Hydrozoa","Freshwater",27,"Chronic",7,"N.A.","Mooney, T.J., Pease, C., Trenfield, M., van Dam, R. and Harford, A.J. (2018) Modeling the pH-ammonia toxicity relationship for Hydra viridissima in sof waters with low ionic concentrations. Environmental Toxicology and Chemsitry, 37:1189–1196.","232","Data not used in DGV: water quality has very low pH, conductivity and hardness "]
["Freshwater/non-metal/non- plant","232-4",74,0.81318681318681318,"","Hydra viridissima","mature (with bud)","96 h","EC10","Growth (specific growth rate)",3.64,"Hydrozoa","Cnidaria","Hydrozoa","Freshwater",27,"Chronic",7.5,"N.A.","Mooney, T.J., Pease, C., Trenfield, M., van Dam, R. and Harford, A.J. (2018) Modeling the pH-ammonia toxicity relationship for Hydra viridissima in sof waters with low ionic concentrations. Environmental Toxicology and Chemsitry, 37:1189–1196.","232","Data not used in DGV: water quality has very low pH, conductivity and hardness "]
["Freshwater/non-metal/non- plant","232-5",74,0.81318681318681318,"","Hydra viridissima","mature (with bud)","96 h","EC10","Growth (specific growth rate)",4.74,"Hydrozoa","Cnidaria","Hydrozoa","Freshwater",27,"Chronic",7.8,"N.A.","Mooney, T.J., Pease, C., Trenfield, M., van Dam, R. and Harford, A.J. (2018) Modeling the pH-ammonia toxicity relationship for Hydra viridissima in sof waters with low ionic concentrations. Environmental Toxicology and Chemsitry, 37:1189–1196.","232","Data not used in DGV: water quality has very low pH, conductivity and hardness "]
["Freshwater/non-metal/non- plant","232-6",74,0.81318681318681318,"","Hydra viridissima","mature (with bud)","96 h","EC10","Growth (specific growth rate)",9.11,"Hydrozoa","Cnidaria","Hydrozoa","Freshwater",27,"Chronic",8.1,"N.A.","Mooney, T.J., Pease, C., Trenfield, M., van Dam, R. and Harford, A.J. (2018) Modeling the pH-ammonia toxicity relationship for Hydra viridissima in sof waters with low ionic concentrations. Environmental Toxicology and Chemsitry, 37:1189–1196.","232","Data not used in DGV: water quality has very low pH, conductivity and hardness "]
["Freshwater/non-metal/plant","233-1",79,0.89772727272727271,"","Chlorella sp.","exponential growth","72 h","IC10","Population growth rate",63.6,"Microalga","Chlorophyta","Trebouxiophyceae","Freshwater",29,"Chronic",6.1,"N.A.","Mooney, T.J., Pease, C., Hogan, A.C., Trenfield, M., Kleinhenz, L.S., Humphrey, C., van Dam, R. and Harford, A.J. (2018-in press) Freshwater chronic ammonia toxicity: a tropical-to-temperate comparison. Environmental Toxicology and Chemsitry (in press).","233","Data not used in DGV: water quality has very low pH, conductivity and hardness "]
["Freshwater/non-metal/plant","233-2",79,0.89772727272727271,"","Lemna aequinoctialis","3 fronds","96 h","IC10","Growth (surface area)",12.9,"Macrophyte","Tracheophyta","Magnoliopsida","Freshwater",29,"Chronic",5.9,"N.A.","Mooney, T.J., Pease, C., Hogan, A.C., Trenfield, M., Kleinhenz, L.S., Humphrey, C., van Dam, R. and Harford, A.J. (2018-in press) Freshwater chronic ammonia toxicity: a tropical-to-temperate comparison. Environmental Toxicology and Chemsitry (in press).","233","Data not used in DGV: water quality has very low pH, conductivity and hardness "]
["Freshwater/non-metal/non- plant","233-3",82,0.90109890109890112,"","Hydra viridissima","mature (with bud)","96 h","EC10","Growth (specific growth rate)",1.87,"Hydrozoa","Cnidaria","Hydrozoa","Freshwater",27,"Chronic",6.2,"N.A.","Mooney, T.J., Pease, C., Hogan, A.C., Trenfield, M., Kleinhenz, L.S., Humphrey, C., van Dam, R. and Harford, A.J. (2018-in press) Freshwater chronic ammonia toxicity: a tropical-to-temperate comparison. Environmental Toxicology and Chemsitry (in press).","233","Data not used in DGV: water quality has very low pH, conductivity and hardness "]
["Freshwater/non-metal/non- plant","233-4",87,0.95604395604395609,"","Moinodaphnia macleayi","Neonate (<6 h)","120-144 h","EC10","Reproduction",18.2,"Microcrustacean","Arthropoda","Branchiopoda","Freshwater",27,"Chronic",6,"N.A.","Mooney, T.J., Pease, C., Hogan, A.C., Trenfield, M., Kleinhenz, L.S., Humphrey, C., van Dam, R. and Harford, A.J. (2018-in press) Freshwater chronic ammonia toxicity: a tropical-to-temperate comparison. Environmental Toxicology and Chemsitry (in press).","233","Data not used in DGV: water quality has very low pH, conductivity and hardness "]
["Freshwater/non-metal/non- plant","233-5",87,0.95604395604395609,null,"Amerianna cumingi","Adult ","4 day","EC10","Reproduction",16.7,"Invertebrate - snail","Mollusca","Gastropoda","Freshwater",30,"Chronic",6.1,"N.A.","Mooney, T.J., Pease, C., Hogan, A.C., Trenfield, M., Kleinhenz, L.S., Humphrey, C., van Dam, R. and Harford, A.J. (2018-in press) Freshwater chronic ammonia toxicity: a tropical-to-temperate comparison. Environmental Toxicology and Chemsitry (in press).","233","Data not used in DGV: water quality has very low pH, conductivity and hardness "]
["Freshwater/non-metal/non- plant","233-6",87,0.95604395604395609,"","Amerianna cumingi","Adult ","9 day","EC10","Reproduction",22.5,"Invertebrate - snail","Mollusca","Gastropoda","Freshwater",30,"Chronic",6.1,"N.A.","Mooney, T.J., Pease, C., Hogan, A.C., Trenfield, M., Kleinhenz, L.S., Humphrey, C., van Dam, R. and Harford, A.J. (2018-in press) Freshwater chronic ammonia toxicity: a tropical-to-temperate comparison. Environmental Toxicology and Chemsitry (in press).","233","Data not used in DGV: water quality has very low pH, conductivity and hardness "]
["Freshwater/non-metal/non- plant","233-7",87,0.95604395604395609,"","Amerianna cumingi","Adult ","14 d","EC10","Reproduction",26.2,"Invertebrate - snail","Mollusca","Gastropoda","Freshwater",30,"Chronic",6.1,"N.A.","Mooney, T.J., Pease, C., Hogan, A.C., Trenfield, M., Kleinhenz, L.S., Humphrey, C., van Dam, R. and Harford, A.J. (2018-in press) Freshwater chronic ammonia toxicity: a tropical-to-temperate comparison. Environmental Toxicology and Chemsitry (in press).","233","Data not used in DGV: water quality has very low pH, conductivity and hardness "]
["Freshwater/non-metal/non- plant","233-8",87,0.95604395604395609,"","Mogurnda mogurnda","Larvae","7 d","EC10","Growth (length)",4.5,"Fish","Chordata","Actinopterygii","Freshwater",27,"Chronic",6.1,"N.A.","Mooney, T.J., Pease, C., Hogan, A.C., Trenfield, M., Kleinhenz, L.S., Humphrey, C., van Dam, R. and Harford, A.J. (2018-in press) Freshwater chronic ammonia toxicity: a tropical-to-temperate comparison. Environmental Toxicology and Chemsitry (in press).","233","Data not used in DGV: water quality has very low pH, conductivity and hardness "]
["Freshwater/non-metal/non- plant","234-1",82,0.90109890109890112,"","Velesunio sp.","Juvenile","14 d","EC10","Growth",2.38,"macroinvertebrate","Mollusca","Bivalvia","Freshwater",27,"Chronic",6,"N.A.","Kleinhenz, L.S., Humphrey, C.L., Mooney, T.J., Trenfield, M., van Dam, R.A., Nugegoda, D. and Harford, A.J. (2018-submitted) Chronic toxicity to juveniles of tropical Australian freshwater mussels, (Velesunio spp.) using optimised toxicity test protocol. Environmental Toxicology and Chemsitry (submitted).","234","Data not used in DGV: water quality has very low pH, conductivity and hardness "]
["Freshwater/non-metal/non- plant","234-2",82,0.90109890109890112,"","Velesunio angasi","Juvenile","14 d","EC10","Growth",1.93,"macroinvertebrate","Mollusca","Bivalvia","Freshwater",27,"Chronic",6,"N.A.","Kleinhenz, L.S., Humphrey, C.L., Mooney, T.J., Trenfield, M., van Dam, R.A., Nugegoda, D. and Harford, A.J. (2018-submitted) Chronic toxicity to juveniles of tropical Australian freshwater mussels, (Velesunio spp.) using optimised toxicity test protocol. Environmental Toxicology and Chemsitry (submitted).","234","Data not used in DGV: water quality has very low pH, conductivity and hardness "]
["Freshwater/non-metal/non- plant","234-3",82,0.90109890109890112,"","Velesunio angasi","Juvenile","14 d","EC10","Growth",2.0099999999999998,"macroinvertebrate","Mollusca","Bivalvia","Freshwater",27,"Chronic",6,"N.A.","Kleinhenz, L.S., Humphrey, C.L., Mooney, T.J., Trenfield, M., van Dam, R.A., Nugegoda, D. and Harford, A.J. (2018-submitted) Chronic toxicity to juveniles of tropical Australian freshwater mussels, (Velesunio spp.) using optimised toxicity test protocol. Environmental Toxicology and Chemsitry (submitted).","234","Data not used in DGV: water quality has very low pH, conductivity and hardness "]

{"sheet":"Instruction","index":3,"n_rows":21,"n_cols":10,"rows_kept":21,"cut":false,"hidden":false,"merged":[[27,6,27,16],[14,6,14,7],[5,4,5,7]]}
[]
[]
[null,"Click here to see \"All Result\" -->","All Result"]
[]
[]
[null,null,null,null,"Freshwater "]
[]
[null,"Tabs contain questionaries -->           ","Freshwater/metal/nonplant",null,"Freshwater/non-metal/non-plant ",null,null,"Freshwater/metal/plant",null,"Freshwater/non-metal/plant"]
[]
[]
[]
[null,"Tabs contain score of paper and short answers to questions -->","Freshwater/metal/nonplant Worksheet",null,"Freshwater/non-metal/non-plant Worksheet",null,null,"Freshwater/metal/plant Worksheet",null,"Freshwater/non-metal/plant/ Worksheet"]
[]
[]
[null,null,"Marine ",null,null,null,"Terrestrial",null,null,"Sediment "]
[]
[null,"Tab contain questionaries -->","Marine or estuarine/non-plant",null,"Marine or estuarine/Plant",null,null,"Terrestrial Data QA",null,"Sediment Data QA"]
[]
[]
[]
[null,"Tab Contains all scores of paper --> ","Marine or estuarine/non-Plant Worksheet",null,"Marine or estuarine/Plant_Worksheet",null,null,"Terrestrial Quality",null,"Sediment Quality"]

{"sheet":"Sheet1","index":4,"n_rows":70,"n_cols":29,"rows_kept":70,"cut":false,"hidden":true,"merged":[]}
[]
[{"$f":"#REF!","v":{"$error":"#REF!"}},{"$f":"#REF!","v":{"$error":"#REF!"}},{"$f":"#REF!","v":{"$error":"#REF!"}},{"$f":"#REF!","v":{"$error":"#REF!"}},{"$f":"#REF!","v":{"$error":"#REF!"}},{"$f":"#REF!","v":{"$error":"#REF!"}},{"$f":"#REF!","v":{"$error":"#REF!"}},{"$f":"#REF!","v":{"$error":"#REF!"}},{"$f":"#REF!","v":{"$error":"#REF!"}},{"$f":"#REF!","v":{"$error":"#REF!"}},{"$f":"#REF!","v":{"$error":"#REF!"}},{"$f":"#REF!","v":{"$error":"#REF!"}},{"$f":"#REF!","v":{"$error":"#REF!"}},{"$f":"#REF!","v":{"$error":"#REF!"}},{"$f":"#REF!","v":{"$error":"#REF!"}},{"$f":"#REF!","v":{"$error":"#REF!"}},{"$f":"#REF!","v":{"$error":"#REF!"}},{"$f":"#REF!","v":{"$error":"#REF!"}},{"$f":"#REF!","v":{"$error":"#REF!"}},{"$f":"#REF!","v":{"$error":"#REF!"}},{"$f":"#REF!","v":{"$error":"#REF!"}},{"$f":"#REF!","v":{"$error":"#REF!"}},{"$f":"#REF!","v":{"$error":"#REF!"}},{"$f":"#REF!","v":{"$error":"#REF!"}},{"$f":"#REF!","v":{"$error":"#REF!"}},{"$f":"#REF!","v":{"$error":"#REF!"}}]
[{"$f":"#REF!","v":{"$error":"#REF!"}},{"$f":"#REF!","v":{"$error":"#REF!"}},{"$f":"#REF!","v":{"$error":"#REF!"}},{"$f":"#REF!","v":{"$error":"#REF!"}}]
[{"$f":"#REF!","v":{"$error":"#REF!"}},{"$f":"#REF!","v":{"$error":"#REF!"}},{"$f":"#REF!","v":{"$error":"#REF!"}},{"$f":"#REF!","v":{"$error":"#REF!"}},{"$f":"#REF!","v":{"$error":"#REF!"}},{"$f":"#REF!","v":{"$error":"#REF!"}},{"$f":"#REF!","v":{"$error":"#REF!"}},{"$f":"#REF!","v":{"$error":"#REF!"}},{"$f":"#REF!","v":{"$error":"#REF!"}},{"$f":"#REF!","v":{"$error":"#REF!"}},{"$f":"#REF!","v":{"$error":"#REF!"}},{"$f":"#REF!","v":{"$error":"#REF!"}},{"$f":"#REF!","v":{"$error":"#REF!"}},{"$f":"#REF!","v":{"$error":"#REF!"}},{"$f":"#REF!","v":{"$error":"#REF!"}},{"$f":"#REF!","v":{"$error":"#REF!"}},{"$f":"#REF!","v":{"$error":"#REF!"}},{"$f":"#REF!","v":{"$error":"#REF!"}},{"$f":"#REF!","v":{"$error":"#REF!"}},{"$f":"#REF!","v":{"$error":"#REF!"}},{"$f":"#REF!","v":{"$error":"#REF!"}},{"$f":"#REF!","v":{"$error":"#REF!"}},{"$f":"#REF!","v":{"$error":"#REF!"}},{"$f":"#REF!","v":{"$error":"#REF!"}},{"$f":"#REF!","v":{"$error":"#REF!"}},{"$f":"#REF!","v":{"$error":"#REF!"}}]
["Answers",{"$f":"IF(#REF!=0,\"\",#REF!)","v":{"$error":"#REF!"}},{"$f":"IF(#REF!=0,\"\",#REF!)","v":{"$error":"#REF!"}},{"$f":"IF(#REF!=0,\"\",#REF!)","v":{"$error":"#REF!"}},{"$f":"IF(#REF!=0,\"\",#REF!)","v":{"$error":"#REF!"}},{"$f":"IF(#REF!=0,\"\",#REF!)","v":{"$error":"#REF!"}},{"$f":"IF(#REF!=0,\"\",#REF!)","v":{"$error":"#REF!"}},{"$f":"IF(#REF!=0,\"\",#REF!)","v":{"$error":"#REF!"}},{"$f":"IF(#REF!=0,\"\",#REF!)","v":{"$error":"#REF!"}},{"$f":"IF(#REF!=0,\"\",#REF!)","v":{"$error":"#REF!"}},{"$f":"IF(#REF!=0,\"\",#REF!)","v":{"$error":"#REF!"}},{"$f":"IF(#REF!=0,\"\",#REF!)","v":{"$error":"#REF!"}},{"$f":"IF(#REF!=0,\"\",#REF!)","v":{"$error":"#REF!"}},{"$f":"IF(#REF!=0,\"\",#REF!)","v":{"$error":"#REF!"}},{"$f":"IF(#REF!=0,\"\",#REF!)","v":{"$error":"#REF!"}},{"$f":"IF(#REF!=0,\"\",#REF!)","v":{"$error":"#REF!"}},{"$f":"IF(#REF!=0,\"\",#REF!)","v":{"$error":"#REF!"}},{"$f":"IF(#REF!=0,\"\",#REF!)","v":{"$error":"#REF!"}},{"$f":"IF(#REF!=0,\"\",#REF!)","v":{"$error":"#REF!"}},{"$f":"IF(#REF!=0,\"\",#REF!)","v":{"$error":"#REF!"}},{"$f":"IF(#REF!=0,\"\",#REF!)","v":{"$error":"#REF!"}},{"$f":"IF(#REF!=0,\"\",#REF!)","v":{"$error":"#REF!"}},{"$f":"IF(#REF!=0,\"\",#REF!)","v":{"$error":"#REF!"}},{"$f":"IF(#REF!=0,\"\",#REF!)","v":{"$error":"#REF!"}}]
[{"$f":"#REF!","v":{"$error":"#REF!"}},{"$f":"#REF!","v":{"$error":"#REF!"}},{"$f":"#REF!","v":{"$error":"#REF!"}},{"$f":"#REF!","v":{"$error":"#REF!"}},{"$f":"#REF!","v":{"$error":"#REF!"}},{"$f":"#REF!","v":{"$error":"#REF!"}},{"$f":"#REF!","v":{"$error":"#REF!"}},{"$f":"#REF!","v":{"$error":"#REF!"}}]
[{"$f":"#REF!","v":{"$error":"#REF!"}},{"$f":"#REF!","v":{"$error":"#REF!"}},{"$f":"#REF!","v":{"$error":"#REF!"}},{"$f":"#REF!","v":{"$error":"#REF!"}},{"$f":"#REF!","v":{"$error":"#REF!"}},{"$f":"IF(#REF!=0,\"\",#REF!)","v":{"$error":"#REF!"}},{"$f":"IF(#REF!=0,\"\",#REF!)","v":{"$error":"#REF!"}},{"$f":"IF(#REF!=0,\"\",#REF!)","v":{"$error":"#REF!"}}]
[]
[]
[]
[{"$f":"#REF!","v":{"$error":"#REF!"}},{"$f":"#REF!","v":{"$error":"#REF!"}},{"$f":"#REF!","v":{"$error":"#REF!"}},{"$f":"#REF!","v":{"$error":"#REF!"}},{"$f":"#REF!","v":{"$error":"#REF!"}},{"$f":"#REF!","v":{"$error":"#REF!"}},{"$f":"#REF!","v":{"$error":"#REF!"}},{"$f":"#REF!","v":{"$error":"#REF!"}},{"$f":"#REF!","v":{"$error":"#REF!"}},{"$f":"#REF!","v":{"$error":"#REF!"}},{"$f":"#REF!","v":{"$error":"#REF!"}},{"$f":"#REF!","v":{"$error":"#REF!"}},{"$f":"#REF!","v":{"$error":"#REF!"}},{"$f":"#REF!","v":{"$error":"#REF!"}},{"$f":"#REF!","v":{"$error":"#REF!"}},{"$f":"#REF!","v":{"$error":"#REF!"}},{"$f":"#REF!","v":{"$error":"#REF!"}},{"$f":"#REF!","v":{"$error":"#REF!"}},{"$f":"#REF!","v":{"$error":"#REF!"}},{"$f":"#REF!","v":{"$error":"#REF!"}},{"$f":"#REF!","v":{"$error":"#REF!"}},{"$f":"#REF!","v":{"$error":"#REF!"}},{"$f":"#REF!","v":{"$error":"#REF!"}},{"$f":"#REF!","v":{"$error":"#REF!"}},{"$f":"#REF!","v":{"$error":"#REF!"}},{"$f":"#REF!","v":{"$error":"#REF!"}},{"$f":"#REF!","v":{"$error":"#REF!"}}]
[{"$f":"#REF!","v":{"$error":"#REF!"}},{"$f":"#REF!","v":{"$error":"#REF!"}},{"$f":"#REF!","v":{"$error":"#REF!"}},{"$f":"#REF!","v":{"$error":"#REF!"}}]
[{"$f":"#REF!","v":{"$error":"#REF!"}},{"$f":"#REF!","v":{"$error":"#REF!"}},{"$f":"#REF!","v":{"$error":"#REF!"}},{"$f":"#REF!","v":{"$error":"#REF!"}},{"$f":"#REF!","v":{"$error":"#REF!"}},{"$f":"#REF!","v":{"$error":"#REF!"}},{"$f":"#REF!","v":{"$error":"#REF!"}},{"$f":"#REF!","v":{"$error":"#REF!"}},{"$f":"#REF!","v":{"$error":"#REF!"}},{"$f":"#REF!","v":{"$error":"#REF!"}},{"$f":"#REF!","v":{"$error":"#REF!"}},{"$f":"#REF!","v":{"$error":"#REF!"}},{"$f":"#REF!","v":{"$error":"#REF!"}},{"$f":"#REF!","v":{"$error":"#REF!"}},{"$f":"#REF!","v":{"$error":"#REF!"}},{"$f":"#REF!","v":{"$error":"#REF!"}},{"$f":"#REF!","v":{"$error":"#REF!"}},{"$f":"#REF!","v":{"$error":"#REF!"}},{"$f":"#REF!","v":{"$error":"#REF!"}},{"$f":"#REF!","v":{"$error":"#REF!"}},{"$f":"#REF!","v":{"$error":"#REF!"}},{"$f":"#REF!","v":{"$error":"#REF!"}},{"$f":"#REF!","v":{"$error":"#REF!"}},{"$f":"#REF!","v":{"$error":"#REF!"}},{"$f":"#REF!","v":{"$error":"#REF!"}},{"$f":"#REF!","v":{"$error":"#REF!"}},{"$f":"#REF!","v":{"$error":"#REF!"}}]
[{"$f":"#REF!","v":{"$error":"#REF!"}},{"$f":"IF(#REF!=0,\"\",#REF!)","v":{"$error":"#REF!"}},{"$f":"IF(#REF!=0,\"\",#REF!)","v":{"$error":"#REF!"}},{"$f":"IF(#REF!=0,\"\",#REF!)","v":{"$error":"#REF!"}},{"$f":"IF(#REF!=0,\"\",#REF!)","v":{"$error":"#REF!"}},null,{"$f":"IF(#REF!=0,\"\",#REF!)","v":{"$error":"#REF!"}},{"$f":"IF(#REF!=0,\"\",#REF!)","v":{"$error":"#REF!"}},{"$f":"IF(#REF!=0,\"\",#REF!)","v":{"$error":"#REF!"}},{"$f":"IF(#REF!=0,\"\",#REF!)","v":{"$error":"#REF!"}},{"$f":"IF(#REF!=0,\"\",#REF!)","v":{"$error":"#REF!"}},{"$f":"IF(#REF!=0,\"\",#REF!)","v":{"$error":"#REF!"}},{"$f":"IF(#REF!=0,\"\",#REF!)","v":{"$error":"#REF!"}},{"$f":"IF(#REF!=0,\"\",#REF!)","v":{"$error":"#REF!"}},{"$f":"IF(#REF!=0,\"\",#REF!)","v":{"$error":"#REF!"}},{"$f":"IF(#REF!=0,\"\",#REF!)","v":{"$error":"#REF!"}},{"$f":"IF(#REF!=0,\"\",#REF!)","v":{"$error":"#REF!"}},{"$f":"IF(#REF!=0,\"\",#REF!)","v":{"$error":"#REF!"}},{"$f":"IF(#REF!=0,\"\",#REF!)","v":{"$error":"#REF!"}},{"$f":"IF(#REF!=0,\"\",#REF!)","v":{"$error":"#REF!"}},{"$f":"IF(#REF!=0,\"\",#REF!)","v":{"$error":"#REF!"}},{"$f":"IF(#REF!=0,\"\",#REF!)","v":{"$error":"#REF!"}},{"$f":"IF(#REF!=0,\"\",#REF!)","v":{"$error":"#REF!"}},{"$f":"IF(#REF!=0,\"\",#REF!)","v":{"$error":"#REF!"}},{"$f":"IF(#REF!=0,\"\",#REF!)","v":{"$error":"#REF!"}}]
[{"$f":"#REF!","v":{"$error":"#REF!"}},{"$f":"#REF!","v":{"$error":"#REF!"}},{"$f":"#REF!","v":{"$error":"#REF!"}},{"$f":"#REF!","v":{"$error":"#REF!"}},{"$f":"#REF!","v":{"$error":"#REF!"}},{"$f":"#REF!","v":{"$error":"#REF!"}},{"$f":"#REF!","v":{"$error":"#REF!"}},{"$f":"#REF!","v":{"$error":"#REF!"}}]
[{"$f":"#REF!","v":{"$error":"#REF!"}},{"$f":"#REF!","v":{"$error":"#REF!"}},{"$f":"#REF!","v":{"$error":"#REF!"}},{"$f":"#REF!","v":{"$error":"#REF!"}},{"$f":"#REF!","v":{"$error":"#REF!"}},{"$f":"IF(#REF!=0,\"\",#REF!)","v":{"$error":"#REF!"}},{"$f":"IF(#REF!=0,\"\",#REF!)","v":{"$error":"#REF!"}},{"$f":"IF(#REF!=0,\"\",#REF!)","v":{"$error":"#REF!"}}]
[]
[]
[]
[{"$f":"'Terrestrial Data QA'!B11","v":"No."},{"$f":"'Terrestrial Data QA'!B13","v":1},{"$f":"'Terrestrial Data QA'!B16","v":2},{"$f":"'Terrestrial Data QA'!B19","v":3},{"$f":"'Terrestrial Data QA'!B21","v":4},{"$f":"'Terrestrial Data QA'!B23","v":5},{"$f":"'Terrestrial Data QA'!B26","v":6},{"$f":"'Terrestrial Data QA'!B29","v":7},{"$f":"'Terrestrial Data QA'!B32","v":8},{"$f":"'Terrestrial Data QA'!B35","v":9},{"$f":"'Terrestrial Data QA'!B39","v":10},{"$f":"'Terrestrial Data QA'!B42","v":11},{"$f":"'Terrestrial Data QA'!B45","v":12},{"$f":"'Terrestrial Data QA'!B48","v":13},{"$f":"'Terrestrial Data QA'!B50","v":14},{"$f":"'Terrestrial Data QA'!B55","v":15.1},{"$f":"'Terrestrial Data QA'!B59","v":15.2},{"$f":"'Terrestrial Data QA'!B63","v":15.3},{"$f":"'Terrestrial Data QA'!B67","v":15.4},{"$f":"'Terrestrial Data QA'!B71","v":16},{"$f":"'Terrestrial Data QA'!B74","v":17},{"$f":"'Terrestrial Data QA'!B78","v":18},{"$f":"'Terrestrial Data QA'!B82","v":19},{"$f":"'Terrestrial Data QA'!B85","v":20},{"$f":"'Terrestrial Data QA'!C90","v":"Total Score"},{"$f":"'Terrestrial Data QA'!C92","v":"Quality Score"}]
[{"$f":"'Terrestrial Data QA'!C2","v":"Category"},{"$f":"'Terrestrial Data QA'!E2","v":"Terrestrial Quality"},{"$f":"'Terrestrial Data QA'!C3","v":"Paper and data unique identifier(eg. 1-1,10-150)"},{"$f":"'Terrestrial Data QA'!E3","v":0}]
[{"$f":"'Terrestrial Data QA'!G11","v":"Scores"},{"$f":"'Terrestrial Data QA'!G12","v":0},{"$f":"'Terrestrial Data QA'!G15","v":0},{"$f":"'Terrestrial Data QA'!G18","v":0},{"$f":"'Terrestrial Data QA'!G21","v":0},{"$f":"'Terrestrial Data QA'!G23","v":0},{"$f":"'Terrestrial Data QA'!G26","v":0},{"$f":"'Terrestrial Data QA'!G29","v":0},{"$f":"'Terrestrial Data QA'!G32","v":0},{"$f":"'Terrestrial Data QA'!G35","v":0},{"$f":"'Terrestrial Data QA'!G38","v":0},{"$f":"'Terrestrial Data QA'!G41","v":0},{"$f":"'Terrestrial Data QA'!G44","v":0},{"$f":"'Terrestrial Data QA'!G47","v":0},{"$f":"'Terrestrial Data QA'!G50","v":0},{"$f":"'Terrestrial Data QA'!G54","v":0},{"$f":"'Terrestrial Data QA'!G58","v":0},{"$f":"'Terrestrial Data QA'!G62","v":0},{"$f":"'Terrestrial Data QA'!G66","v":0},{"$f":"'Terrestrial Data QA'!G70","v":0},{"$f":"'Terrestrial Data QA'!G73","v":0},{"$f":"'Terrestrial Data QA'!G77","v":0},{"$f":"'Terrestrial Data QA'!G81","v":0},{"$f":"'Terrestrial Data QA'!G84","v":0},{"$f":"'Terrestrial Data QA'!G90","v":""},{"$f":"'Terrestrial Data QA'!G92","v":{"$error":"#N/A"}}]
[{"$f":"'Terrestrial Data QA'!H11","v":"Answers"},{"$f":"IF('Terrestrial Data QA'!H12=0,\"\",'Terrestrial Data QA'!H12)","v":""},{"$f":"IF('Terrestrial Data QA'!H15=0,\"\",'Terrestrial Data QA'!H15)","v":""},{"$f":"IF('Terrestrial Data QA'!H18=0,\"\",'Terrestrial Data QA'!H18)","v":""},{"$f":"IF('Terrestrial Data QA'!H21=0,\"\",'Terrestrial Data QA'!H21)","v":""},{"$f":"IF('Terrestrial Data QA'!H23=0,\"\",'Terrestrial Data QA'!H23)","v":""},{"$f":"IF('Terrestrial Data QA'!H26=0,\"\",'Terrestrial Data QA'!H26)","v":""},{"$f":"IF('Terrestrial Data QA'!H29=0,\"\",'Terrestrial Data QA'!H29)","v":""},{"$f":"IF('Terrestrial Data QA'!H32=0,\"\",'Terrestrial Data QA'!H32)","v":""},{"$f":"IF('Terrestrial Data QA'!H35=0,\"\",'Terrestrial Data QA'!H35)","v":""},{"$f":"IF('Terrestrial Data QA'!H38=0,\"\",'Terrestrial Data QA'!H38)","v":""},{"$f":"IF('Terrestrial Data QA'!H41=0,\"\",'Terrestrial Data QA'!H41)","v":""},{"$f":"IF('Terrestrial Data QA'!H44=0,\"\",'Terrestrial Data QA'!H44)","v":""},{"$f":"IF('Terrestrial Data QA'!H47=0,\"\",'Terrestrial Data QA'!H47)","v":""},{"$f":"IF('Terrestrial Data QA'!H50=0,\"\",'Terrestrial Data QA'!H50)","v":""},{"$f":"IF('Terrestrial Data QA'!H54=0,\"\",'Terrestrial Data QA'!H54)","v":""},{"$f":"IF('Terrestrial Data QA'!H58=0,\"\",'Terrestrial Data QA'!H58)","v":""},{"$f":"IF('Terrestrial Data QA'!H62=0,\"\",'Terrestrial Data QA'!H62)","v":""},{"$f":"IF('Terrestrial Data QA'!H66=0,\"\",'Terrestrial Data QA'!H66)","v":""},{"$f":"IF('Terrestrial Data QA'!H70=0,\"\",'Terrestrial Data QA'!H70)","v":""},{"$f":"IF('Terrestrial Data QA'!H73=0,\"\",'Terrestrial Data QA'!H73)","v":""},{"$f":"IF('Terrestrial Data QA'!H77=0,\"\",'Terrestrial Data QA'!H77)","v":""},{"$f":"IF('Terrestrial Data QA'!H81=0,\"\",'Terrestrial Data QA'!H81)","v":""},{"$f":"IF('Terrestrial Data QA'!H84=0,\"\",'Terrestrial Data QA'!H84)","v":""}]
[{"$f":"'Terrestrial Data QA'!G3","v":"Species (Scientific name)"},{"$f":"'Terrestrial Data QA'!G4","v":"Lifestage"},{"$f":"'Terrestrial Data QA'!G5","v":"Exposure duration"},{"$f":"'Terrestrial Data QA'!G6","v":"Measure of toxicity"},{"$f":"'Terrestrial Data QA'!G7","v":"Toxicity endpoint"},{"$f":"'Terrestrial Data QA'!G8","v":"Toxicity value"},{"$f":"'Terrestrial Data QA'!C4","v":"Citation"},{"$f":"'Terrestrial Data QA'!G2","v":"Citation No."}]
[{"$f":"'Terrestrial Data QA'!M3","v":""},{"$f":"'Terrestrial Data QA'!P3","v":""},{"$f":"'Terrestrial Data QA'!S3","v":""},{"$f":"'Terrestrial Data QA'!V3","v":""},{"$f":"'Terrestrial Data QA'!Y3","v":""},{"$f":"IF('Terrestrial Data QA'!H8=0,\"\",'Terrestrial Data QA'!H8)","v":""},{"$f":"IF('Terrestrial Data QA'!E4=0,\"\",'Terrestrial Data QA'!E4)","v":""},{"$f":"IF('Terrestrial Data QA'!H2=0,\"\",'Terrestrial Data QA'!H2)","v":""}]
[]
[]
[]
[{"$f":"'Sediment Data QA'!B11","v":"No."},{"$f":"'Sediment Data QA'!B13","v":1},{"$f":"'Sediment Data QA'!B16","v":2},{"$f":"'Sediment Data QA'!B19","v":3},{"$f":"'Sediment Data QA'!B21","v":4},{"$f":"'Sediment Data QA'!B23","v":5},{"$f":"'Sediment Data QA'!B26","v":6},{"$f":"'Sediment Data QA'!B29","v":7},{"$f":"'Sediment Data QA'!B32","v":8},{"$f":"'Sediment Data QA'!B35","v":9},{"$f":"'Sediment Data QA'!B39","v":10},{"$f":"'Sediment Data QA'!B42","v":11},{"$f":"'Sediment Data QA'!B45","v":12},{"$f":"'Sediment Data QA'!B48","v":13},{"$f":"'Sediment Data QA'!B51","v":14},{"$f":"'Sediment Data QA'!B53","v":15},{"$f":"'Sediment Data QA'!B58","v":16.100000000000001},{"$f":"'Sediment Data QA'!B62","v":16.2},{"$f":"'Sediment Data QA'!B66","v":16.3},{"$f":"'Sediment Data QA'!B70","v":16.399999999999999},{"$f":"'Sediment Data QA'!B74","v":16.5},{"$f":"'Sediment Data QA'!B78","v":16.600000000000001},{"$f":"'Sediment Data QA'!B82","v":17},{"$f":"'Sediment Data QA'!B85","v":18},{"$f":"'Sediment Data QA'!B88","v":19},{"$f":"'Sediment Data QA'!B90","v":20},{"$f":"'Sediment Data QA'!B92","v":21},{"$f":"'Sediment Data QA'!C95","v":"Total score"},{"$f":"'Sediment Data QA'!C97","v":"Quality Score"}]
[{"$f":"'Sediment Data QA'!C2","v":"Category"},{"$f":"'Sediment Data QA'!E2","v":"Sediment "},{"$f":"'Sediment Data QA'!C3","v":"Paper and data unique identifier(eg. 1-1,10-150)"},{"$f":"'Sediment Data QA'!E3","v":0}]
[{"$f":"'Sediment Data QA'!G11","v":"Scores"},{"$f":"'Sediment Data QA'!G12","v":0},{"$f":"'Sediment Data QA'!G15","v":0},{"$f":"'Sediment Data QA'!G18","v":0},{"$f":"'Sediment Data QA'!G21","v":0},{"$f":"'Sediment Data QA'!G23","v":0},{"$f":"'Sediment Data QA'!G26","v":0},{"$f":"'Sediment Data QA'!G29","v":0},{"$f":"'Sediment Data QA'!G32","v":0},{"$f":"'Sediment Data QA'!G35","v":0},{"$f":"'Sediment Data QA'!G38","v":0},{"$f":"'Sediment Data QA'!G41","v":0},{"$f":"'Sediment Data QA'!G44","v":0},{"$f":"'Sediment Data QA'!G47","v":0},{"$f":"'Sediment Data QA'!G50","v":0},{"$f":"'Sediment Data QA'!G53","v":0},{"$f":"'Sediment Data QA'!G57","v":0},{"$f":"'Sediment Data QA'!G61","v":0},{"$f":"'Sediment Data QA'!G65","v":0},{"$f":"'Sediment Data QA'!G69","v":0},{"$f":"'Sediment Data QA'!G73","v":0},{"$f":"'Sediment Data QA'!G77","v":0},{"$f":"'Sediment Data QA'!G81","v":0},{"$f":"'Sediment Data QA'!G84","v":0},{"$f":"'Sediment Data QA'!G88","v":0},{"$f":"'Sediment Data QA'!G90","v":0},{"$f":"'Sediment Data QA'!G92","v":0},{"$f":"'Sediment Data QA'!G95","v":""},{"$f":"'Sediment Data QA'!G97","v":{"$error":"#N/A"}}]
[{"$f":"'Sediment Data QA'!H11","v":"Answers"},{"$f":"IF('Sediment Data QA'!H12=\"\",\"\",'Sediment Data QA'!H12)","v":""},{"$f":"IF('Sediment Data QA'!H15=\"\",\"\",'Sediment Data QA'!H15)","v":""},{"$f":"IF('Sediment Data QA'!H18=\"\",\"\",'Sediment Data QA'!H18)","v":""},{"$f":"IF('Sediment Data QA'!H21=\"\",\"\",'Sediment Data QA'!H21)","v":""},{"$f":"IF('Sediment Data QA'!H23=\"\",\"\",'Sediment Data QA'!H23)","v":""},{"$f":"IF('Sediment Data QA'!H26=\"\",\"\",'Sediment Data QA'!H26)","v":""},{"$f":"IF('Sediment Data QA'!H29=\"\",\"\",'Sediment Data QA'!H29)","v":""},{"$f":"IF('Sediment Data QA'!H32=\"\",\"\",'Sediment Data QA'!H32)","v":""},{"$f":"IF('Sediment Data QA'!H35=\"\",\"\",'Sediment Data QA'!H35)","v":""},{"$f":"IF('Sediment Data QA'!H38=\"\",\"\",'Sediment Data QA'!H38)","v":""},{"$f":"IF('Sediment Data QA'!H41=\"\",\"\",'Sediment Data QA'!H41)","v":""},{"$f":"IF('Sediment Data QA'!H44=\"\",\"\",'Sediment Data QA'!H44)","v":""},{"$f":"IF('Sediment Data QA'!H47=\"\",\"\",'Sediment Data QA'!H47)","v":""},{"$f":"IF('Sediment Data QA'!H50=\"\",\"\",'Sediment Data QA'!H50)","v":""},{"$f":"IF('Sediment Data QA'!H53=\"\",\"\",'Sediment Data QA'!H53)","v":""},{"$f":"IF('Sediment Data QA'!H57=\"\",\"\",'Sediment Data QA'!H57)","v":""},{"$f":"IF('Sediment Data QA'!H61=\"\",\"\",'Sediment Data QA'!H61)","v":""},{"$f":"IF('Sediment Data QA'!H65=\"\",\"\",'Sediment Data QA'!H65)","v":""},{"$f":"IF('Sediment Data QA'!H69=\"\",\"\",'Sediment Data QA'!H69)","v":""},{"$f":"IF('Sediment Data QA'!H73=\"\",\"\",'Sediment Data QA'!H73)","v":""},{"$f":"IF('Sediment Data QA'!H77=\"\",\"\",'Sediment Data QA'!H77)","v":""},{"$f":"IF('Sediment Data QA'!H81=\"\",\"\",'Sediment Data QA'!H81)","v":""},{"$f":"IF('Sediment Data QA'!H84=\"\",\"\",'Sediment Data QA'!H84)","v":""},{"$f":"IF('Sediment Data QA'!H88=\"\",\"\",'Sediment Data QA'!H88)","v":""},{"$f":"IF('Sediment Data QA'!H90=\"\",\"\",'Sediment Data QA'!H90)","v":""},{"$f":"IF('Sediment Data QA'!H92=\"\",\"\",'Sediment Data QA'!H92)","v":""}]
[{"$f":"'Sediment Data QA'!G3","v":"Species (Scientific name)"},{"$f":"'Sediment Data QA'!G4","v":"Lifestage"},{"$f":"'Sediment Data QA'!G5","v":"Exposure duration"},{"$f":"'Sediment Data QA'!G6","v":"Measure of toxicity"},{"$f":"'Sediment Data QA'!G7","v":"Toxicity endpoint"},{"$f":"'Sediment Data QA'!G8","v":"Toxicity value"},{"$f":"'Sediment Data QA'!C4","v":"Citation"},{"$f":"'Sediment Data QA'!G2","v":"Citation No."}]
[{"$f":"'Sediment Data QA'!M3","v":""},{"$f":"'Sediment Data QA'!P3","v":""},{"$f":"'Sediment Data QA'!S3","v":""},{"$f":"'Sediment Data QA'!V3","v":""},{"$f":"'Sediment Data QA'!Y3","v":""},{"$f":"IF('Sediment Data QA'!H8=\"\",\"\",'Sediment Data QA'!H8)","v":""},{"$f":"IF('Sediment Data QA'!E4=\"\",\"\",'Sediment Data QA'!E4)","v":""},{"$f":"IF('Sediment Data QA'!H2=\"\",\"\",'Sediment Data QA'!H2)","v":0}]
[{"$f":"'FW nonmetal plant'!B11","v":"No."},{"$f":"'FW nonmetal plant'!B13","v":1},{"$f":"'FW nonmetal plant'!B16","v":2},{"$f":"'FW nonmetal plant'!B19","v":3},{"$f":"'FW nonmetal plant'!B21","v":4},{"$f":"'FW nonmetal plant'!B23","v":5},{"$f":"'FW nonmetal plant'!B26","v":6},{"$f":"'FW nonmetal plant'!B29","v":7},{"$f":"'FW nonmetal plant'!B32","v":8},{"$f":"'FW nonmetal plant'!B35","v":9},{"$f":"'FW nonmetal plant'!B39","v":10},{"$f":"'FW nonmetal plant'!B42","v":11},{"$f":"'FW nonmetal plant'!B45","v":12},{"$f":"'FW nonmetal plant'!B48","v":13},{"$f":"'FW nonmetal plant'!B51","v":14},{"$f":"'FW nonmetal plant'!B53","v":15},{"$f":"'FW nonmetal plant'!B58","v":16.100000000000001},{"$f":"'FW nonmetal plant'!B62","v":17},{"$f":"'FW nonmetal plant'!B65","v":18},{"$f":"'FW nonmetal plant'!C70","v":"Total score"},{"$f":"'FW nonmetal plant'!C72","v":"Quality Score"}]
[{"$f":"'FW nonmetal plant'!C2","v":"Category"},{"$f":"'FW nonmetal plant'!E2","v":"Freshwater/non-metal/plant"},{"$f":"'FW nonmetal plant'!C3","v":"Paper and data unique identifier(eg. 1-1,10-150)"},{"$f":"'FW nonmetal plant'!E3","v":"233-2"}]
[{"$f":"'FW nonmetal plant'!G11","v":"Scores"},{"$f":"'FW nonmetal plant'!G12","v":10},{"$f":"'FW nonmetal plant'!G15","v":5},{"$f":"'FW nonmetal plant'!G18","v":5},{"$f":"'FW nonmetal plant'!G21","v":5},{"$f":"'FW nonmetal plant'!G23","v":5},{"$f":"'FW nonmetal plant'!G26","v":5},{"$f":"'FW nonmetal plant'!G29","v":5},{"$f":"'FW nonmetal plant'!G32","v":5},{"$f":"'FW nonmetal plant'!G35","v":5},{"$f":"'FW nonmetal plant'!G38","v":4},{"$f":"'FW nonmetal plant'!G41","v":4},{"$f":"'FW nonmetal plant'!G44","v":0},{"$f":"'FW nonmetal plant'!G47","v":4},{"$f":"'FW nonmetal plant'!G50","v":4},{"$f":"'FW nonmetal plant'!G53","v":4},{"$f":"'FW nonmetal plant'!G57","v":3},{"$f":"'FW nonmetal plant'!G61","v":3},{"$f":"'FW nonmetal plant'!G64","v":3},{"$f":"'FW nonmetal plant'!G70","v":79},{"$f":"'FW nonmetal plant'!G72","v":0.89772727272727271},{"$f":"'FW nonmetal plant'!H72","v":""}]
[{"$f":"'FW nonmetal plant'!H11","v":"Answers"},{"$f":"IF('FW nonmetal plant'!H12=\"\",\"\",'FW nonmetal plant'!H12)","v":"96 h"},{"$f":"IF('FW nonmetal plant'!H15=\"\",\"\",'FW nonmetal plant'!H15)","v":"growth - surface area increase per day"},{"$f":"IF('FW nonmetal plant'!H18=\"\",\"\",'FW nonmetal plant'!H18)","v":"IC10"},{"$f":"IF('FW nonmetal plant'!H21=\"\",\"\",'FW nonmetal plant'!H21)","v":"IC10 (10% inhibition)"},{"$f":"IF('FW nonmetal plant'!H23=\"\",\"\",'FW nonmetal plant'!H23)","v":"Control (no toxicant)"},{"$f":"IF('FW nonmetal plant'!H26=\"\",\"\",'FW nonmetal plant'!H26)","v":"triplicate controls, duplicate treatments"},{"$f":"IF('FW nonmetal plant'!H29=\"\",\"\",'FW nonmetal plant'!H29)","v":"QA defined and stated it was met"},{"$f":"IF('FW nonmetal plant'!H32=\"\",\"\",'FW nonmetal plant'!H32)","v":"4 plants each with 3 fronds"},{"$f":"IF('FW nonmetal plant'!H35=\"\",\"\",'FW nonmetal plant'!H35)","v":"Magela Ck water + nitrate + phosphate + MES buffer (1 mM)"},{"$f":"IF('FW nonmetal plant'!H38=\"\",\"\",'FW nonmetal plant'!H38)","v":"non-renewal"},{"$f":"IF('FW nonmetal plant'!H41=\"\",\"\",'FW nonmetal plant'!H41)","v":"measured at beginning and end"},{"$f":"IF('FW nonmetal plant'!H44=\"\",\"\",'FW nonmetal plant'!H44)","v":"No ref tox tests"},{"$f":"IF('FW nonmetal plant'!H47=\"\",\"\",'FW nonmetal plant'!H47)","v":"stated and observed in figures"},{"$f":"IF('FW nonmetal plant'!H53=\"\",\"\",'FW nonmetal plant'!H53)","v":"95% CL (10-19 ug/L)"},{"$f":"IF('FW nonmetal plant'!H53=\"\",\"\",'FW nonmetal plant'!H53)","v":"95% CL (10-19 ug/L)"},{"$f":"IF('FW nonmetal plant'!H57=\"\",\"\",'FW nonmetal plant'!H57)","v":"5.9 +/- 0 (n=77) measured number times throughout the test; pH maintained with HEPES buffer"},{"$f":"IF('FW nonmetal plant'!H61=\"\",\"\",'FW nonmetal plant'!H61)","v":"28.5 (27.5-29.2) degrees C"},{"$f":"IF('FW nonmetal plant'!H64=\"\",\"\",'FW nonmetal plant'!H64)","v":"ammonium sulfate, all solutions/dilution water extensively tested for metals, major ions"}]
[{"$f":"'FW nonmetal plant'!G3","v":"Species (Scientific name)"},{"$f":"'FW nonmetal plant'!G4","v":"Lifestage"},{"$f":"'FW nonmetal plant'!G5","v":"Exposure duration"},{"$f":"'FW nonmetal plant'!G6","v":"Measure of toxicity"},{"$f":"'FW nonmetal plant'!G7","v":"Toxicity endpoint"},{"$f":"'FW nonmetal plant'!G8","v":"Toxicity value"},{"$f":"'FW nonmetal plant'!J2","v":"Taxonomic group"},{"$f":"'FW nonmetal plant'!J3","v":"Phylum"},{"$f":"'FW nonmetal plant'!J4","v":"Class"},{"$f":"'FW nonmetal plant'!J5","v":"Media"},{"$f":"'FW nonmetal plant'!J6","v":"Temperature "},{"$f":"'FW nonmetal plant'!J7","v":"Acute Or Chronic "},{"$f":"'FW nonmetal plant'!J8","v":"PH"},{"$f":"'FW nonmetal plant'!J9","v":"Salinity/Conductivity"},{"$f":"'FW nonmetal plant'!C4","v":"Citation"},{"$f":"'FW nonmetal plant'!G2","v":"Citation No."}]
[{"$f":"'FW nonmetal plant'!Q3","v":"Lemna aequinoctialis"},{"$f":"'FW nonmetal plant'!T3","v":"3 fronds"},{"$f":"'FW nonmetal plant'!W3","v":"96 h"},{"$f":"'FW nonmetal plant'!Z3","v":"IC10"},{"$f":"'FW nonmetal plant'!AC3","v":"Growth (surface area)"},{"$f":"IF('FW nonmetal plant'!H8=\"\",\"\",'FW nonmetal plant'!H8)","v":15},{"$f":"'FW nonmetal plant'!AF3","v":"Macrophyt"},{"$f":"'FW nonmetal plant'!AI3","v":"Tracheophyta"},{"$f":"'FW nonmetal plant'!AO3","v":"Freshwater"},{"$f":"'FW nonmetal plant'!AR3","v":29},{"$f":"'FW nonmetal plant'!AR3","v":29},{"$f":"'FW nonmetal plant'!AU3","v":"Chronic"},{"$f":"'FW nonmetal plant'!AX3","v":5.9},{"$f":"'FW nonmetal plant'!BA3","v":"N.A."},{"$f":"IF('FW nonmetal plant'!E4=\"\",\"\",'FW nonmetal plant'!E4)","v":"Mooney, T.J., Pease, C., Hogan, A.C., Trenfield, M., Kleinhenz, L.S., Humphrey, C., van Dam, R. and Harford, A.J. (2018-in press) Freshwater chronic ammonia toxicity: a tropical-to-temperate comparison. Environmental Toxicology and Chemsitry (in press)."},{"$f":"IF('FW nonmetal plant'!H2=\"\",\"\",'FW nonmetal plant'!H2)","v":"233"}]
[{"$f":"'FW metal plant'!B11","v":"No."},{"$f":"'FW metal plant'!B13","v":1},{"$f":"'FW metal plant'!B16","v":2},{"$f":"'FW metal plant'!B19","v":3},{"$f":"'FW metal plant'!B21","v":4},{"$f":"'FW metal plant'!B23","v":5},{"$f":"'FW metal plant'!B26","v":6},{"$f":"'FW metal plant'!B29","v":7},{"$f":"'FW metal plant'!B32","v":8},{"$f":"'FW metal plant'!B35","v":9},{"$f":"'FW metal plant'!B39","v":10},{"$f":"'FW metal plant'!B42","v":11},{"$f":"'FW metal plant'!B45","v":12},{"$f":"'FW metal plant'!B48","v":13},{"$f":"'FW metal plant'!B51","v":14},{"$f":"'FW metal plant'!B53","v":15},{"$f":"'FW metal plant'!B58","v":16.100000000000001},{"$f":"'FW metal plant'!B61","v":16.2},{"$f":"'FW metal plant'!B64","v":16.3},{"$f":"'FW metal plant'!B67","v":16.399999999999999},{"$f":"'FW metal plant'!B70","v":17},{"$f":"'FW metal plant'!B73","v":18},{"$f":"'FW metal plant'!C78","v":"Total score"},{"$f":"'FW metal plant'!C80","v":"Quality Score"}]
[{"$f":"'FW metal plant'!C2","v":"Category"},{"$f":"'FW metal plant'!E2","v":"Freshwater/metal/plant"},{"$f":"'FW metal plant'!C3","v":"Paper and data unique identifier(eg. 1-1,10-150)"},{"$f":"'FW metal plant'!E3","v":0}]
[{"$f":"'FW metal plant'!G11","v":"Scores"},{"$f":"'FW metal plant'!G12","v":0},{"$f":"'FW metal plant'!G15","v":0},{"$f":"'FW metal plant'!G18","v":0},{"$f":"'FW metal plant'!G21","v":0},{"$f":"'FW metal plant'!G23","v":0},{"$f":"'FW metal plant'!G26","v":0},{"$f":"'FW metal plant'!G29","v":0},{"$f":"'FW metal plant'!G32","v":0},{"$f":"'FW metal plant'!G35","v":0},{"$f":"'FW metal plant'!G38","v":0},{"$f":"'FW metal plant'!G41","v":0},{"$f":"'FW metal plant'!G44","v":0},{"$f":"'FW metal plant'!G47","v":0},{"$f":"'FW metal plant'!G50","v":0},{"$f":"'FW metal plant'!G53","v":0},{"$f":"'FW metal plant'!G57","v":0},{"$f":"'FW metal plant'!G60","v":0},{"$f":"'FW metal plant'!G63","v":0},{"$f":"'FW metal plant'!G66","v":0},{"$f":"'FW metal plant'!G69","v":0},{"$f":"'FW metal plant'!G72","v":0},{"$f":"'FW metal plant'!G78","v":""},{"$f":"'FW metal plant'!G80","v":{"$error":"#N/A"}},{"$f":"'FW metal plant'!H80","v":""}]
[{"$f":"'FW metal plant'!H11","v":"Answers"},{"$f":"IF('FW metal plant'!H12=\"\",\"\",'FW metal plant'!H12)","v":""},{"$f":"IF('FW metal plant'!H15=\"\",\"\",'FW metal plant'!H15)","v":""},{"$f":"IF('FW metal plant'!H18=\"\",\"\",'FW metal plant'!H18)","v":""},{"$f":"IF('FW metal plant'!H21=\"\",\"\",'FW metal plant'!H21)","v":""},{"$f":"IF('FW metal plant'!H23=\"\",\"\",'FW metal plant'!H23)","v":""},{"$f":"IF('FW metal plant'!H26=\"\",\"\",'FW metal plant'!H26)","v":""},{"$f":"IF('FW metal plant'!H29=\"\",\"\",'FW metal plant'!H29)","v":""},{"$f":"IF('FW metal plant'!H32=\"\",\"\",'FW metal plant'!H32)","v":""},{"$f":"IF('FW metal plant'!H35=\"\",\"\",'FW metal plant'!H35)","v":""},{"$f":"IF('FW metal plant'!H38=\"\",\"\",'FW metal plant'!H38)","v":""},{"$f":"IF('FW metal plant'!H41=\"\",\"\",'FW metal plant'!H41)","v":""},{"$f":"IF('FW metal plant'!H44=\"\",\"\",'FW metal plant'!H44)","v":""},{"$f":"IF('FW metal plant'!H47=\"\",\"\",'FW metal plant'!H47)","v":""},{"$f":"IF('FW metal plant'!H50=\"\",\"\",'FW metal plant'!H50)","v":""},{"$f":"IF('FW metal plant'!H53=\"\",\"\",'FW metal plant'!H53)","v":""},{"$f":"IF('FW metal plant'!H57=\"\",\"\",'FW metal plant'!H57)","v":""},{"$f":"IF('FW metal plant'!H60=\"\",\"\",'FW metal plant'!H60)","v":""},{"$f":"IF('FW metal plant'!H63=\"\",\"\",'FW metal plant'!H63)","v":""},{"$f":"IF('FW metal plant'!H66=\"\",\"\",'FW metal plant'!H66)","v":""},{"$f":"IF('FW metal plant'!H69=\"\",\"\",'FW metal plant'!H69)","v":""},{"$f":"IF('FW metal plant'!H72=\"\",\"\",'FW metal plant'!H72)","v":""}]
[{"$f":"'FW metal plant'!G3","v":"Species (Scientific name)"},{"$f":"'FW metal plant'!G4","v":"Lifestage"},{"$f":"'FW metal plant'!G5","v":"Exposure duration"},{"$f":"'FW metal plant'!G6","v":"Measure of toxicity"},{"$f":"'FW metal plant'!G7","v":"Toxicity endpoint"},{"$f":"'FW metal plant'!G8","v":"Toxicity value"},{"$f":"'FW metal plant'!J2","v":"Taxonomic group"},{"$f":"'FW metal plant'!J3","v":"Phylum"},{"$f":"'FW metal plant'!J4","v":"Class"},{"$f":"'FW metal plant'!J5","v":"Media"},{"$f":"'FW metal plant'!J6","v":"Temperature "},{"$f":"'FW metal plant'!J7","v":"Acute Or Chronic "},{"$f":"'FW metal plant'!J8","v":"PH"},{"$f":"'FW metal plant'!J9","v":"Salinity/Conductivity"},{"$f":"'FW metal plant'!C4","v":"Citation"},{"$f":"'FW metal plant'!G2","v":"Citation No."}]
[{"$f":"'FW metal plant'!Q3","v":""},{"$f":"'FW metal plant'!T3","v":""},{"$f":"'FW metal plant'!W3","v":""},{"$f":"'FW metal plant'!Z3","v":""},{"$f":"'FW metal plant'!AC3","v":""},{"$f":"IF('FW metal plant'!H8=\"\",\"\",'FW metal plant'!H8)","v":""},{"$f":"'FW metal plant'!AF3","v":""},{"$f":"'FW metal plant'!AI3","v":""},{"$f":"'FW metal plant'!AL3","v":""},{"$f":"'FW metal plant'!AO3","v":""},{"$f":"'FW metal plant'!AR3","v":""},{"$f":"'FW metal plant'!AU3","v":""},{"$f":"'FW metal plant'!AX3","v":""},{"$f":"'FW metal plant'!BA3","v":"N.A."},{"$f":"IF('FW metal plant'!E4=\"\",\"\",'FW metal plant'!E4)","v":""},{"$f":"IF('FW metal plant'!H2=\"\",\"\",'FW metal plant'!H2)","v":0}]
[{"$f":"'FW nonmetal nonplant'!B11","v":"No."},{"$f":"'FW nonmetal nonplant'!B13","v":1},{"$f":"'FW nonmetal nonplant'!B16","v":2},{"$f":"'FW nonmetal nonplant'!B19","v":3},{"$f":"'FW nonmetal nonplant'!B21","v":4},{"$f":"'FW nonmetal nonplant'!B23","v":5},{"$f":"'FW nonmetal nonplant'!B26","v":6},{"$f":"'FW nonmetal nonplant'!B29","v":7},{"$f":"'FW nonmetal nonplant'!B32","v":8},{"$f":"'FW nonmetal nonplant'!B35","v":9},{"$f":"'FW nonmetal nonplant'!B39","v":10},{"$f":"'FW nonmetal nonplant'!B42","v":11},{"$f":"'FW nonmetal nonplant'!B45","v":12},{"$f":"'FW nonmetal nonplant'!B48","v":13},{"$f":"'FW nonmetal nonplant'!B51","v":14},{"$f":"'FW nonmetal nonplant'!B53","v":15},{"$f":"'FW nonmetal nonplant'!B58","v":16.100000000000001},{"$f":"'FW nonmetal nonplant'!B61","v":16.2},{"$f":"'FW nonmetal nonplant'!B64","v":17},{"$f":"'FW nonmetal nonplant'!B67","v":18},{"$f":"'FW nonmetal nonplant'!C72","v":"Total score"},{"$f":"'FW nonmetal nonplant'!C74","v":"Quality Score"}]
[{"$f":"'FW nonmetal nonplant'!C2","v":"Category"},{"$f":"'FW nonmetal nonplant'!E2","v":"Freshwater/non-metal/non- plant"},{"$f":"'FW nonmetal nonplant'!C3","v":"Paper and data unique identifier(eg. 1-1,10-150)"},{"$f":"'FW nonmetal nonplant'!E3","v":"234-2"}]
[{"$f":"'FW nonmetal nonplant'!G11","v":"Scores"},{"$f":"'FW nonmetal nonplant'!G12","v":10},{"$f":"'FW nonmetal nonplant'!G15","v":5},{"$f":"'FW nonmetal nonplant'!G18","v":5},{"$f":"'FW nonmetal nonplant'!G21","v":5},{"$f":"'FW nonmetal nonplant'!G23","v":5},{"$f":"'FW nonmetal nonplant'!G26","v":5},{"$f":"'FW nonmetal nonplant'!G29","v":5},{"$f":"'FW nonmetal nonplant'!G32","v":5},{"$f":"'FW nonmetal nonplant'!G35","v":5},{"$f":"'FW nonmetal nonplant'!G38","v":4},{"$f":"'FW nonmetal nonplant'!G41","v":4},{"$f":"'FW nonmetal nonplant'!G44","v":0},{"$f":"'FW nonmetal nonplant'!G47","v":4},{"$f":"'FW nonmetal nonplant'!G50","v":4},{"$f":"'FW nonmetal nonplant'!G53","v":4},{"$f":"'FW nonmetal nonplant'!G57","v":3},{"$f":"'FW nonmetal nonplant'!G60","v":3},{"$f":"'FW nonmetal nonplant'!G63","v":3},{"$f":"'FW nonmetal nonplant'!G66","v":3},{"$f":"'FW nonmetal nonplant'!G72","v":82},{"$f":"'FW nonmetal nonplant'!G74","v":0.90109890109890112},null,{"$f":"'FW nonmetal nonplant'!H74","v":""}]
[{"$f":"'FW nonmetal nonplant'!H11","v":"Answers"},{"$f":"IF('FW nonmetal nonplant'!H12=\"\",\"\",'FW nonmetal nonplant'!H12)","v":"14 d"},{"$f":"IF('FW nonmetal nonplant'!H15=\"\",\"\",'FW nonmetal nonplant'!H15)","v":"Growth (growth rate, µm/day)"},{"$f":"IF('FW nonmetal nonplant'!H18=\"\",\"\",'FW nonmetal nonplant'!H18)","v":"EC10"},{"$f":"IF('FW nonmetal nonplant'!H21=\"\",\"\",'FW nonmetal nonplant'!H21)","v":"10% effect"},{"$f":"IF('FW nonmetal nonplant'!H23=\"\",\"\",'FW nonmetal nonplant'!H23)","v":"control treatment "},{"$f":"IF('FW nonmetal nonplant'!H26=\"\",\"\",'FW nonmetal nonplant'!H26)","v":"2 reps (10 individuals per rep)"},{"$f":"IF('FW nonmetal nonplant'!H29=\"\",\"\",'FW nonmetal nonplant'!H29)","v":"QA criteria stated and and reported"},{"$f":"IF('FW nonmetal nonplant'!H32=\"\",\"\",'FW nonmetal nonplant'!H32)","v":"juvenile (<24-h old)"},{"$f":"IF('FW nonmetal nonplant'!H35=\"\",\"\",'FW nonmetal nonplant'!H35)","v":"Magela Ck water (with 1mM HEPES, 100 NTU suing fine sediment <63µm)"},{"$f":"IF('FW nonmetal nonplant'!H38=\"\",\"\",'FW nonmetal nonplant'!H38)","v":"24-h renewal"},{"$f":"IF('FW nonmetal nonplant'!H41=\"\",\"\",'FW nonmetal nonplant'!H41)","v":"Start and end of test duration at a minimum"},{"$f":"IF('FW nonmetal nonplant'!H44=\"\",\"\",'FW nonmetal nonplant'!H44)","v":"no ref tox tests"},{"$f":"IF('FW nonmetal nonplant'!H47=\"\",\"\",'FW nonmetal nonplant'!H47)","v":"observed (in figures) "},{"$f":"IF('FW nonmetal nonplant'!H50=\"\",\"\",'FW nonmetal nonplant'!H50)","v":"Non-linear 3-parameter log-logistic regression (with box-cox weighting function), CETIS software"},{"$f":"IF('FW nonmetal nonplant'!H53=\"\",\"\",'FW nonmetal nonplant'!H53)","v":"95% CL (0.75-2.68)"},{"$f":"IF('FW nonmetal nonplant'!H57=\"\",\"\",'FW nonmetal nonplant'!H57)","v":"6.02 +/- 0.02 (SD) "},{"$f":"IF('FW nonmetal nonplant'!H60=\"\",\"\",'FW nonmetal nonplant'!H60)","v":"100.6 +/- 1.2%"},{"$f":"IF('FW nonmetal nonplant'!H63=\"\",\"\",'FW nonmetal nonplant'!H63)","v":27.2},{"$f":"IF('FW nonmetal nonplant'!H66=\"\",\"\",'FW nonmetal nonplant'!H66)","v":"ammonium sulfate, analyses of metals and major ions in dilution water "}]
[{"$f":"'FW nonmetal nonplant'!G3","v":"Species (Scientific name)"},{"$f":"'FW nonmetal nonplant'!G4","v":"Lifestage"},{"$f":"'FW nonmetal nonplant'!G5","v":"Exposure duration"},{"$f":"'FW nonmetal nonplant'!G6","v":"Measure of toxicity"},{"$f":"'FW nonmetal nonplant'!G7","v":"Toxicity endpoint"},{"$f":"'FW nonmetal nonplant'!G8","v":"Toxicity value"},{"$f":"'FW nonmetal nonplant'!J2","v":"Taxonomic group"},{"$f":"'FW nonmetal nonplant'!J3","v":"Phylum"},{"$f":"'FW nonmetal nonplant'!J4","v":"Class"},{"$f":"'FW nonmetal nonplant'!J5","v":"Media"},{"$f":"'FW nonmetal nonplant'!J6","v":"Temperature "},{"$f":"'FW nonmetal nonplant'!J7","v":"Acute Or Chronic "},{"$f":"'FW nonmetal nonplant'!J8","v":"PH"},{"$f":"'FW nonmetal nonplant'!J9","v":"Salinity/Conductivity"},{"$f":"'FW nonmetal nonplant'!C4","v":"Citation"},{"$f":"'FW nonmetal nonplant'!G2","v":"Citation No."}]
[{"$f":"'FW nonmetal nonplant'!Q3","v":"Velesunio angasi"},{"$f":"'FW nonmetal nonplant'!T3","v":"Juvenile"},{"$f":"'FW nonmetal nonplant'!W3","v":"14 d"},{"$f":"'FW nonmetal nonplant'!Z3","v":"EC10"},{"$f":"'FW nonmetal nonplant'!AC3","v":"Growth"},{"$f":"IF('FW nonmetal nonplant'!H8=\"\",\"\",'FW nonmetal nonplant'!H8)","v":2.0099999999999998},{"$f":"'FW nonmetal nonplant'!AF3","v":"macroinvertebrate"},{"$f":"'FW nonmetal nonplant'!AI3","v":"Mollusca"},{"$f":"'FW nonmetal nonplant'!AL3","v":"Actinopterygii"},{"$f":"'FW nonmetal nonplant'!AO3","v":"Freshwater"},{"$f":"'FW nonmetal nonplant'!AR3","v":27},{"$f":"'FW nonmetal nonplant'!AU3","v":"Chronic"},{"$f":"'FW nonmetal nonplant'!AX3","v":6},{"$f":"'FW nonmetal nonplant'!BA3","v":"N.A."},{"$f":"IF('FW nonmetal nonplant'!E4=\"\",\"\",'FW nonmetal nonplant'!E4)","v":"Kleinhenz, L.S., Humphrey, C.L., Mooney, T.J., Trenfield, M., van Dam, R.A., Nugegoda, D. and Harford, A.J. (2018-submitted) Chronic toxicity to juveniles of tropical Australian freshwater mussels, (Velesunio spp.) using optimised toxicity test protocol. Environmental Toxicology and Chemsitry (submitted)."},{"$f":"IF('FW nonmetal nonplant'!H2=\"\",\"\",'FW nonmetal nonplant'!H2)","v":"234"}]
[{"$f":"'FW metal nonplant'!B11","v":"No."},{"$f":"'FW metal nonplant'!B13","v":1},{"$f":"'FW metal nonplant'!B16","v":2},{"$f":"'FW metal nonplant'!B19","v":3},{"$f":"'FW metal nonplant'!B21","v":4},{"$f":"'FW metal nonplant'!B23","v":5},{"$f":"'FW metal nonplant'!B26","v":6},{"$f":"'FW metal nonplant'!B29","v":7},{"$f":"'FW metal nonplant'!B32","v":8},{"$f":"'FW metal nonplant'!B35","v":9},{"$f":"'FW metal nonplant'!B39","v":10},{"$f":"'FW metal nonplant'!B42","v":11},{"$f":"'FW metal nonplant'!B45","v":12},{"$f":"'FW metal nonplant'!B48","v":13},{"$f":"'FW metal nonplant'!B51","v":14},{"$f":"'FW metal nonplant'!B53","v":15},{"$f":"'FW metal nonplant'!B58","v":16.100000000000001},{"$f":"'FW metal nonplant'!B61","v":16.2},{"$f":"'FW metal nonplant'!B64","v":16.3},{"$f":"'FW metal nonplant'!B67","v":16.399999999999999},{"$f":"'FW metal nonplant'!B70","v":16.5},{"$f":"'FW metal nonplant'!B73","v":17},{"$f":"'FW metal nonplant'!B76","v":18},{"$f":"'FW metal nonplant'!C81","v":"Total score"},{"$f":"'FW metal nonplant'!C83","v":"Quality Score"}]
[{"$f":"'FW metal nonplant'!C2","v":"Category"},{"$f":"'FW metal nonplant'!E2","v":"Freshwater/metal/non- plant"},{"$f":"'FW metal nonplant'!C3","v":"Paper and data unique identifier(eg. 1-1,10-150)"},{"$f":"'FW metal nonplant'!E3","v":0}]
[{"$f":"'FW metal nonplant'!G11","v":"Scores"},{"$f":"'FW metal nonplant'!G12","v":0},{"$f":"'FW metal nonplant'!G15","v":0},{"$f":"'FW metal nonplant'!G18","v":0},{"$f":"'FW metal nonplant'!G21","v":0},{"$f":"'FW metal nonplant'!G23","v":0},{"$f":"'FW metal nonplant'!G26","v":0},{"$f":"'FW metal nonplant'!G29","v":0},{"$f":"'FW metal nonplant'!G32","v":0},{"$f":"'FW metal nonplant'!G35","v":0},{"$f":"'FW metal nonplant'!G38","v":0},{"$f":"'FW metal nonplant'!G41","v":0},{"$f":"'FW metal nonplant'!G44","v":0},{"$f":"'FW metal nonplant'!G47","v":0},{"$f":"'FW metal nonplant'!G50","v":0},{"$f":"'FW metal nonplant'!G53","v":0},{"$f":"'FW metal nonplant'!G57","v":0},{"$f":"'FW metal nonplant'!G60","v":0},{"$f":"'FW metal nonplant'!G63","v":0},{"$f":"'FW metal nonplant'!G66","v":0},{"$f":"'FW metal nonplant'!G69","v":0},{"$f":"'FW metal nonplant'!G72","v":0},{"$f":"'FW metal nonplant'!G75","v":0},{"$f":"'FW metal nonplant'!G81","v":""},{"$f":"'FW metal nonplant'!G83","v":{"$error":"#N/A"}},{"$f":"'FW metal nonplant'!H83","v":""}]
[{"$f":"'FW metal nonplant'!H11","v":"Answers"},{"$f":"IF('FW metal nonplant'!H12=\"\",\"\",'FW metal nonplant'!H12)","v":""},{"$f":"IF('FW metal nonplant'!H15=\"\",\"\",'FW metal nonplant'!H15)","v":""},{"$f":"IF('FW metal nonplant'!H18=\"\",\"\",'FW metal nonplant'!H18)","v":""},{"$f":"IF('FW metal nonplant'!H21=\"\",\"\",'FW metal nonplant'!H21)","v":""},{"$f":"IF('FW metal nonplant'!H23=\"\",\"\",'FW metal nonplant'!H23)","v":""},{"$f":"IF('FW metal nonplant'!H26=\"\",\"\",'FW metal nonplant'!H26)","v":""},{"$f":"IF('FW metal nonplant'!H29=\"\",\"\",'FW metal nonplant'!H29)","v":""},{"$f":"IF('FW metal nonplant'!H32=\"\",\"\",'FW metal nonplant'!H32)","v":""},{"$f":"IF('FW metal nonplant'!H35=\"\",\"\",'FW metal nonplant'!H35)","v":""},{"$f":"IF('FW metal nonplant'!H38=\"\",\"\",'FW metal nonplant'!H38)","v":""},{"$f":"IF('FW metal nonplant'!H41=\"\",\"\",'FW metal nonplant'!H41)","v":""},{"$f":"IF('FW metal nonplant'!H44=\"\",\"\",'FW metal nonplant'!H44)","v":""},{"$f":"IF('FW metal nonplant'!H47=\"\",\"\",'FW metal nonplant'!H47)","v":""},{"$f":"IF('FW metal nonplant'!H50=\"\",\"\",'FW metal nonplant'!H50)","v":""},{"$f":"IF('FW metal nonplant'!H53=\"\",\"\",'FW metal nonplant'!H53)","v":""},{"$f":"IF('FW metal nonplant'!H57=\"\",\"\",'FW metal nonplant'!H57)","v":""},{"$f":"IF('FW metal nonplant'!H60=\"\",\"\",'FW metal nonplant'!H60)","v":""},{"$f":"IF('FW metal nonplant'!H63=\"\",\"\",'FW metal nonplant'!H63)","v":""},{"$f":"IF('FW metal nonplant'!H66=\"\",\"\",'FW metal nonplant'!H66)","v":""},{"$f":"IF('FW metal nonplant'!H69=\"\",\"\",'FW metal nonplant'!H69)","v":""},{"$f":"IF('FW metal nonplant'!H72=\"\",\"\",'FW metal nonplant'!H72)","v":""},{"$f":"IF('FW metal nonplant'!H75=\"\",\"\",'FW metal nonplant'!H75)","v":""}]
[{"$f":"'FW metal nonplant'!G3","v":"Species (Scientific name)"},{"$f":"'FW metal nonplant'!G4","v":"Lifestage"},{"$f":"'FW metal nonplant'!G5","v":"Exposure duration"},{"$f":"'FW metal nonplant'!G6","v":"Measure of toxicity"},{"$f":"'FW metal nonplant'!G7","v":"Toxicity endpoint"},{"$f":"'FW metal nonplant'!G8","v":"Toxicity value"},{"$f":"'FW metal nonplant'!J2","v":"Taxonomic group"},{"$f":"'FW metal nonplant'!J3","v":"Phylum"},{"$f":"'FW metal nonplant'!J4","v":"Class"},{"$f":"'FW metal nonplant'!J5","v":"Media"},{"$f":"'FW metal nonplant'!J6","v":"Temperature "},{"$f":"'FW metal nonplant'!J7","v":"Acute Or Chronic "},{"$f":"'FW metal nonplant'!J8","v":"PH"},{"$f":"'FW metal nonplant'!J9","v":"Salinity/Conductivity"},{"$f":"'FW metal nonplant'!C4","v":"Citation"},{"$f":"'FW metal nonplant'!G2","v":"Citation No."}]
[{"$f":"'FW metal nonplant'!Q3","v":""},{"$f":"'FW metal nonplant'!T3","v":""},{"$f":"'FW metal nonplant'!W3","v":""},{"$f":"'FW metal nonplant'!Z3","v":""},{"$f":"'FW metal nonplant'!AC3","v":""},{"$f":"IF('FW metal nonplant'!H8=\"\",\"\",'FW metal nonplant'!H8)","v":""},{"$f":"'FW metal nonplant'!AF3","v":""},{"$f":"'FW metal nonplant'!AI3","v":""},{"$f":"'FW metal nonplant'!AL3","v":""},{"$f":"'FW metal nonplant'!AO3","v":""},{"$f":"'FW metal nonplant'!AR3","v":""},{"$f":"'FW metal nonplant'!AU3","v":""},{"$f":"'FW metal nonplant'!AX3","v":""},{"$f":"'FW metal nonplant'!BA3","v":"N.A."},{"$f":"IF('FW metal nonplant'!E4=\"\",\"\",'FW metal nonplant'!E4)","v":""},{"$f":"IF('FW metal nonplant'!H2=\"\",\"\",'FW metal nonplant'!H2)","v":0}]
[{"$f":"'MEW nonplant'!B11","v":"No."},{"$f":"'MEW nonplant'!B13","v":1},{"$f":"'MEW nonplant'!B16","v":2},{"$f":"'MEW nonplant'!B19","v":3},{"$f":"'MEW nonplant'!B21","v":4},{"$f":"'MEW nonplant'!B23","v":5},{"$f":"'MEW nonplant'!B26","v":6},{"$f":"'MEW nonplant'!B29","v":7},{"$f":"'MEW nonplant'!B32","v":8},{"$f":"'MEW nonplant'!B35","v":9},{"$f":"'MEW nonplant'!B39","v":10},{"$f":"'MEW nonplant'!B42","v":11},{"$f":"'MEW nonplant'!B45","v":12},{"$f":"'MEW nonplant'!B48","v":13},{"$f":"'MEW nonplant'!B51","v":14},{"$f":"'MEW nonplant'!B53","v":15},{"$f":"'MEW nonplant'!B58","v":16.100000000000001},{"$f":"'MEW nonplant'!B61","v":16.2},{"$f":"'MEW nonplant'!B64","v":16.3},{"$f":"'MEW nonplant'!B67","v":17},{"$f":"'MEW nonplant'!B70","v":18},{"$f":"'MEW nonplant'!C75","v":"Total score"},{"$f":"'MEW nonplant'!C77","v":"Quality Score"}]
[{"$f":"'MEW nonplant'!C2","v":"Category"},{"$f":"'MEW nonplant'!E2","v":"MEW_nonplant"},{"$f":"'MEW nonplant'!C3","v":"Paper and data unique identifier(eg. 1-1,10-150)"},{"$f":"'MEW nonplant'!E3","v":0}]
[{"$f":"'MEW nonplant'!G11","v":"Scores"},{"$f":"'MEW nonplant'!G12","v":0},{"$f":"'MEW nonplant'!G15","v":0},{"$f":"'MEW nonplant'!G18","v":0},{"$f":"'MEW nonplant'!G21","v":0},{"$f":"'MEW nonplant'!G23","v":0},{"$f":"'MEW nonplant'!G26","v":0},{"$f":"'MEW nonplant'!G29","v":0},{"$f":"'MEW nonplant'!G32","v":0},{"$f":"'MEW nonplant'!G35","v":0},{"$f":"'MEW nonplant'!G38","v":0},{"$f":"'MEW nonplant'!G41","v":0},{"$f":"'MEW nonplant'!G44","v":0},{"$f":"'MEW nonplant'!G47","v":0},{"$f":"'MEW nonplant'!G50","v":0},{"$f":"'MEW nonplant'!G53","v":0},{"$f":"'MEW nonplant'!G57","v":0},{"$f":"'MEW nonplant'!G60","v":0},{"$f":"'MEW nonplant'!G63","v":0},{"$f":"'MEW nonplant'!G66","v":0},{"$f":"'MEW nonplant'!G69","v":0},{"$f":"'MEW nonplant'!G75","v":""},{"$f":"'MEW nonplant'!G77","v":{"$error":"#N/A"}},{"$f":"'MEW nonplant'!H77","v":""}]
[{"$f":"'MEW nonplant'!H11","v":"Answers"},{"$f":"IF('MEW nonplant'!H12=\"\",\"\",'MEW nonplant'!H12)","v":""},{"$f":"IF('MEW nonplant'!H15=\"\",\"\",'MEW nonplant'!H15)","v":""},{"$f":"IF('MEW nonplant'!H18=\"\",\"\",'MEW nonplant'!H18)","v":""},{"$f":"IF('MEW nonplant'!H21=\"\",\"\",'MEW nonplant'!H21)","v":""},{"$f":"IF('MEW nonplant'!H23=\"\",\"\",'MEW nonplant'!H23)","v":""},{"$f":"IF('MEW nonplant'!H26=\"\",\"\",'MEW nonplant'!H26)","v":""},{"$f":"IF('MEW nonplant'!H29=\"\",\"\",'MEW nonplant'!H29)","v":""},{"$f":"IF('MEW nonplant'!H32=\"\",\"\",'MEW nonplant'!H32)","v":""},{"$f":"IF('MEW nonplant'!H35=\"\",\"\",'MEW nonplant'!H35)","v":""},{"$f":"IF('MEW nonplant'!H38=\"\",\"\",'MEW nonplant'!H38)","v":""},{"$f":"IF('MEW nonplant'!H41=\"\",\"\",'MEW nonplant'!H41)","v":""},{"$f":"IF('MEW nonplant'!H44=\"\",\"\",'MEW nonplant'!H44)","v":""},{"$f":"IF('MEW nonplant'!H47=\"\",\"\",'MEW nonplant'!H47)","v":""},{"$f":"IF('MEW nonplant'!H50=\"\",\"\",'MEW nonplant'!H50)","v":""},{"$f":"IF('MEW nonplant'!H53=\"\",\"\",'MEW nonplant'!H53)","v":""},{"$f":"IF('MEW nonplant'!H57=\"\",\"\",'MEW nonplant'!H57)","v":""},{"$f":"IF('MEW nonplant'!H60=\"\",\"\",'MEW nonplant'!H60)","v":""},{"$f":"IF('MEW nonplant'!H63=\"\",\"\",'MEW nonplant'!H63)","v":""},{"$f":"IF('MEW nonplant'!H66=\"\",\"\",'MEW nonplant'!H66)","v":""},{"$f":"IF('MEW nonplant'!H69=\"\",\"\",'MEW nonplant'!H69)","v":""}]
[{"$f":"'MEW nonplant'!G3","v":"Species (Scientific name)"},{"$f":"'MEW nonplant'!G4","v":"Lifestage"},{"$f":"'MEW nonplant'!G5","v":"Exposure duration"},{"$f":"'MEW nonplant'!G6","v":"Measure of toxicity"},{"$f":"'MEW nonplant'!G7","v":"Toxicity endpoint"},{"$f":"'MEW nonplant'!G8","v":"Toxicity value"},{"$f":"'MEW nonplant'!J2","v":"Taxonomic group"},{"$f":"'MEW nonplant'!J3","v":"Phylum"},{"$f":"'MEW nonplant'!J4","v":"Class"},{"$f":"'MEW nonplant'!J5","v":"Media"},{"$f":"'MEW nonplant'!J6","v":"Temperature "},{"$f":"'MEW nonplant'!J7","v":"Acute Or Chronic "},{"$f":"'MEW nonplant'!J8","v":"PH"},{"$f":"'MEW nonplant'!J9","v":"Salinity/Conductivity"},{"$f":"'MEW nonplant'!C4","v":"Citation"},{"$f":"'MEW nonplant'!G2","v":"Citation No."}]
[{"$f":"'MEW nonplant'!Q3","v":""},{"$f":"'MEW nonplant'!T3","v":""},{"$f":"'MEW nonplant'!W3","v":""},{"$f":"'MEW nonplant'!Z3","v":""},{"$f":"'MEW nonplant'!AC3","v":""},{"$f":"IF('MEW nonplant'!H8=\"\",\"\",'MEW nonplant'!H8)","v":""},{"$f":"'MEW nonplant'!AF3","v":""},{"$f":"'MEW nonplant'!AI3","v":""},{"$f":"'MEW nonplant'!AL3","v":""},{"$f":"'MEW nonplant'!AO3","v":""},{"$f":"'MEW nonplant'!AR3","v":""},{"$f":"'MEW nonplant'!AU3","v":""},{"$f":"'MEW nonplant'!AX3","v":""},{"$f":"'MEW nonplant'!BA3","v":""},{"$f":"IF('MEW nonplant'!E4=\"\", \"\",'MEW nonplant'!E4)","v":""},{"$f":"IF('MEW nonplant'!H2=\"\", \"\",'MEW nonplant'!H2)","v":0}]
[{"$f":"'MEW plant'!B11","v":"No."},{"$f":"'MEW plant'!B13","v":1},{"$f":"'MEW plant'!B16","v":2},{"$f":"'MEW plant'!B19","v":3},{"$f":"'MEW plant'!B21","v":4},{"$f":"'MEW plant'!B23","v":5},{"$f":"'MEW plant'!B26","v":6},{"$f":"'MEW plant'!B29","v":7},{"$f":"'MEW plant'!B32","v":8},{"$f":"'MEW plant'!B35","v":9},{"$f":"'MEW plant'!B39","v":10},{"$f":"'MEW plant'!B42","v":11},{"$f":"'MEW plant'!B45","v":12},{"$f":"'MEW plant'!B48","v":13},{"$f":"'MEW plant'!B51","v":14},{"$f":"'MEW plant'!B53","v":15},{"$f":"'MEW plant'!B57","v":16.100000000000001},{"$f":"'MEW plant'!B61","v":16.2},{"$f":"'MEW plant'!B64","v":17},{"$f":"'MEW plant'!B67","v":18},{"$f":"'MEW plant'!C72","v":"Total score"},{"$f":"'MEW plant'!C74","v":"Quality Score"}]
[{"$f":"'MEW plant'!C2","v":"Category"},{"$f":"'MEW plant'!E2","v":"MEW_plant"},{"$f":"'MEW plant'!C3","v":"Paper and data unique identifier(eg. 1-1,10-150)"},{"$f":"'MEW plant'!E3","v":0}]
[{"$f":"'MEW plant'!G11","v":"Scores"},{"$f":"'MEW plant'!G12","v":0},{"$f":"'MEW plant'!G15","v":0},{"$f":"'MEW plant'!G18","v":0},{"$f":"'MEW plant'!G21","v":0},{"$f":"'MEW plant'!G23","v":0},{"$f":"'MEW plant'!G26","v":0},{"$f":"'MEW plant'!G29","v":0},{"$f":"'MEW plant'!G32","v":0},{"$f":"'MEW plant'!G35","v":0},{"$f":"'MEW plant'!G38","v":0},{"$f":"'MEW plant'!G41","v":0},{"$f":"'MEW plant'!G44","v":0},{"$f":"'MEW plant'!G47","v":0},{"$f":"'MEW plant'!G50","v":0},{"$f":"'MEW plant'!G53","v":0},{"$f":"'MEW plant'!G57","v":0},{"$f":"'MEW plant'!G61","v":0},{"$f":"'MEW plant'!G64","v":0},{"$f":"'MEW plant'!G67","v":0},{"$f":"'MEW plant'!G72","v":""},{"$f":"'MEW plant'!G74","v":{"$error":"#N/A"}},{"$f":"'MEW plant'!H74","v":""}]
[{"$f":"'MEW plant'!H11","v":"Answers"},{"$f":"IF('MEW plant'!H12=\"\",\"\",'MEW plant'!H12)","v":""},{"$f":"IF('MEW plant'!H15=\"\",\"\",'MEW plant'!H15)","v":""},{"$f":"IF('MEW plant'!H18=\"\",\"\",'MEW plant'!H18)","v":""},{"$f":"IF('MEW plant'!H21=\"\",\"\",'MEW plant'!H21)","v":""},{"$f":"IF('MEW plant'!H23=\"\",\"\",'MEW plant'!H23)","v":""},{"$f":"IF('MEW plant'!H26=\"\",\"\",'MEW plant'!H26)","v":""},{"$f":"IF('MEW plant'!H29=\"\",\"\",'MEW plant'!H29)","v":""},{"$f":"IF('MEW plant'!H32=\"\",\"\",'MEW plant'!H32)","v":""},{"$f":"IF('MEW plant'!H35=\"\",\"\",'MEW plant'!H35)","v":""},{"$f":"IF('MEW plant'!H38=\"\",\"\",'MEW plant'!H38)","v":""},{"$f":"IF('MEW plant'!H41=\"\",\"\",'MEW plant'!H41)","v":""},{"$f":"IF('MEW plant'!H44=\"\",\"\",'MEW plant'!H44)","v":""},{"$f":"IF('MEW plant'!H47=\"\",\"\",'MEW plant'!H47)","v":""},{"$f":"IF('MEW plant'!H50=\"\",\"\",'MEW plant'!H50)","v":""},{"$f":"IF('MEW plant'!H53=\"\",\"\",'MEW plant'!H53)","v":""},{"$f":"IF('MEW plant'!H57=\"\",\"\",'MEW plant'!H57)","v":""},{"$f":"IF('MEW plant'!H60=\"\",\"\",'MEW plant'!H60)","v":""},{"$f":"IF('MEW plant'!H63=\"\",\"\",'MEW plant'!H63)","v":""},{"$f":"IF('MEW plant'!H66=\"\",\"\",'MEW plant'!H66)","v":""}]
[{"$f":"'MEW plant'!G3","v":"Species (Scientific name)"},{"$f":"'MEW plant'!G4","v":"Lifestage"},{"$f":"'MEW plant'!G5","v":"Exposure duration"},{"$f":"'MEW plant'!G6","v":"Measure of toxicity"},{"$f":"'MEW plant'!G7","v":"Toxicity endpoint"},{"$f":"'MEW plant'!G8","v":"Toxicity value"},{"$f":"'MEW plant'!J2","v":"Taxonomic group"},{"$f":"'MEW plant'!J3","v":"Phylum"},{"$f":"'MEW plant'!J4","v":"Class"},{"$f":"'MEW plant'!J5","v":"Media"},{"$f":"'MEW plant'!J6","v":"Temperature "},{"$f":"'MEW plant'!J7","v":"Acute Or Chronic "},{"$f":"'MEW plant'!J8","v":"PH"},{"$f":"'MEW plant'!J9","v":"Salinity/Conductivity"},{"$f":"'MEW plant'!C4","v":"Citation"},{"$f":"'MEW plant'!G2","v":"Citation No."}]
[{"$f":"'MEW plant'!Q3","v":""},{"$f":"'MEW plant'!T3","v":""},{"$f":"'MEW plant'!W3","v":""},{"$f":"'MEW plant'!Z3","v":""},{"$f":"'MEW plant'!AC3","v":""},{"$f":"IF('MEW plant'!H8=\"\",\"\",'MEW plant'!H8)","v":""},{"$f":"'MEW plant'!AF3","v":""},{"$f":"'MEW plant'!AI3","v":""},{"$f":"'MEW plant'!AL3","v":""},{"$f":"'MEW plant'!AO3","v":""},{"$f":"'MEW plant'!AR3","v":""},{"$f":"'MEW plant'!AU3","v":""},{"$f":"'MEW plant'!AX3","v":""},{"$f":"'MEW plant'!BA3","v":""},{"$f":"IF('MEW plant'!E4=\"\",\"\",'MEW plant'!E4)","v":""},{"$f":"IF('MEW plant'!H2=\"\",\"\",'MEW plant'!H2)","v":0}]

{"sheet":"FW metal nonplant","index":5,"n_rows":90,"n_cols":54,"rows_kept":90,"cut":false,"hidden":false,"merged":[[3,4,7,4],[9,2,9,4],[11,2,13,2],[11,7,13,7],[14,2,16,2],[14,7,16,7],[17,2,19,2],[17,7,19,7],[20,2,21,2],[20,7,21,7],[22,2,24,2],[22,7,24,7],[25,2,27,2],[25,7,27,7],[28,2,30,2],[28,7,30,7],[31,2,33,2],[31,7,33,7],[34,2,36,2],[34,7,36,7],[37,2,39,2],[37,7,39,7],[40,2,42,2],[40,7,42,7],[43,2,45,2],[43,7,45,7],[46,2,48,2],[46,7,48,7],[49,2,51,2],[49,7,51,7],[62,7,64,7],[74,2,77,2],[74,7,77,7],[52,2,54,2],[52,7,54,7],[56,7,58,7],[65,7,67,7],[68,7,70,7],[71,2,73,2],[71,7,73,7],[59,7,61,7]]}
[null,1,"Fill in the blank cells below, based on information provided in the paper being assessed. You can either pick an option from the dropdown list or add the appropriate detail using the 'Add to list' button. ",null,null,null,null,null,null,null,null,null,null,null,"* All the text in RED are used for drop down list ,make changes with caution."]
[null,null,"Category",{"$f":"IF(AF3=\"\",0,1)","v":0},"Freshwater/metal/non- plant",{"$f":"IF(E3=\"\",0,1)","v":0},"Citation No.",{"$f":"IF(ISERROR(FIND(\"-\",E3)),E3,LEFT(E3,FIND(\"-\",E3)-1))","v":0},null,"Taxonomic group",null,null,null,null,"Species",null,null,"Lifestage",null,null,"Exposure duration",null,null,"Measure of toxicity",null,null,"Toxicity endpoint",null,null,"Taxonomic group",null,null,"Phylum",null,null,"Class",null,null,"Media",null,null,"Temperature ",null,null,"Acute Or Chronic",null,null,"PH",null,null,"Salinity/Comdictivity"]
[null,null,"Paper and data unique identifier(eg. 1-1,10-150)",{"$f":"IF(AI3=\"\",0,1)","v":0},null,{"$f":"IF(E4=\"\",0,1)","v":0},"Species (Scientific name)",null,null,"Phylum",null,null,null,null,"Aedes albopictus",0,{"$f":"IF(P3=0,\"\",INDEX(O3:O111,P3))","v":""},"1 month",0,{"$f":"IF(S3=0,\"\",INDEX(R3:R111,S3))","v":""},"11 hour",0,{"$f":"IF(V3=0,\"\",INDEX(U3:U111,V3))","v":""},"LC50",0,{"$f":"IF(Y3=0,\"\",INDEX(X3:X111,Y3))","v":""},"Mortality",0,{"$f":"IF(AB3=0,\"\",INDEX(AA3:AA111,AB3))","v":""},"Fish",0,{"$f":"IF(AE3=0,\"\",INDEX(AD3:AD111,AE3))","v":""},"Chlorophyta",0,{"$f":"IF(AH3=0,\"\",INDEX(AG3:AG111,AH3))","v":""},"Branchiopoda",0,{"$f":"IF(AK3=0,\"\",INDEX(AJ3:AJ111,AK3))","v":""},"Freshwater",0,{"$f":"IF(AN3=0,\"\",INDEX(AM3:AM111,AN3))","v":""},"15°C",0,{"$f":"IF(AQ3=0,\"\",INDEX(AP3:AP111,AQ3))","v":""},"Acute ",0,{"$f":"IF(AT3=0,\"\",INDEX(AS3:AS111,AT3))","v":""},"N.A.",0,{"$f":"IF(AW3=0,\"\",INDEX(AV3:AV111,AW3))","v":""},null,null,"N.A.",1]
[null,null,"Citation",{"$f":"IF(AL3=\"\",0,1)","v":0},null,{"$f":"IF(H8=\"\",0,1)","v":0},"Lifestage",null,null,"Class",null,null,null,null,"Australian Bass",null,null,"1 year old",null,null,"13 days",null,null,"N.A.",null,null,"N.A.",null,null,"Microalga",null,null,"N.A.",null,null,"Chlorophyceae",null,null,"Marinewater",null,null,"25°C",null,null,"Chronic",null,null,"PH11"]
[null,null,null,{"$f":"IF(AO3=\"\",0,1)","v":0},null,{"$f":"IF(AX3=\"\",0,1)","v":0},"Exposure duration",null,null,"Media",null,null,null,null,"N.A.",null,null,"N.A.",null,null,"N.A.",null,null,"NOEC",null,null,"Reproduction",null,null,"N.A.",null,null,"Tracheophyta",null,null,"N.A.",null,null,"N.A.",null,null,"N.A.",null,null,"N.A.",null,null,"PH7.0"]
[null,null,null,{"$f":"IF(AR3=\"\",0,1)","v":0},null,{"$f":"IF(Q3=\"\",0,1)","v":0},"Measure of toxicity",null,null,"Temperature "]
[null,null,null,{"$f":"IF(AU3=\"\",0,1)","v":0},null,{"$f":"IF(T3=\"\",0,1)","v":0},"Toxicity endpoint",null,null,"Acute Or Chronic "]
[null,null,null,null,null,{"$f":"IF(W3=\"\",0,1)","v":0},"Toxicity value",null,null,"PH"]
[null,2,"Select the appropriate answer option to each question. Comments can be added to the cells in column H.",null,null,{"$f":"IF(Z3=\"\",0,1)","v":0},null,null,null,"Salinity/Conductivity","N.A."]
[null,"*","If the selected answer option does not work try clicking on any other cell first and then click back on the answer option again.",null,null,{"$f":"IF(AC3=\"\",0,1)","v":0}]
[null,"No.","Question","Marks Awarded","Answer Options","Option References","Scores","Answers"]
[null,null,"Was the duration of the exposure stated (e.g. 48 or 96 h)?",10,null,0,{"$f":"IF(F15=0,0,INDEX($D12:$D13,F12,1))","v":0}]
[null,1,null,0]
[]
[null,null,"Was the biological endpoint (e.g. immobilization or population growth) stated and defined (10 marks)? Award 5 marks if the biological endpoint is only stated.",10,null,0,{"$f":"IF(F15=0,0,INDEX($D15:$D17,F15,1))","v":0}]
[null,2,null,5]
[null,null,null,0]
[null,null,"Was the biological effect stated (e.g. LC or NOEC)?",5,null,0,{"$f":"IF(F18=0,0,INDEX($D18:$D19,F18,1))","v":0}]
[null,3,null,0]
[]
[null,4,"Was the biological effect quantified (e.g. 50% effect, 25% effect)? \nNote: The effect for NOEC and LOEC data must be quantified.",5,null,0,{"$f":"IF(F21=0,0,INDEX($D21:$D22,F21,1))","v":0}]
[null,null,null,0]
[null,5,"Were appropriate controls (e.g. a no-toxicant control and/or solvent control) used?",5,null,0,{"$f":"IF(F23=0,0,INDEX($D23:$D24,F23,1))","v":0}]
[null,null,null,0]
[]
[null,6,"Was each control and contaminant concentration at least duplicated?",5,null,0,{"$f":"IF(F26=0,0,INDEX($D26:$D27,F26,1))","v":0}]
[null,null,null,0]
[]
[null,7,"Were test acceptability criteria stated (e.g. mortality in controls must not exceed a certain percentage) (5 marks)?\nOR Were test acceptability criteria inferred (e.g. test method used [USEPA, OECD, ASTM etc.]) (award 2 marks). \nNote: Data that fail the acceptability criteria are automatically deemed to be of unacceptable quality and must not be used. ",5,null,0,{"$f":"IF(F29=0,0,INDEX($D29:$D31,F29,1))","v":0}]
[null,null,null,2]
[null,null,null,0]
[null,8,"Were the characteristics of the test organism (e.g. length, mass, age) stated?",5,null,0,{"$f":"IF(F32=0,0,INDEX($D32:$D34,F32,1))","v":0}]
[null,null,null,0]
[]
[null,9,"Was the type of test media used stated?",5,null,0,{"$f":"IF(F35=0,0,INDEX($D35:$D37,F35,1))","v":0}]
[null,null,null,0]
[]
[null,null,"Was the type of exposure (e.g. static, flow through) stated? ",4,null,0,{"$f":"IF(F38=0,0,INDEX($D38:$D40,F38,1))","v":0}]
[null,10,null,0]
[]
[null,null,"Were the contaminant concentrations measured at the beginning and end of the exposure (4 marks)? Award 2 marks if they were measured only once during the test.\nNote: If the concentrations were not measured then automatically the data cannot be high quality. ",4,null,0,{"$f":"IF(F41=0,0,INDEX($D41:$D43,F41,1))","v":0}]
[null,11,null,2]
[null,null,null,0]
[null,null,"Were parallel reference toxicant toxicity tests conducted?",4,null,0,{"$f":"IF(F44=0,0,INDEX($D44:$D46,F44,1))","v":0}]
[null,12,null,0]
[]
[null,null,"Was there a concentration–response relationship either observable or stated?",4,null,0,{"$f":"IF(F47=0,0,INDEX($D47:$D49,F47,1))","v":0}]
[null,13,null,0]
[]
[null,null,"Was an appropriate statistical method or model used to determine the toxicity?\nNote: They should be accepted by a recognised national or international regulatory body (e.g. USEPA, OECD, ASTM). ",4,null,0,{"$f":"IF(F50=0,0,INDEX($D50:$D52,F50,1))","v":0}]
[null,14,null,0]
[]
[null,15,"For LC/EC/BEC data was an estimate of variability provided? \nOR \nFor NO EC/LOEC data was the significance level 0.05 or less?  \n\n",4,null,0,{"$f":"IF(F53=0,0,INDEX($D53:$D55,F53,1))","v":0}]
[null,null,null,0]
[]
[null,16,"Were the following parameters measured and stated? (3 marks if measured and stated, 1 mark if just measured)."]
[null,null,null,3,null,0,{"$f":"IF(F57=0,0,INDEX($D57:$D59,F57,1))","v":0}]
[null,16.100000000000001,"pH",1]
[null,null,null,0]
[null,null,null,3,null,0,{"$f":"IF(F60=0,0,INDEX($D60:$D62,F60,1))","v":0}]
[null,16.2,"Hardness",1]
[null,null,null,0]
[null,null,null,3,null,0,{"$f":"IF(F63=0,0,INDEX($D63:$D65,F63,1))","v":0}]
[null,16.3,"Alkalinity",1]
[null,null,null,0]
[null,null,null,3,null,0,{"$f":"IF(F66=0,0,INDEX($D66:$D68,F66,1))","v":0}]
[null,16.399999999999999,"Organic carbon concentration",1]
[null,null,null,0]
[null,null,null,3,null,0,{"$f":"IF(F69=0,0,INDEX($D69:$D71,F69,1))","v":0}]
[null,16.5,"Dissolved Oxygen",1]
[null,null,null,0]
[null,null,"Was the temperature measured and stated (3 marks)? Award 1 mark if the temperature was measured but not stated or if only the temperature settings of the room or chamber are stated.",3,null,0,{"$f":"IF(F72=0,0,INDEX($D72:$D74,F72,1))","v":0}]
[null,17,null,1]
[null,null,null,0]
[null,null,"Were test solutions, blanks and/or controls tested for contamination OR were analytical reagent grade chemicals used or the highest possible purity chemicals used for the experiment? (3 marks).",3,null,0,{"$f":"IF(F75=0,0,INDEX($D75:$D76,F75,1))","v":0}]
[null,18,null,0]
[]
[null,null,null,null,null,null,null,null,{"$f":"(COUNTIF(F12:F76,\"=0\"))+COUNTIF(F2:F10,\"=0\")+COUNTIF(D2:D7,\"=0\")","v":37}]
[]
[]
[null,null,"Total score",null,null,null,{"$f":"IF(SUM(G12:G75)=0,\"\",SUM(G12:G75))","v":""}]
[null,null,"Total Max. possible score for the various types of data and contaminants ",null,{"$f":"D12+D15+D18+D21+D23+D26+D29+D32+D35+D38+D41+D44+D47+D50+D53+D57+D66+D69+D72+D75+D63+D60","v":100}]
[null,null,"Quality Score",null,{"$f":"\"= [Total score / Total possible score] * 100 = \"","v":"= [Total score / Total possible score] * 100 = "},null,{"$f":"IF(ISERROR(G81/E82),#N/A,G81/E82)","v":{"$error":"#N/A"}},{"$f":"IF(F41=3,\"The highest possible grade for this datum is acceptable.\",\"\")","v":""}]
[]
[null,null,"H = high quality                           Quality score ≥ 80%     "]
[null,null,"A = acceptable quality         > 50% Quality score < 80%  "]
[null,null,"U = unacceptable quality              Quality score ≤ 50% "]
[]
[3,null,"Click the 'Save & Update' button to save and export the answers to the 'All results' worksheet. "]
[null,null,"Select the 'Reset Answers' button if you wish to clear all answers."]

{"sheet":"FW metal nonplant_WS","index":6,"n_rows":5,"n_cols":25,"rows_kept":5,"cut":false,"hidden":false,"merged":[]}
[]
["Question No.",1,2,3,4,5,6,7,8,9,10,11,12,13,14,15,16.100000000000001,16.2,16.3,16.399999999999999,16.600000000000001,17,18,"Total Score","Quality Score"]
["Short Questions","Duration of the exposure ","Biological endpoint","Biological effect stated or not","Biological effect quantified or not","Appropriate controls","Control & contaminant concentration","Test acceptability criteria","Characteristics of the test organism"," Type of test media","Type of exposure","Contaminant concentrations","Parallel reference toxicant toxicity tests","Concentration–response relationship","Determine the toxicity","NOEC/LOEC or LC/EC/BEC","pH","Hardness","Alkalinity","Organic carbon concentration","Dissolved Oxygen","Temperature","Grade or purity"]
["Marks Awarded ","10 or 0","10,5 or 0","5 or 0 ","5 or 0 ","5 or 0 ","5 or 0 ","5 or 0 ","5 or 0 ","5 or 0 ","4 or 0","4 or 2 or 0","4 or 2","4 or 2","4 or 2","4 or 2","3 or 1 or 0","3 or 1 or 0","3 or 1 or 0","3 or 1 or 0","3 or 1 or 0","3 or 0","3 or 0 "]
["Max. Possible Score",10,10,5,5,5,5,5,5,5,4,4,4,4,4,4,3,3,3,3,3,3,3,{"$f":"SUM(B5:W5)","v":100}]

{"sheet":"FW nonmetal nonplant","index":7,"n_rows":81,"n_cols":53,"rows_kept":81,"cut":false,"hidden":false,"merged":[[3,4,7,4],[9,2,9,4],[11,2,13,2],[11,7,13,7],[14,2,16,2],[14,7,16,7],[17,2,19,2],[17,7,19,7],[20,2,21,2],[20,7,21,7],[22,2,24,2],[22,7,24,7],[25,2,27,2],[25,7,27,7],[28,2,30,2],[28,7,30,7],[31,2,33,2],[31,7,33,7],[34,2,36,2],[34,7,36,7],[37,2,39,2],[37,7,39,7],[40,2,42,2],[40,7,42,7],[43,2,45,2],[43,7,45,7],[46,2,48,2],[46,7,48,7],[49,2,51,2],[49,7,51,7],[65,2,68,2],[65,7,68,7],[59,7,61,7],[52,2,54,2],[52,7,54,7],[56,7,58,7],[62,2,64,2],[62,7,64,7]]}
[null,1,"Fill in the blank cells below, based on information provided in the paper being assessed. You can either pick an option from the dropdown list or add the appropriate detail using the 'Add to list' button. ",null,null,null,null,null,null,null,null,null,null,null,"* All the text in RED are used for drop down list ,make changes with caution."]
[null,null,"Category",{"$f":"IF(AF3=\"\",0,1)","v":1},"Freshwater/non-metal/non- plant",{"$f":"IF(E3=\"\",0,1)","v":1},"Citation No.",{"$f":"IF(ISERROR(FIND(\"-\",E3)),E3,LEFT(E3,FIND(\"-\",E3)-1))","v":"234"},null,"Taxonomic group",null,null,null,null,"Species",null,null,"Lifestage",null,null,"Exposure duration",null,null,"Measure of toxicity",null,null,"Toxicity endpoint",null,null,"Taxonomic group",null,null,"Phylum",null,null,"Class",null,null,"Media",null,null,"Temperature ",null,null,"Acute Or Chronic",null,null,"PH",null,null,"Salinity/Comdictivity"]
[null,null,"Paper and data unique identifier(eg. 1-1,10-150)",{"$f":"IF(AI3=\"\",0,1)","v":1},"234-2",{"$f":"IF(E4=\"\",0,1)","v":1},"Species (Scientific name)",null,null,"Phylum",null,null,null,null,"Aedes albopictus",22,{"$f":"IF(P3=0,\"\",INDEX(O3:O102,P3))","v":"Velesunio angasi"},"1 month",10,{"$f":"IF(S3=0,\"\",INDEX(R3:R102,S3))","v":"Juvenile"},"~17 d",8,{"$f":"IF(V3=0,\"\",INDEX(U3:U102,V3))","v":"14 d"},"EC20",11,{"$f":"IF(Y3=0,\"\",INDEX(X3:X102,Y3))","v":"EC10"},"Biomass",16,{"$f":"IF(AB3=0,\"\",INDEX(AA3:AA102,AB3))","v":"Growth"},"Amphibian",10,{"$f":"IF(AE3=0,\"\",INDEX(AD3:AD102,AE3))","v":"macroinvertebrate"},"Arthropoda",8,{"$f":"IF(AH3=0,\"\",INDEX(AG3:AG102,AH3))","v":"Mollusca"},"Actinopterygii",1,{"$f":"IF(AK3=0,\"\",INDEX(AJ3:AJ102,AK3))","v":"Actinopterygii"},"Freshwater",1,{"$f":"IF(AN3=0,\"\",INDEX(AM3:AM102,AN3))","v":"Freshwater"},8.6,19,{"$f":"IF(AQ3=0,\"\",INDEX(AP3:AP102,AQ3))","v":27},7.85,4,{"$f":"IF(AT3=0,\"\",INDEX(AS3:AS102,AT3))","v":"Chronic"},6.7,35,{"$f":"IF(AW3=0,\"\",INDEX(AV3:AV102,AW3))","v":6},null,null,"N.A."]
[null,null,"Citation",{"$f":"IF(AL3=\"\",0,1)","v":1},"Kleinhenz, L.S., Humphrey, C.L., Mooney, T.J., Trenfield, M., van Dam, R.A., Nugegoda, D. and Harford, A.J. (2018-submitted) Chronic toxicity to juveniles of tropical Australian freshwater mussels, (Velesunio spp.) using optimised toxicity test protocol. Environmental Toxicology and Chemsitry (submitted).",{"$f":"IF(H8=\"\",0,1)","v":1},"Lifestage",null,null,"Class",null,null,null,null,"Australian Bass",null,null,"1 year old",null,null,"~21 d",null,null,"LC1",null,null,"Condition factor (K)",null,null,"Amphipod",null,null,"Chlorophyta",null,null,"Amphibia",null,null,"Marinewater",null,null,11,null,null,21,null,null,7.28]
[null,null,null,{"$f":"IF(AO3=\"\",0,1)","v":1},null,{"$f":"IF(W3=\"\",0,1)","v":1},"Exposure duration",null,null,"Media",null,null,null,null,"Ceriodaphnia dubia (Aust isol)",null,null,"Adult",null,null,"~38 d",null,null,"LC15",null,null,"Growth (specific growth rate)",null,null,"Fish",null,null,"Chordata",null,null,"Branchiopoda",null,null,"N.A.",null,null,11.4,null,null,"Acute ",null,null,7.4]
[null,null,null,{"$f":"IF(AR3=\"\",0,1)","v":1},null,{"$f":"IF(Q3=\"\",0,1)","v":1},"Measure of toxicity",null,null,"Temperature ",null,null,null,null,"Cyprinus carpio",null,null,"Adult (4 weeks old)",null,null,"10 d",null,null,"LC20",null,null,"Hatching success",null,null,"Microalga",null,null,"N.A.",null,null,"Chlorophyceae  ",null,null,null,null,null,12,null,null,"Chronic",null,null,7.62]
[null,null,null,{"$f":"IF(AU3=\"\",0,1)","v":1},null,{"$f":"IF(T3=\"\",0,1)","v":1},"Toxicity endpoint",null,null,"Acute Or Chronic ",null,null,null,null,"Deleatidium sp.",null,null,"Eggs",null,null,"10 weeks",null,null,"LC50",null,null,"hatching to swimming fry",null,null,"Microcrustacean",null,null,"Tracheophyta",null,null,"Malacostraca",null,null,null,null,null,13,null,null,"N.A.",null,null,7.72]
[null,null,null,null,null,{"$f":"IF(W3=\"\",0,1)","v":1},"Toxicity value",2.0099999999999998,null,"PH",null,null,null,null,"Deltistes luxatus",null,null,"Eggs (fertilised)",null,null,"11 hour",null,null,"N.A.",null,null,"Length",null,null,"N.A.",null,null,"Cnidaria",null,null,"N.A.",null,null,null,null,null,14.5,null,null,null,null,null,7.75]
[null,2,"Select the appropriate answer option to each question. Comments can be added to the cells in column H.",null,null,{"$f":"IF(Z3=\"\",0,1)","v":1},null,null,null,"Salinity/Conductivity","N.A.",null,null,null,"Esox lucius",null,null,"Embryo",null,null,"13 days",null,null,"NOAEL",null,null,"Length and weight",null,null,"Insect",null,null,"Gastropoda",null,null,"Insecta",null,null,null,null,null,20,null,null,null,null,null,7.85]
[null,"*","If the selected answer option does not work try clicking on any other cell first and then click back on the answer option again.",null,null,{"$f":"IF(AC3=\"\",0,1)","v":1},null,null,null,null,null,null,null,null,"Hyalella azteca",null,null,"Fertilised eggs (24 h)",null,null,"14 d",null,null,"NOEC",null,null,"Length, weight and deformaties",null,null,"Hydrozoa",null,null,"Mollusca",null,null,"Hydrozoa",null,null,null,null,null,22,null,null,null,null,null,7.9]
[null,"No.","Question","Marks Awarded","Answer Options","Option References","Scores","Answers",null,null,null,null,null,null,"N.A.",null,null,"Fry (larvae)",null,null,"15-20 d",null,null,"Number of juveniles",null,null,"Mortality",null,null,"Invertebrate - snail",null,null,null,null,null,"Gastropoda",null,null,null,null,null,22.3,null,null,null,null,null,7.92]
[null,null,"Was the duration of the exposure stated (e.g. 48 or 96 h)?",10,null,1,{"$f":"IF(F12=0,0,INDEX($D12:$D13,F12,1))","v":10},"14 d",null,null,null,null,null,null,"Notropis topeka",null,null,"Juvenile",null,null,"21 d",null,null,"Abundance (number of juveniles)",null,null,"N.A.",null,null,"macroinvertebrate",null,null,null,null,null,null,null,null,null,null,null,23,null,null,null,null,null,7.95]
[null,1,null,0,null,null,null,null,null,null,null,null,null,null,"Oncorhynchus mykiss",null,null,"Larvae (late stage)",null,null,"28 d",null,null,"EC10",null,null,"Reproduction",null,null,null,null,null,null,null,null,null,null,null,null,null,null,24,null,null,null,null,null,8.0399999999999991]
[null,null,null,null,null,null,null,null,null,null,null,null,null,null,"Pimephales promelas",null,null,"N.A.",null,null,"30 d",null,null,null,null,null,"Survival",null,null,null,null,null,null,null,null,null,null,null,null,null,null,24.7,null,null,null,null,null,8.0500000000000007]
[null,null,"Was the biological endpoint (e.g. immobilization or population growth) stated and defined (10 marks)? Award 5 marks if the biological endpoint is only stated.",10,null,2,{"$f":"IF(F15=0,0,INDEX($D15:$D17,F15,1))","v":5},"Growth (growth rate, µm/day)",null,null,null,null,null,null,"Pseudacris regilla",null,null,"Neonates (<24 h old)",null,null,"32 d",null,null,null,null,null,"Weight",null,null,null,null,null,null,null,null,null,null,null,null,null,null,25.5,null,null,null,null,null,8.07]
[null,2,null,5,null,null,null,null,null,null,null,null,null,null,"Ptychocheilus lucius",null,null,"Sac fry",null,null,"4 d",null,null,null,null,null,"Abundance (numbe of juveniles)",null,null,null,null,null,null,null,null,null,null,null,null,null,null,28,null,null,null,null,null,8.09]
[null,null,null,0,null,null,null,null,null,null,null,null,null,null,"Xenopus laevis",null,null,"Tadpole",null,null,"4 weeks",null,null,null,null,null,"Growth (length)",null,null,null,null,null,null,null,null,null,null,null,null,null,null,"15°C",null,null,null,null,null,8.24]
[null,null,"Was the biological effect stated (e.g. LC or NOEC)?",5,null,1,{"$f":"IF(F18=0,0,INDEX($D18:$D19,F18,1))","v":5},"EC10",null,null,null,null,null,null,"Xyrauchen texanus",null,null,"Young",null,null,"48 h",null,null,null,null,null,"Growth",null,null,null,null,null,null,null,null,null,null,null,null,null,null,"25°C",null,null,null,null,null,8.43]
[null,3,null,0,null,null,null,null,null,null,null,null,null,null,"Hydra viridissima",null,null,"Young (<1 week old)",null,null,"52 d",null,null,null,null,null,null,null,null,null,null,null,null,null,null,null,null,null,null,null,null,"N.A.",null,null,null,null,null,9.5]
[null,null,null,null,null,null,null,null,null,null,null,null,null,null,"Moinodaphnia macleayi",null,null,"Young (4-d post-hatch)",null,null,"6 weeks",null,null,null,null,null,null,null,null,null,null,null,null,null,null,null,null,null,null,null,null,16,null,null,null,null,null,".0-"]
[null,4,"Was the biological effect quantified (e.g. 50% effect, 25% effect)? \nNote: The effect for NOEC and LOEC data must be quantified.",5,null,1,{"$f":"IF(F21=0,0,INDEX($D21:$D22,F21,1))","v":5},"10% effect",null,null,null,null,null,null,"Amerianna cumingi",null,null,"Young (8-d post hatch)",null,null,"7 d",null,null,null,null,null,null,null,null,null,null,null,null,null,null,null,null,null,null,null,null,27,null,null,null,null,null,"6.7-7.6"]
[null,null,null,0,null,null,null,null,null,null,null,null,null,null,"Mogurnda mogurnda",null,null,"Young (9-d post hatch)",null,null,"72 d",null,null,null,null,null,null,null,null,null,null,null,null,null,null,null,null,null,null,null,null,30,null,null,null,null,null,"7.0-7.6"]
[null,5,"Were appropriate controls (e.g. a no-toxicant control and/or solvent control) used?",5,null,1,{"$f":"IF(F23=0,0,INDEX($D23:$D24,F23,1))","v":5},"control treatment ",null,null,null,null,null,null,"Velesunio sp.",null,null,"Mixed (natural population)",null,null,"90 d",null,null,null,null,null,null,null,null,null,null,null,null,null,null,null,null,null,null,null,null,null,null,null,null,null,null,"7.0-7.8"]
[null,null,null,0,null,null,null,null,null,null,null,null,null,null,"Velesunio angasi",null,null,"mature (with bud)",null,null,"96 h",null,null,null,null,null,null,null,null,null,null,null,null,null,null,null,null,null,null,null,null,null,null,null,null,null,null,"7.3-8.4"]
[null,null,null,null,null,null,null,null,null,null,null,null,null,null,null,null,null,"Neonate (<6 h)",null,null,"N.A.",null,null,null,null,null,null,null,null,null,null,null,null,null,null,null,null,null,null,null,null,null,null,null,null,null,null,"7.72 (7.59-7.79)"]
[null,6,"Was each control and contaminant concentration at least duplicated?",5,null,1,{"$f":"IF(F26=0,0,INDEX($D26:$D27,F26,1))","v":5},"2 reps (10 individuals per rep)",null,null,null,null,null,null,null,null,null,"Adult ",null,null,"29 d",null,null,null,null,null,null,null,null,null,null,null,null,null,null,null,null,null,null,null,null,null,null,null,null,null,null,"N.A."]
[null,null,null,0,null,null,null,null,null,null,null,null,null,null,null,null,null,"Larvae",null,null,"120-144 h",null,null,null,null,null,null,null,null,null,null,null,null,null,null,null,null,null,null,null,null,null,null,null,null,null,null,"PH11"]
[null,null,null,null,null,null,null,null,null,null,null,null,null,null,null,null,null,null,null,null,"4 day",null,null,null,null,null,null,null,null,null,null,null,null,null,null,null,null,null,null,null,null,null,null,null,null,null,null,"PH7.0"]
[null,7,"Were test acceptability criteria stated (e.g. mortality in controls must not exceed a certain percentage) (5 marks)?\nOR Were test acceptability criteria inferred (e.g. test method used [USEPA, OECD, ASTM etc.]) (award 2 marks). \nNote: Data that fail the acceptability criteria are automatically deemed to be of unacceptable quality and must not be used. ",5,null,1,{"$f":"IF(F29=0,0,INDEX($D29:$D31,F29,1))","v":5},"QA criteria stated and and reported",null,null,null,null,null,null,null,null,null,null,null,null,"9 day",null,null,null,null,null,null,null,null,null,null,null,null,null,null,null,null,null,null,null,null,null,null,null,null,null,null,"8.3-8.4"]
[null,null,null,2,null,null,null,null,null,null,null,null,null,null,null,null,null,null,null,null,null,null,null,null,null,null,null,null,null,null,null,null,null,null,null,null,null,null,null,null,null,null,null,null,null,null,null,6]
[null,null,null,0,null,null,null,null,null,null,null,null,null,null,null,null,null,null,null,null,null,null,null,null,null,null,null,null,null,null,null,null,null,null,null,null,null,null,null,null,null,null,null,null,null,null,null,6.6]
[null,8,"Were the characteristics of the test organism (e.g. length, mass, age) stated?",5,null,1,{"$f":"IF(F32=0,0,INDEX($D32:$D34,F32,1))","v":5},"juvenile (<24-h old)",null,null,null,null,null,null,null,null,null,null,null,null,null,null,null,null,null,null,null,null,null,null,null,null,null,null,null,null,null,null,null,null,null,null,null,null,null,null,null,7]
[null,null,null,0,null,null,null,null,null,null,null,null,null,null,null,null,null,null,null,null,null,null,null,null,null,null,null,null,null,null,null,null,null,null,null,null,null,null,null,null,null,null,null,null,null,null,null,7.5]
[null,null,null,null,null,null,null,null,null,null,null,null,null,null,null,null,null,null,null,null,null,null,null,null,null,null,null,null,null,null,null,null,null,null,null,null,null,null,null,null,null,null,null,null,null,null,null,7.8]
[null,9,"Was the type of test media used stated?",5,null,1,{"$f":"IF(F35=0,0,INDEX($D35:$D37,F35,1))","v":5},"Magela Ck water (with 1mM HEPES, 100 NTU suing fine sediment <63µm)",null,null,null,null,null,null,null,null,null,null,null,null,null,null,null,null,null,null,null,null,null,null,null,null,null,null,null,null,null,null,null,null,null,null,null,null,null,null,null,8.1]
[null,null,null,0,null,null,null,null,null,null,null,null,null,null,null,null,null,null,null,null,null,null,null,null,null,null,null,null,null,null,null,null,null,null,null,null,null,null,null,null,null,null,null,null,null,null,null,6.2]
[null,null,null,null,null,null,null,null,null,null,null,null,null,null,null,null,null,null,null,null,null,null,null,null,null,null,null,null,null,null,null,null,null,null,null,null,null,null,null,null,null,null,null,null,null,null,null,6]
[null,null,"Was the type of exposure (e.g. static, flow through) stated? ",4,null,1,{"$f":"IF(F38=0,0,INDEX($D38:$D40,F38,1))","v":4},"24-h renewal",null,null,null,null,null,null,null,null,null,null,null,null,null,null,null,null,null,null,null,null,null,null,null,null,null,null,null,null,null,null,null,null,null,null,null,null,null,null,null,6.1]
[null,10,null,0]
[]
[null,null,"Were the contaminant concentrations measured at the beginning and end of the exposure (4 marks)? Award 2 marks if they were measured only once during the test.\nNote: If the concentrations were not measured then automatically the data cannot be high quality. ",4,null,1,{"$f":"IF(F41=0,0,INDEX($D41:$D43,F41,1))","v":4},"Start and end of test duration at a minimum"]
[null,11,null,2]
[null,null,null,0]
[null,null,"Were parallel reference toxicant toxicity tests conducted?",4,null,2,{"$f":"IF(F44=0,0,INDEX($D44:$D46,F44,1))","v":0},"no ref tox tests"]
[null,12,null,0]
[]
[null,null,"Was there a concentration–response relationship either observable or stated?",4,null,1,{"$f":"IF(F47=0,0,INDEX($D47:$D49,F47,1))","v":4},"observed (in figures) "]
[null,13,null,0]
[]
[null,null,"Was an appropriate statistical method or model used to determine the toxicity?\nNote: They should be accepted by a recognised national or international regulatory body (e.g. USEPA, OECD, ASTM). ",4,null,1,{"$f":"IF(F50=0,0,INDEX($D50:$D52,F50,1))","v":4},"Non-linear 3-parameter log-logistic regression (with box-cox weighting function), CETIS software"]
[null,14,null,0]
[]
[null,15,"For LC/EC/BEC data was an estimate of variability provided? \nOR \nFor NO EC/LOEC data was the significance level 0.05 or less?  \n\n",4,null,1,{"$f":"IF(F53=0,0,INDEX($D53:$D55,F53,1))","v":4},"95% CL (0.75-2.68)"]
[null,null,null,0]
[]
[null,16,"Were the following parameters measured and stated? (3 marks if measured and stated, 1 mark if just measured)."]
[null,null,null,3,null,1,{"$f":"IF(F57=0,0,INDEX($D57:$D59,F57,1))","v":3},"6.02 +/- 0.02 (SD) "]
[null,16.100000000000001,"pH",1]
[null,null,null,0]
[null,null,null,3,null,1,{"$f":"IF(F60=0,0,INDEX($D60:$D62,F60,1))","v":3},"100.6 +/- 1.2%"]
[null,16.2,"Dissolved Oxygen",1]
[null,null,null,0]
[null,null,"Was the temperature measured and stated (3 marks)? Award 1 mark if the temperature was measured but not stated or if only the temperature settings of the room or chamber are stated.",3,null,1,{"$f":"IF(F63=0,0,INDEX(D63:D65,F63,1))","v":3},27.2]
[null,17,null,1]
[null,null,null,0]
[null,null,"Were test solutions, blanks and/or controls tested for contamination OR were analytical reagent grade chemicals used or the highest possible purity chemicals used for the experiment? (3 marks).",3,null,1,{"$f":"IF(F66=0,0,INDEX($D66:$D67,F66,1))","v":3},"ammonium sulfate, analyses of metals and major ions in dilution water "]
[null,18,null,0]
[]
[null,null,null,null,null,null,null,null,{"$f":"(COUNTIF(F12:F67,\"=0\"))+COUNTIF(F2:F10,\"=0\")+COUNTIF(D2:D7,\"=0\")","v":0}]
[]
[]
[null,null,"Total score",null,null,null,{"$f":"IF(SUM(G12:G66)=0,\"\",SUM(G12:G66))","v":82}]
[null,null,"Total Max. possible score for the various types of data and contaminants ",null,{"$f":"D12+D15+D18+D21+D23+D26+D29+D32+D35+D38+D41+D44+D47+D50+D53+D57+D60+D63+D66","v":91}]
[null,null,"Quality Score",null,{"$f":"\"= [Total score / Total possible score] * 100 = \"","v":"= [Total score / Total possible score] * 100 = "},null,{"$f":"IF(ISERROR(G72/E73),#N/A,G72/E73)","v":0.90109890109890112},{"$f":"IF(F41=3,\"The highest possible grade for this datum is acceptable.\",\"\")","v":""}]
[]
[null,null,"H = high quality                           Quality score ≥ 80%      "]
[null,null,"A = acceptable quality         > 50% Quality score < 80%        "]
[null,null,"U = unacceptable quality              Quality score ≤ 50%  "]
[]
[3,null,"Click the 'Save & Update' button to save and export the answers to the 'All results' worksheet. "]
[null,null,"Select the 'Reset Answers' button if you wish to clear all answers."]

{"sheet":"FW nonmetal nonplant_WS","index":8,"n_rows":327,"n_cols":24,"rows_kept":327,"cut":false,"hidden":false,"merged":[]}
[]
["Question No.",1,2,3,4,5,6,7,8,9,10,11,12,13,14,15,16.100000000000001,16.600000000000001,17,18,"Total Score","Quality Score",null,"Comment "]
["Short Questions","Duration of the exposure ","Biological endpoint","Biological effect stated or not","Biological effect quantified or not","Appropriate controls","Control & contaminant concentration","Test acceptability criteria","Characteristics of the test organism"," Type of test media","Type of exposure","Contaminant concentrations","Parallel reference toxicant toxicity tests","Concentration–response relationship","Determine the toxicity","NOEC/LOEC or LC/EC/BEC","pH","Dissolved oxygen","Temperature","Grade or purity"]
["Category","Freshwater/non-metal/non- plant","Paper and data unique identifier(eg. 1-1,10-150)","220-1"]
["Scores",10,5,5,5,5,5,5,5,5,4,4,0,0,4,4,3,3,3,0,75,0.82417582417582413,null,""]
["Answers","96 h","Mortality","LC",50,"Control (no NH3)","duplicate reps","Control: no mortality stated","Adult (29 months)","Well water (phys-chem measured and stated)","Flow-through","Measured daily (for 4 d)","No ref tox","Assumed to be observed","Trimmed Spearman Karber","95% CL (860-1130 µg N/L)","7.85 (0.01)",">6 mg/L","24.6 (0.01)","But a lot of chemical analyses was undertaken"]
["Category","Freshwater/non-metal/non- plant","Paper and data unique identifier(eg. 1-1,10-150)","220-2"]
["Scores",10,5,5,5,5,5,5,5,5,4,4,0,0,4,4,3,3,3,0,75,0.82417582417582413,null,""]
["Answers","96 h","Mortality","LC",50,"Control (no NH3)","duplicate reps","Control: no mortality stated","Juvenile (16 months)","Well water (phys-chem measured and stated)","Flow-through","Measured daily (for 4 d)","No ref tox","Assumed to be observed","Trimmed Spearman Karber","95% CL (1240-1500 µg N/L)","8.05 (0.01)",">6 mg/L","25.0 (0.02)","But a lot of chemical analyses was undertaken"]
["Category","Freshwater/non-metal/non- plant","Paper and data unique identifier(eg. 1-1,10-150)","220-3"]
["Scores",10,5,5,5,5,5,5,5,5,4,4,0,0,4,4,3,3,3,0,75,0.82417582417582413,null,""]
["Answers","96 h","Mortality","LC",50,"Control (no NH3)","duplicate reps","Control: no mortality stated","Juvenile (15 months)","Well water (phys-chem measured and stated)","Flow-through","Measured daily (for 4 d)","No ref tox","Assumed to be observed","Trimmed Spearman Karber","95% CL (970-1060 µg N/L)","8.09 (0.01)",">6 mg/L","13.2 (0.03)","But a lot of chemical analyses was undertaken"]
["Category","Freshwater/non-metal/non- plant","Paper and data unique identifier(eg. 1-1,10-150)","220-4"]
["Scores",10,5,5,5,5,5,5,5,5,4,4,0,4,4,4,3,3,3,0,79,0.86813186813186816,null,""]
["Answers","30 d","Survival","NOEC","p=0.05","Control (no NH3)","duplicate reps","Control: 92% survival","Juvenile (11 months)","Well water (phys-chem measured and stated)","Flow-through","4 to 6 times weekly","No ref tox","Presented in supporting info","Dunnets","P<0.05","7.94 (0.008)",">6 mg/L (in Sup Mat)","23.9 (0.13)","But a lot of chemical analyses was undertaken"]
["Category","Freshwater/non-metal/non- plant","Paper and data unique identifier(eg. 1-1,10-150)","220-5"]
["Scores",10,5,5,5,5,5,5,5,5,4,4,0,4,4,4,3,3,3,0,79,0.86813186813186816,null,""]
["Answers","30 d","Groth (specific growth rate)","NOEC","p=0.05","Control (no NH3)","duplicate reps","Control: 92% survival","Juvenile (11 months)","Well water (phys-chem measured and stated)","Flow-through","4 to 6 times weekly","No ref tox","Presented in supporting info","Dunnets","P<0.05","8.07 (0.003)",">6 mg/L (in Sup Mat)","12.4 (0.18)","But a lot of chemical analyses was undertaken"]
["Category","Freshwater/non-metal/non- plant","Paper and data unique identifier(eg. 1-1,10-150)","220-6"]
["Scores",10,5,5,5,5,5,5,5,5,4,4,0,4,4,4,3,3,3,0,79,0.86813186813186816,null,""]
["Answers","30 d","Survival","NOEC","p=0.05","Control (no NH3)","duplicate reps","Control: 100% survival","Juvenile (5 months)","Well water (phys-chem measured and stated)","Flow-through","4 to 6 times weekly","No ref tox","Presented in supporting info","Dunnets","P<0.05","7.92 (0.012)",">6 mg/L (in Sup Mat)","24.7 (0.06)","But a lot of chemical analyses was undertaken"]
["Category","Freshwater/non-metal/non- plant","Paper and data unique identifier(eg. 1-1,10-150)","220-7"]
["Scores",10,5,5,5,5,5,5,5,5,4,4,0,4,4,4,3,3,3,0,79,0.86813186813186816,null,""]
["Answers","32 d","development (embryo-hatching-swimming fry)","NOEC","p=0.05","Control (no NH3)","duplicate reps","Control: 92% survival","Embryo","Well water (phys-chem measured and stated)","Flow-through","4 to 6 times weekly","No ref tox","Presented in supporting info","Dunnets","P<0.05","7.95 (0.006)",">6 mg/L (in Sup Mat)","25.5 (0.02)","But a lot of chemical analyses was undertaken"]
["Category","Freshwater/non-metal/non- plant","Paper and data unique identifier(eg. 1-1,10-150)","221-1"]
["Scores",10,5,5,0,5,5,5,5,5,4,4,0,4,4,0,3,1,1,3,69,0.75824175824175821,null,""]
["Answers","10 weeks","Survival","NOEC","Not quoted but assumed to be p=0.05","Control (no NH3)","duplicate reps then data from 2-3 experiments were combined","Control: 66% survival (acceptablilty criteria for 10wk survival not known)","Young (0-1 week old)","dechlorinated tap water (water characteristics given)","Static renewal (weekly)","Measured twice weekly","No ref tox","Data provided for each concentration tested","ANOVA and Dunnets","not reported but assumed to be P<0.05","8.04 (0.43)","Aerated prior to testing",25,"NH4Cl; Controls measured for ammonia"]
["Category","Freshwater/non-metal/non- plant","Paper and data unique identifier(eg. 1-1,10-150)","221-2"]
["Scores",10,5,5,0,5,5,5,5,5,4,4,0,4,4,0,3,1,1,3,69,0.75824175824175821,null,""]
["Answers","10 weeks","Reproduction (avg young per replicate)","NOEC","Not quoted but assumed to be p=0.05","Control (no NH3)","duplicate reps then data from 2-3 experiments were combined","Control: 48 young per jar (acceptablilty criteria for 10wk survival not known)","Young (0-1 week old)","dechlorinated tap water (water characteristics given)","Static renewal (weekly)","Measured twice weekly","No ref tox","Data provided for each concentration tested","ANOVA and Dunnets","not reported but assumed to be P<0.05","8.04 (0.43)","Aerated prior to testing",25,"NH4Cl; Controls measured for ammonia"]
["Category","Freshwater/non-metal/non- plant","Paper and data unique identifier(eg. 1-1,10-150)","221-3"]
["Scores",10,5,5,0,5,5,5,5,5,4,4,0,4,4,0,3,1,1,3,69,0.75824175824175821,null,""]
["Answers","6 weeks","Survival","NOEC","Not quoted but assumed to be p=0.05","Control (no NH3)","duplicate reps then data from 2-3 experiments were combined","Control: 80% survival (acceptablilty criteria for 6wk survival not known)","Adults (4 weeks old)","dechlorinated tap water (water characteristics given)","Static renewal (weekly)","Measured twice weekly","No ref tox","Data provided for each concentration tested","ANOVA and Dunnets","not reported but assumed to be P<0.05","8.43 (0.34)","Aerated prior to testing",25,"NH4Cl; Controls measured for ammonia"]
["Category","Freshwater/non-metal/non- plant","Paper and data unique identifier(eg. 1-1,10-150)","221-4"]
["Scores",10,5,5,0,5,5,5,5,5,4,4,0,4,4,0,3,1,1,3,69,0.75824175824175821,null,""]
["Answers","6 weeks","Reproduction (avg young per rep)","NOEC","Not quoted but assumed to be p=0.05","Control (no NH3)","duplicate reps then data from 2-3 experiments were combined","Control: 19.8 young per rep (acceptablilty criteria for 6wk rep not known)","Adults (4 weeks old)","dechlorinated tap water (water characteristics given)","Static renewal (weekly)","Measured twice weekly","No ref tox","Data provided for each concentration tested","ANOVA and Dunnets","not reported but assumed to be P<0.05","8.43 (0.34)","Aerated prior to testing",25,"NH4Cl; Controls measured for ammonia"]
["Category","Freshwater/non-metal/non- plant","Paper and data unique identifier(eg. 1-1,10-150)","221-5"]
["Scores",10,5,5,5,5,5,5,5,5,4,4,0,0,4,4,3,1,1,3,74,0.81318681318681318,null,""]
["Answers","4 weeks","Survival","LC50","Standard deviation","Control (no NH3)","duplicate reps then data from 2-3 experiments were combined","Control: 81.7% survival (acceptablilty criteria for 4wks not known)","Young (0-1 week old)","10% dechlorinated tap water (water characteristics given)","Static renewal (weekly)","Measured twice weekly","No ref tox","Assumed ","Trimmed Spearman-Karber","Standard deviation","7.40 (0.35)","Aerated prior to testing",25,"NH4Cl; Controls measured for ammonia"]
["Category","Freshwater/non-metal/non- plant","Paper and data unique identifier(eg. 1-1,10-150)","221-6"]
["Scores",10,5,5,5,5,5,5,5,5,4,4,0,0,4,4,3,1,1,3,74,0.81318681318681318,null,""]
["Answers","4 weeks","Survival","LC50","Standard deviation","Control (no NH3)","duplicate reps then data from 2-3 experiments were combined","Control: 58.3% survival (acceptablilty criteria for 4wks not known)","Young (0-1 week old)","dechlorinated tap water (water characteristics given) acidified","Static renewal (weekly)","Measured twice weekly","No ref tox","Assumed ","Trimmed Spearman-Karber","Standard deviation","7.28 (0.39)","Aerated prior to testing",25,"NH4Cl; Controls measured for ammonia"]
["Category","Freshwater/non-metal/non- plant","Paper and data unique identifier(eg. 1-1,10-150)","221-7"]
["Scores",10,5,5,5,5,5,5,5,5,4,4,0,0,4,4,3,1,1,3,74,0.81318681318681318,null,""]
["Answers","4 weeks","Survival","LC50","Standard deviation","Control (no NH3)","duplicate reps then data from 2-3 experiments were combined","Control: 88.4% survival (acceptablilty criteria for 4wks not known)","Young (0-1 week old)","dechlorinated tap water (water characteristics given) ","Static renewal (weekly)","Measured twice weekly","No ref tox","Assumed ","Trimmed Spearman-Karber","Standard deviation","8.04 (0.43)","Aerated prior to testing",25,"NH4Cl; Controls measured for ammonia"]
["Category","Freshwater/non-metal/non- plant","Paper and data unique identifier(eg. 1-1,10-150)","221-8"]
["Scores",10,5,5,5,5,5,5,5,5,4,4,0,0,4,4,3,1,1,3,74,0.81318681318681318,null,""]
["Answers","4 weeks","Survival","LC50","Standard deviation","Control (no NH3)","duplicate reps then data from 2-3 experiments were combined","Control: 86.2% survival (acceptablilty criteria for 4wks not known)","Young (0-1 week old)","dechlorinated tap water (water characteristics given) ","Static renewal (weekly)","Measured twice weekly","No ref tox","Assumed ","Trimmed Spearman-Karber","Standard deviation","8.43 (0.34)","Aerated prior to testing",25,"NH4Cl; Controls measured for ammonia"]
["Category","Freshwater/non-metal/non- plant","Paper and data unique identifier(eg. 1-1,10-150)","222-1"]
["Scores",0,5,5,5,5,5,5,5,5,4,4,0,4,4,4,3,3,3,3,72,0.79120879120879117,null,""]
["Answers","~17 days","Hatching ","NOEC","P<0.05","Control (no NH3)","four reps ","Control responses quoted","Eggs","mix to well water and reverse-osmosis water","continuous flow","Weekly","No ref tox","Data for each treatment reported","ANOVA, William's 1-tail or Steels Many Rank","p<0.05","7.75 (SD 0.13)","8.5 mg/L (SD 0.66)","11.4 (0.25)","AR grade NH4Cl; Controls measured for ammonia"]
["Category","Freshwater/non-metal/non- plant","Paper and data unique identifier(eg. 1-1,10-150)","222-2"]
["Scores",0,5,5,5,5,5,5,5,5,4,4,0,4,4,4,3,3,3,3,72,0.79120879120879117,null,""]
["Answers","~21 days","Survival ","NOEC","P<0.05","Control (no NH3)","four reps ","Control responses quoted","Sac fry (hatched eggs)","mix to well water and reverse-osmosis water","continuous flow","Weekly","No ref tox","Data for each treatment reported","ANOVA, William's 1-tail or Steels Many Rank","p<0.05","7.75 (SD 0.13)","8.5 mg/L (SD 0.66)","11.4 (0.25)","AR grade NH4Cl; Controls measured for ammonia"]
["Category","Freshwater/non-metal/non- plant","Paper and data unique identifier(eg. 1-1,10-150)","222-3"]
["Scores",10,5,5,5,5,5,5,5,5,4,4,0,4,4,4,3,3,3,3,82,0.90109890109890112,null,""]
["Answers","90 days","Survival ","NOEC","P<0.05","Control (no NH3)","four reps ","Control responses quoted","eggs","mix to well water and reverse-osmosis water","continuous flow","Weekly","No ref tox","Data for each treatment reported","ANOVA, William's 1-tail or Steels Many Rank","p<0.05","7.75 (SD 0.13)","8.5 mg/L (SD 0.66)","11.4 (0.25)","AR grade NH4Cl; Controls measured for ammonia"]
["Category","Freshwater/non-metal/non- plant","Paper and data unique identifier(eg. 1-1,10-150)","222-4"]
["Scores",10,5,5,5,5,5,5,5,5,4,4,0,4,4,4,3,3,3,3,82,0.90109890109890112,null,""]
["Answers","90 days","Weight","NOEC","P<0.05","Control (no NH3)","four reps ","Control responses quoted","eggs","mix to well water and reverse-osmosis water","continuous flow","Weekly","No ref tox","Data for each treatment reported","ANOVA, William's 1-tail or Steels Many Rank","p<0.05","7.75 (SD 0.13)","8.5 mg/L (SD 0.66)","11.4 (0.25)","AR grade NH4Cl; Controls measured for ammonia"]
["Category","Freshwater/non-metal/non- plant","Paper and data unique identifier(eg. 1-1,10-150)","222-5"]
["Scores",10,5,5,5,5,5,5,5,5,4,4,0,4,4,4,3,3,3,3,82,0.90109890109890112,null,""]
["Answers","90 days","Fish length (mm)","NOEC","P<0.05","Control (no NH3)","four reps ","Control responses quoted","eggs","mix to well water and reverse-osmosis water","continuous flow","Weekly","No ref tox","Data for each treatment reported","ANOVA, William's 1-tail or Steels Many Rank","p<0.05","7.75 (SD 0.13)","8.5 mg/L (SD 0.66)","11.4 (0.25)","AR grade NH4Cl; Controls measured for ammonia"]
["Category","Freshwater/non-metal/non- plant","Paper and data unique identifier(eg. 1-1,10-150)","222-6"]
["Scores",10,10,5,5,5,5,5,5,5,4,4,0,4,4,4,3,3,3,3,87,0.95604395604395609,null,""]
["Answers","90 days","Condition factor (weight and length)","NOEC","P<0.05","Control (no NH3)","four reps ","Control responses quoted","eggs","mix to well water and reverse-osmosis water","continuous flow","Weekly","No ref tox","Data for each treatment reported","ANOVA, William's 1-tail or Steels Many Rank","p<0.05","7.75 (SD 0.13)","8.5 mg/L (SD 0.66)","11.4 (0.25)","AR grade NH4Cl; Controls measured for ammonia"]
["Category","Freshwater/non-metal/non- plant","Paper and data unique identifier(eg. 1-1,10-150)","222-7"]
["Scores",10,10,5,5,5,5,5,5,5,4,4,0,4,4,4,3,3,3,3,87,0.95604395604395609,null,""]
["Answers","90 days","Biomass (combined weight of surviving fish)","NOEC","P<0.05","Control (no NH3)","four reps ","Control responses quoted","eggs","mix to well water and reverse-osmosis water","continuous flow","Weekly","No ref tox","Data for each treatment reported","ANOVA, William's 1-tail or Steels Many Rank","p<0.05","7.75 (SD 0.13)","8.5 mg/L (SD 0.66)","11.4 (0.25)","AR grade NH4Cl; Controls measured for ammonia"]
["Category","Freshwater/non-metal/non- plant","Paper and data unique identifier(eg. 1-1,10-150)","223-2"]
["Scores",10,5,5,5,5,5,5,5,5,4,4,0,4,4,4,3,3,3,3,82,0.90109890109890112,null,""]
["Answers","14 days","Mortality","NOEC","P<0.05","Control (no added NH3)","three reps ","USEPA (1994) and control mortality 7%","4-d post hatch (2-d after swim-up) feeding exogenously","Well water (characteristics measured)","static with daily renewal","At least twice weekly","No ref tox","Data for each treatment reported","ANOVA, William's 1-tail or Dunnet's","p<0.05","8.24 (0.01)","7.4 (0.8) (80% Sat)","19.9 (1.0)","AR grade NH4Cl; Controls measured for ammonia"]
["Category","Freshwater/non-metal/non- plant","Paper and data unique identifier(eg. 1-1,10-150)","223-1"]
["Scores",10,5,5,5,5,5,5,5,5,4,4,0,4,4,4,3,3,3,3,82,0.90109890109890112,null,""]
["Answers","7 days","Mortality","NOEC","P<0.05","Control (no added NH3)","three reps ","USEPA (1994) and control mortality 7%","4-d post hatch (2-d after swim-up) feeding exogenously","Well water (characteristics measured)","static with daily renewal","At least twice weekly","No ref tox","Data for each treatment reported","ANOVA, William's 1-tail or Dunnet's","p<0.05","8.24 (0.01)","7.4 (0.8) (80% Sat)","19.9 (1.0)","AR grade NH4Cl; Controls measured for ammonia"]
["Category","Freshwater/non-metal/non- plant","Paper and data unique identifier(eg. 1-1,10-150)","223-3"]
["Scores",10,5,5,5,5,5,5,5,5,4,4,0,4,4,4,3,3,3,3,82,0.90109890109890112,null,""]
["Answers","21 days","Mortality","NOEC","P<0.05","Control (no added NH3)","three reps ","USEPA (1994) and control mortality 7%","4-d post hatch (2-d after swim-up) feeding exogenously","Well water (characteristics measured)","static with daily renewal","At least twice weekly","No ref tox","Data for each treatment reported","ANOVA, William's 1-tail or Dunnet's","p<0.05","8.24 (0.01)","7.4 (0.8) (80% Sat)","19.9 (1.0)","AR grade NH4Cl; Controls measured for ammonia"]
["Category","Freshwater/non-metal/non- plant","Paper and data unique identifier(eg. 1-1,10-150)","223-4"]
["Scores",10,5,5,5,5,5,5,5,5,4,4,0,4,4,4,3,3,3,3,82,0.90109890109890112,null,""]
["Answers","28 days","Mortality","NOEC","P<0.05","Control (no added NH3)","three reps ","USEPA (1994) and control mortality 7%","4-d post hatch (2-d after swim-up) feeding exogenously","Well water (characteristics measured)","static with daily renewal","At least twice weekly","No ref tox","Data for each treatment reported","ANOVA, William's 1-tail or Dunnet's","p<0.05","8.24 (0.01)","7.4 (0.8) (80% Sat)","19.9 (1.0)","AR grade NH4Cl; Controls measured for ammonia"]
["Category","Freshwater/non-metal/non- plant","Paper and data unique identifier(eg. 1-1,10-150)","223-5"]
["Scores",10,10,5,5,5,5,5,5,5,4,4,0,4,4,4,3,3,3,3,87,0.95604395604395609,null,""]
["Answers","28 days","Weight (final)","NOEC","P<0.05","Control (no added NH3)","three reps ","USEPA (1994) and control mortality 7%","4-d post hatch (2-d after swim-up) feeding exogenously","Well water (characteristics measured)","static with daily renewal","At least twice weekly","No ref tox","Data for each treatment reported","ANOVA, William's 1-tail or Dunnet's","p<0.05","8.24 (0.01)","7.4 (0.8) (80% Sat)","19.9 (1.0)","AR grade NH4Cl; Controls measured for ammonia"]
["Category","Freshwater/non-metal/non- plant","Paper and data unique identifier(eg. 1-1,10-150)","223-6"]
["Scores",10,5,5,5,5,5,5,5,5,4,4,0,4,4,4,3,3,3,3,82,0.90109890109890112,null,""]
["Answers","4 days","Mortality","LC",50,"Control (no added NH3)","three reps ","USEPA (1994) and control mortality 7%","4-d post hatch (2-d after swim-up) feeding exogenously","Well water (characteristics measured)","static with daily renewal","At least twice weekly","No ref tox","Yes","Linear Interpolation","95% CL (800-970)","8.24 (0.01)","7.4 (0.8) (80% Sat)","19.9 (1.0)","AR grade NH4Cl; Controls measured for ammonia"]
["Category","Freshwater/non-metal/non- plant","Paper and data unique identifier(eg. 1-1,10-150)","223-7"]
["Scores",10,5,5,5,5,5,5,5,5,4,4,0,4,4,4,3,3,3,3,82,0.90109890109890112,null,""]
["Answers","7 days","Mortality","LC",50,"Control (no added NH3)","three reps ","USEPA (1994) and control mortality 7%","4-d post hatch (2-d after swim-up) feeding exogenously","Well water (characteristics measured)","static with daily renewal","At least twice weekly","No ref tox","Yes","Linear Interpolation","95% CL (670-770)","8.24 (0.01)","7.4 (0.8) (80% Sat)","19.9 (1.0)","AR grade NH4Cl; Controls measured for ammonia"]
["Category","Freshwater/non-metal/non- plant","Paper and data unique identifier(eg. 1-1,10-150)","223-8"]
["Scores",10,5,5,5,5,5,5,5,5,4,4,0,4,4,4,3,3,3,3,82,0.90109890109890112,null,""]
["Answers","14 days","Mortality","LC",50,"Control (no added NH3)","three reps ","USEPA (1994) and control mortality 7%","4-d post hatch (2-d after swim-up) feeding exogenously","Well water (characteristics measured)","static with daily renewal","At least twice weekly","No ref tox","Yes","Linear Interpolation","95% CL (610-750)","8.24 (0.01)","7.4 (0.8) (80% Sat)","19.9 (1.0)","AR grade NH4Cl; Controls measured for ammonia"]
["Category","Freshwater/non-metal/non- plant","Paper and data unique identifier(eg. 1-1,10-150)","223-9"]
["Scores",10,5,5,5,5,5,5,5,5,4,4,0,4,4,4,3,3,3,3,82,0.90109890109890112,null,""]
["Answers","21 days","Mortality","LC",50,"Control (no added NH3)","three reps ","USEPA (1994) and control mortality 7%","4-d post hatch (2-d after swim-up) feeding exogenously","Well water (characteristics measured)","static with daily renewal","At least twice weekly","No ref tox","Yes","Linear Interpolation","95% CL (620-770)","8.24 (0.01)","7.4 (0.8) (80% Sat)","19.9 (1.0)","AR grade NH4Cl; Controls measured for ammonia"]
["Category","Freshwater/non-metal/non- plant","Paper and data unique identifier(eg. 1-1,10-150)","223-10"]
["Scores",10,5,5,5,5,5,5,5,5,4,4,0,4,4,4,3,3,3,3,82,0.90109890109890112,null,""]
["Answers","28 days","Mortality","LC",50,"Control (no added NH3)","three reps ","USEPA (1994) and control mortality 7%","4-d post hatch (2-d after swim-up) feeding exogenously","Well water (characteristics measured)","static with daily renewal","At least twice weekly","No ref tox","Yes","Linear Interpolation","95% CL (620-770)","8.24 (0.01)","7.4 (0.8) (80% Sat)","19.9 (1.0)","AR grade NH4Cl; Controls measured for ammonia"]
["Category","Freshwater/non-metal/non- plant","Paper and data unique identifier(eg. 1-1,10-150)","223-11"]
["Scores",10,5,5,5,5,5,5,5,5,4,4,0,4,4,4,3,3,3,3,82,0.90109890109890112,null,""]
["Answers","28 days","Mortality","LC",50,"Control (no added NH3)","three reps ","USEPA (1994) and control mortality 7%","4-d post hatch (2-d after swim-up) feeding exogenously","Well water (characteristics measured)","static with daily renewal","At least twice weekly","No ref tox","Yes","Linear Interpolation","95% CL (70-190)","8.24 (0.01)","7.4 (0.8) (80% Sat)","19.9 (1.0)","AR grade NH4Cl; Controls measured for ammonia"]
["Category","Freshwater/non-metal/non- plant","Paper and data unique identifier(eg. 1-1,10-150)","223-12"]
["Scores",10,5,5,5,5,5,5,5,5,4,4,0,4,4,4,3,3,3,3,82,0.90109890109890112,null,""]
["Answers","28 days","Mortality","LC",50,"Control (no added NH3)","three reps ","USEPA (1994) and control mortality 7%","4-d post hatch (2-d after swim-up) feeding exogenously","Well water (characteristics measured)","static with daily renewal","At least twice weekly","No ref tox","Yes","Linear Interpolation","95% CL (330-480)","8.24 (0.01)","7.4 (0.8) (80% Sat)","19.9 (1.0)","AR grade NH4Cl; Controls measured for ammonia"]
["Category","Freshwater/non-metal/non- plant","Paper and data unique identifier(eg. 1-1,10-150)","223-13"]
["Scores",10,5,5,5,5,5,5,5,5,4,4,0,4,4,4,3,3,3,3,82,0.90109890109890112,null,""]
["Answers","7 days","Mortality","NOEC","p 0.05","Control (no added NH3)","three reps ","USEPA (1994) and control mortality 3%","8-d post hatch (2-d after swim-up) feeding exogenously","Well water (characteristics measured)","static with daily renewal","At least twice weekly","No ref tox","Yes","ANOVA Wilcoxon's or Dunnett's test","p 0.05","8.24 (0.01)","7.4 (0.8) (80% Sat)","19.9 (1.0)","AR grade NH4Cl; Controls measured for ammonia"]
["Category","Freshwater/non-metal/non- plant","Paper and data unique identifier(eg. 1-1,10-150)","223-14"]
["Scores",10,5,5,5,5,5,5,5,5,4,4,0,4,4,4,3,3,3,3,82,0.90109890109890112,null,""]
["Answers","14 days","Mortality","NOEC","p 0.05","Control (no added NH3)","three reps ","USEPA (1994) and control mortality 7%","8-d post hatch (2-d after swim-up) feeding exogenously","Well water (characteristics measured)","static with daily renewal","At least twice weekly","No ref tox","Yes","ANOVA Wilcoxon's or Dunnett's test","p 0.05","8.24 (0.01)","7.4 (0.8) (80% Sat)","19.9 (1.0)","AR grade NH4Cl; Controls measured for ammonia"]
["Category","Freshwater/non-metal/non- plant","Paper and data unique identifier(eg. 1-1,10-150)","223-15"]
["Scores",10,5,5,5,5,5,5,5,5,4,4,0,4,4,4,3,3,3,3,82,0.90109890109890112,null,""]
["Answers","21 days","Mortality","NOEC","p 0.05","Control (no added NH3)","three reps ","USEPA (1994) and control mortality 7%","8-d post hatch (2-d after swim-up) feeding exogenously","Well water (characteristics measured)","static with daily renewal","At least twice weekly","No ref tox","Yes","ANOVA Wilcoxon's or Dunnett's test","p 0.05","8.24 (0.01)","7.4 (0.8) (80% Sat)","19.9 (1.0)","AR grade NH4Cl; Controls measured for ammonia"]
["Category","Freshwater/non-metal/non- plant","Paper and data unique identifier(eg. 1-1,10-150)","223-16"]
["Scores",10,5,5,5,5,5,5,5,5,4,4,0,4,4,4,3,3,3,3,82,0.90109890109890112,null,""]
["Answers","28 days","Mortality","NOEC","p 0.05","Control (no added NH3)","three reps ","USEPA (1994) and control mortality 7%","8-d post hatch (2-d after swim-up) feeding exogenously","Well water (characteristics measured)","static with daily renewal","At least twice weekly","No ref tox","Yes","ANOVA Wilcoxon's or Dunnett's test","p 0.05","8.24 (0.01)","7.4 (0.8) (80% Sat)","19.9 (1.0)","AR grade NH4Cl; Controls measured for ammonia"]
["Category","Freshwater/non-metal/non- plant","Paper and data unique identifier(eg. 1-1,10-150)","223-17"]
["Scores",10,10,5,5,5,5,5,5,5,4,4,0,4,4,4,3,3,3,3,87,0.95604395604395609,null,""]
["Answers","28 days","Weight","NOEC","p 0.05","Control (no added NH3)","three reps ","USEPA (1994) and control mortality 7%","8-d post hatch (2-d after swim-up) feeding exogenously","Well water (characteristics measured)","static with daily renewal","At least twice weekly","No ref tox","Yes","ANOVA Wilcoxon's or Dunnett's test","p 0.05","8.24 (0.01)","7.4 (0.8) (80% Sat)","19.9 (1.0)","AR grade NH4Cl; Controls measured for ammonia"]
["Category","Freshwater/non-metal/non- plant","Paper and data unique identifier(eg. 1-1,10-150)","223-18"]
["Scores",10,5,5,5,5,5,5,5,5,4,4,0,4,4,4,3,3,3,3,82,0.90109890109890112,null,""]
["Answers","4 days","Mortality","LC",50,"Control (no added NH3)","three reps ","USEPA (1994) and 28-d control mortality 7%","8-d post hatch (2-d after swim-up) feeding exogenously","Well water (characteristics measured)","static with daily renewal","At least twice weekly","No ref tox","Yes","Max likelhood (e.g. probit, logit)","95% CL (NA)","8.24 (0.01)","7.4 (0.8) (80% Sat)","19.9 (1.0)","AR grade NH4Cl; Controls measured for ammonia"]
["Category","Freshwater/non-metal/non- plant","Paper and data unique identifier(eg. 1-1,10-150)","223-19"]
["Scores",10,5,5,5,5,5,5,5,5,4,4,0,4,4,4,3,3,3,3,82,0.90109890109890112,null,""]
["Answers","7 days","Mortality","LC",50,"Control (no added NH3)","three reps ","USEPA (1994) and 28-d control mortality 7%","8-d post hatch (2-d after swim-up) feeding exogenously","Well water (characteristics measured)","static with daily renewal","At least twice weekly","No ref tox","Yes","Max likelhood (e.g. probit, logit)","95% CL (NA)","8.24 (0.01)","7.4 (0.8) (80% Sat)","19.9 (1.0)","AR grade NH4Cl; Controls measured for ammonia"]
["Category","Freshwater/non-metal/non- plant","Paper and data unique identifier(eg. 1-1,10-150)","223-20"]
["Scores",10,5,5,5,5,5,5,5,5,4,4,0,4,4,4,3,3,3,3,82,0.90109890109890112,null,""]
["Answers","14 days","Mortality","LC",50,"Control (no added NH3)","three reps ","USEPA (1994) and 28-d control mortality 7%","8-d post hatch (2-d after swim-up) feeding exogenously","Well water (characteristics measured)","static with daily renewal","At least twice weekly","No ref tox","Yes","Max likelhood (e.g. probit, logit)","95% CL (660-940)","8.24 (0.01)","7.4 (0.8) (80% Sat)","19.9 (1.0)","AR grade NH4Cl; Controls measured for ammonia"]
["Category","Freshwater/non-metal/non- plant","Paper and data unique identifier(eg. 1-1,10-150)","223-21"]
["Scores",10,5,5,5,5,5,5,5,5,4,4,0,4,4,4,3,3,3,3,82,0.90109890109890112,null,""]
["Answers","21 days","Mortality","LC",50,"Control (no added NH3)","three reps ","USEPA (1994) and 28-d control mortality 7%","8-d post hatch (2-d after swim-up) feeding exogenously","Well water (characteristics measured)","static with daily renewal","At least twice weekly","No ref tox","Yes","Max likelhood (e.g. probit, logit)","95% CL (700-800)","8.24 (0.01)","7.4 (0.8) (80% Sat)","19.9 (1.0)","AR grade NH4Cl; Controls measured for ammonia"]
["Category","Freshwater/non-metal/non- plant","Paper and data unique identifier(eg. 1-1,10-150)","223-22"]
["Scores",10,5,5,5,5,5,5,5,5,4,4,0,4,4,4,3,3,3,3,82,0.90109890109890112,null,""]
["Answers","28 days","Mortality","LC",50,"Control (no added NH3)","three reps ","USEPA (1994) and 28-d control mortality 7%","8-d post hatch (2-d after swim-up) feeding exogenously","Well water (characteristics measured)","static with daily renewal","At least twice weekly","No ref tox","Yes","Max likelhood (e.g. probit, logit)","95% CL (700-800)","8.24 (0.01)","7.4 (0.8) (80% Sat)","19.9 (1.0)","AR grade NH4Cl; Controls measured for ammonia"]
["Category","Freshwater/non-metal/non- plant","Paper and data unique identifier(eg. 1-1,10-150)","223-23"]
["Scores",10,5,5,5,5,5,5,5,5,4,4,0,4,4,4,3,3,3,3,82,0.90109890109890112,null,""]
["Answers","28 days","Mortality","LC",50,"Control (no added NH3)","three reps ","USEPA (1994) and 28-d control mortality 7%","8-d post hatch (2-d after swim-up) feeding exogenously","Well water (characteristics measured)","static with daily renewal","At least twice weekly","No ref tox","Yes","Max likelhood (e.g. probit, logit)","95% CL (280-450)","8.24 (0.01)","7.4 (0.8) (80% Sat)","19.9 (1.0)","AR grade NH4Cl; Controls measured for ammonia"]
["Category","Freshwater/non-metal/non- plant","Paper and data unique identifier(eg. 1-1,10-150)","223-24"]
["Scores",10,5,5,5,5,5,5,5,5,4,4,0,4,4,4,3,3,3,3,82,0.90109890109890112,null,""]
["Answers","28 days","Mortality","LC",50,"Control (no added NH3)","three reps ","USEPA (1994) and 28-d control mortality 7%","8-d post hatch (2-d after swim-up) feeding exogenously","Well water (characteristics measured)","static with daily renewal","At least twice weekly","No ref tox","Yes","Max likelhood (e.g. probit, logit)","95% CL (540-670)","8.24 (0.01)","7.4 (0.8) (80% Sat)","19.9 (1.0)","AR grade NH4Cl; Controls measured for ammonia"]
["Category","Freshwater/non-metal/non- plant","Paper and data unique identifier(eg. 1-1,10-150)","223-25"]
["Scores",10,5,5,5,5,5,5,5,5,4,4,0,4,4,4,3,3,3,3,82,0.90109890109890112,null,""]
["Answers","7 days","Mortality","NOEC","p 0.05","Control (no added NH3)","three reps ","USEPA (1994) and control mortality 0%","9-d post hatch (2-d after swim-up) feeding exogenously","Well water (characteristics measured)","static with daily renewal","At least twice weekly","No ref tox","Yes","ANOVA Wilcoxon's or Dunnett's test","p 0.05","8.24 (0.01)","7.4 (0.8) (80% Sat)","19.9 (1.0)","AR grade NH4Cl; Controls measured for ammonia"]
["Category","Freshwater/non-metal/non- plant","Paper and data unique identifier(eg. 1-1,10-150)","223-26"]
["Scores",10,5,5,5,5,5,5,5,5,4,4,0,4,4,4,3,3,3,3,82,0.90109890109890112,null,""]
["Answers","14 days","Mortality","NOEC","p 0.05","Control (no added NH3)","three reps ","USEPA (1994) and control mortality 0%","9-d post hatch (2-d after swim-up) feeding exogenously","Well water (characteristics measured)","static with daily renewal","At least twice weekly","No ref tox","Yes","ANOVA Wilcoxon's or Dunnett's test","p 0.05","8.24 (0.01)","7.4 (0.8) (80% Sat)","19.9 (1.0)","AR grade NH4Cl; Controls measured for ammonia"]
["Category","Freshwater/non-metal/non- plant","Paper and data unique identifier(eg. 1-1,10-150)","223-27"]
["Scores",10,5,5,5,5,5,5,5,5,4,4,0,4,4,4,3,3,3,3,82,0.90109890109890112,null,""]
["Answers","21 days","Mortality","NOEC","p 0.05","Control (no added NH3)","three reps ","USEPA (1994) and control mortality 3%","9-d post hatch (2-d after swim-up) feeding exogenously","Well water (characteristics measured)","static with daily renewal","At least twice weekly","No ref tox","Yes","ANOVA Wilcoxon's or Dunnett's test","p 0.05","8.24 (0.01)","7.4 (0.8) (80% Sat)","19.9 (1.0)","AR grade NH4Cl; Controls measured for ammonia"]
["Category","Freshwater/non-metal/non- plant","Paper and data unique identifier(eg. 1-1,10-150)","223-28"]
["Scores",10,5,5,5,5,5,5,5,5,4,4,0,4,4,4,3,3,3,3,82,0.90109890109890112,null,""]
["Answers","28 days","Mortality","NOEC","p 0.05","Control (no added NH3)","three reps ","USEPA (1994) and control mortality 3%","9-d post hatch (2-d after swim-up) feeding exogenously","Well water (characteristics measured)","static with daily renewal","At least twice weekly","No ref tox","Yes","ANOVA Wilcoxon's or Dunnett's test","p 0.05","8.24 (0.01)","7.4 (0.8) (80% Sat)","19.9 (1.0)","AR grade NH4Cl; Controls measured for ammonia"]
["Category","Freshwater/non-metal/non- plant","Paper and data unique identifier(eg. 1-1,10-150)","223-29"]
["Scores",10,10,5,5,5,5,5,5,5,4,4,0,4,4,4,3,3,3,3,87,0.95604395604395609,null,""]
["Answers","28 days","Weight","NOEC","p 0.05","Control (no added NH3)","three reps ","USEPA (1994) and control mortality 3%","9-d post hatch (2-d after swim-up) feeding exogenously","Well water (characteristics measured)","static with daily renewal","At least twice weekly","No ref tox","Yes","Max likelhood (e.g. probit, logit)","p 0.05","8.24 (0.01)","7.4 (0.8) (80% Sat)","19.9 (1.0)","AR grade NH4Cl; Controls measured for ammonia"]
["Category","Freshwater/non-metal/non- plant","Paper and data unique identifier(eg. 1-1,10-150)","223-30"]
["Scores",10,5,5,5,5,5,5,5,5,4,4,0,4,4,4,3,3,3,3,82,0.90109890109890112,null,""]
["Answers","4 days","Mortality","LC",50,"Control (no added NH3)","three reps ","USEPA (1994) and 28-d control mortality 3%","9-d post hatch (2-d after swim-up) feeding exogenously","Well water (characteristics measured)","static with daily renewal","At least twice weekly","No ref tox","Yes","Max likelhood (e.g. probit, logit)","95% CL (NA)","8.24 (0.01)","7.4 (0.8) (80% Sat)","19.9 (1.0)","AR grade NH4Cl; Controls measured for ammonia"]
["Category","Freshwater/non-metal/non- plant","Paper and data unique identifier(eg. 1-1,10-150)","223-31"]
["Scores",10,5,5,5,5,5,5,5,5,4,4,0,4,4,4,3,3,3,3,82,0.90109890109890112,null,""]
["Answers","7 days","Mortality","LC",50,"Control (no added NH3)","three reps ","USEPA (1994) and 28-d control mortality 3%","9-d post hatch (2-d after swim-up) feeding exogenously","Well water (characteristics measured)","static with daily renewal","At least twice weekly","No ref tox","Yes","Max likelhood (e.g. probit, logit)","95% CL (NA)","8.24 (0.01)","7.4 (0.8) (80% Sat)","19.9 (1.0)","AR grade NH4Cl; Controls measured for ammonia"]
["Category","Freshwater/non-metal/non- plant","Paper and data unique identifier(eg. 1-1,10-150)","223-32"]
["Scores",10,5,5,5,5,5,5,5,5,4,4,0,4,4,4,3,3,3,3,82,0.90109890109890112,null,""]
["Answers","14 days","Mortality","LC",50,"Control (no added NH3)","three reps ","USEPA (1994) and 28-d control mortality 3%","9-d post hatch (2-d after swim-up) feeding exogenously","Well water (characteristics measured)","static with daily renewal","At least twice weekly","No ref tox","Yes","Max likelhood (e.g. probit, logit)","95% CL (NA)","8.24 (0.01)","7.4 (0.8) (80% Sat)","19.9 (1.0)","AR grade NH4Cl; Controls measured for ammonia"]
["Category","Freshwater/non-metal/non- plant","Paper and data unique identifier(eg. 1-1,10-150)","223-33"]
["Scores",10,5,5,5,5,5,5,5,5,4,4,0,4,4,4,3,3,3,3,82,0.90109890109890112,null,""]
["Answers","21 days","Mortality","LC",50,"Control (no added NH3)","three reps ","USEPA (1994) and 28-d control mortality 3%","9-d post hatch (2-d after swim-up) feeding exogenously","Well water (characteristics measured)","static with daily renewal","At least twice weekly","No ref tox","Yes","Max likelhood (e.g. probit, logit)","95% CL (530-850)","8.24 (0.01)","7.4 (0.8) (80% Sat)","19.9 (1.0)","AR grade NH4Cl; Controls measured for ammonia"]
["Category","Freshwater/non-metal/non- plant","Paper and data unique identifier(eg. 1-1,10-150)","223-34"]
["Scores",10,5,5,5,5,5,5,5,5,4,4,0,4,4,4,3,3,3,3,82,0.90109890109890112,null,""]
["Answers","28 days","Mortality","LC",50,"Control (no added NH3)","three reps ","USEPA (1994) and 28-d control mortality 3%","9-d post hatch (2-d after swim-up) feeding exogenously","Well water (characteristics measured)","static with daily renewal","At least twice weekly","No ref tox","Yes","Max likelhood (e.g. probit, logit)","95% CL (310-1120)","8.24 (0.01)","7.4 (0.8) (80% Sat)","19.9 (1.0)","AR grade NH4Cl; Controls measured for ammonia"]
["Category","Freshwater/non-metal/non- plant","Paper and data unique identifier(eg. 1-1,10-150)","223-35"]
["Scores",10,5,5,5,5,5,5,5,5,4,4,0,4,4,4,3,3,3,3,82,0.90109890109890112,null,""]
["Answers","28 days","Mortality","LC",50,"Control (no added NH3)","three reps ","USEPA (1994) and 28-d control mortality 3%","9-d post hatch (2-d after swim-up) feeding exogenously","Well water (characteristics measured)","static with daily renewal","At least twice weekly","No ref tox","Yes","Max likelhood (e.g. probit, logit)","95% CL (140-440)","8.24 (0.01)","7.4 (0.8) (80% Sat)","19.9 (1.0)","AR grade NH4Cl; Controls measured for ammonia"]
["Category","Freshwater/non-metal/non- plant","Paper and data unique identifier(eg. 1-1,10-150)","223-36"]
["Scores",10,5,5,5,5,5,5,5,5,4,4,0,4,4,4,3,3,3,3,82,0.90109890109890112,null,""]
["Answers","28 days","Mortality","LC",50,"Control (no added NH3)","three reps ","USEPA (1994) and 28-d control mortality 3%","9-d post hatch (2-d after swim-up) feeding exogenously","Well water (characteristics measured)","static with daily renewal","At least twice weekly","No ref tox","Yes","Max likelhood (e.g. probit, logit)","95% CL (220-710)","8.24 (0.01)","7.4 (0.8) (80% Sat)","19.9 (1.0)","AR grade NH4Cl; Controls measured for ammonia"]
["Category","Freshwater/non-metal/non- plant","Paper and data unique identifier(eg. 1-1,10-150)","224-1"]
["Scores",10,5,5,5,5,5,5,5,5,4,2,0,0,4,4,3,0,1,3,71,0.78021978021978022,null,""]
["Answers","48 h","Mortality","LC",50,"NR Assumed (since followed standard procedures)","NR Assumed (since followed standard procedures)","OECD (1987) and lab protocol","Neonates (< 24 h old)","Sydney tap water (+ conductivity adjustment)","static with daily renewal","Frequency not reported","No ref tox","NR (but assumed)","Trimmed Spearman-Karber","95% CL (526-673)","7.0-7.8",null,23,"Ammonium sulfate (AR)"]
["Category","Freshwater/non-metal/non- plant","Paper and data unique identifier(eg. 1-1,10-150)","224-2"]
["Scores",10,5,5,0,5,5,5,5,5,4,2,0,0,4,0,3,0,1,3,62,0.68131868131868134,null,""]
["Answers","10 d","Reproduction (3 brood life-cycle)","NOEC","NR","NR Assumed (since followed standard procedures)","NR Assumed (since followed standard procedures)","OECD (1987) and lab protocol","Neonates (< 24 h old)","Sydney tap water (+ conductivity adjustment)","static with 48 h renewal","Frequency not reported","No ref tox","NR (but assumed)","ANOVA (Cochran's test or Steels Many One Rank Test)","NR","7.3-8.4","",23,"Ammonium sulfate (AR)"]
["Category","Freshwater/non-metal/non- plant","Paper and data unique identifier(eg. 1-1,10-150)","225-1"]
["Scores",10,10,5,5,5,5,5,5,5,4,4,0,4,4,4,3,3,3,3,87,0.95604395604395609,null,""]
["Answers","15-20 d","Surviving larvae","NOEC","p 0.05","Yes","Triplicates","ASTM (1998)","Fertilised eggs","Dechlorinated tap water","Flow through","Measured weekly ","No ref tox","NA NOEC higher than highest concentration tested","ANOVA (Least sig diff and Ryan-Einot-Gabriel-Welsch)",0.05,"7.62 (avg)","8.85 (avg)","8.62 (avg)","NH4Cl (99.9%)"]
["Category","Freshwater/non-metal/non- plant","Paper and data unique identifier(eg. 1-1,10-150)","225-2"]
["Scores",10,10,5,5,5,5,5,5,5,4,4,0,4,4,0,3,3,3,3,83,0.91208791208791207,null,""]
["Answers","15-20 d","Surviving larvae","EC",20,"Yes","Triplicates","ASTM (1998)","Fertilised eggs","Dechlorinated tap water","Flow through","Measured weekly ","No ref tox","NA NOEC higher than highest concentration tested","Proc Probit","95% CL could not be calculated","7.62 (avg)","8.85 (avg)","8.62 (avg)","NH4Cl (99.9%)"]
["Category","Freshwater/non-metal/non- plant","Paper and data unique identifier(eg. 1-1,10-150)","225-3"]
["Scores",10,10,5,5,5,5,5,5,5,4,4,0,4,4,4,3,3,3,3,87,0.95604395604395609,null,""]
["Answers","52 d","Mortality","NOEC","p 0.05","Yes","Triplicates","ASTM (1998)","Fertilised eggs","Dechlorinated tap water","Flow through","Measured weekly ","No ref tox","data provided for each treatment","ANOVA (Least sig diff and Ryan-Einot-Gabriel-Welsch)","p 0.05","7.62 (avg)","8.85 (avg)","8.62 (avg)","NH4Cl (99.9%)"]
["Category","Freshwater/non-metal/non- plant","Paper and data unique identifier(eg. 1-1,10-150)","225-4"]
["Scores",10,5,5,5,5,5,5,5,5,4,4,0,4,4,4,3,3,3,3,82,0.90109890109890112,null,""]
["Answers","52 d","Mortality","LC",20,"Yes","Triplicates","ASTM (1998)","Fertilised eggs","Dechlorinated tap water","Flow through","Measured weekly ","No ref tox","data provided for each treatment","Proc Probit","95% CL (98-318)","7.62 (avg)","8.85 (avg)","8.62 (avg)","NH4Cl (99.9%)"]
["Category","Freshwater/non-metal/non- plant","Paper and data unique identifier(eg. 1-1,10-150)","225-5"]
["Scores",10,10,5,5,5,5,5,5,5,4,4,0,4,4,4,3,3,3,3,87,0.95604395604395609,null,""]
["Answers","52 d","Weight","NOEC","p 0.05","Yes","Triplicates","ASTM (1998)","Fertilised eggs","Dechlorinated tap water","Flow through","Measured weekly ","No ref tox","data provided for each treatment","ANOVA (Least sig diff and Ryan-Einot-Gabriel-Welsch)","p 0.05","7.62 (avg)","8.85 (avg)","8.62 (avg)","NH4Cl (99.9%)"]
["Category","Freshwater/non-metal/non- plant","Paper and data unique identifier(eg. 1-1,10-150)","225-6"]
["Scores",10,10,5,5,5,5,5,5,5,4,4,0,4,4,4,3,3,3,3,87,0.95604395604395609,null,""]
["Answers","52 d","Weight","EC",20,"Yes","Triplicates","ASTM (1998)","Fertilised eggs","Dechlorinated tap water","Flow through","Measured weekly ","No ref tox","data provided for each treatment","Proc Probit","95% CL (20-365)","7.62 (avg)","8.85 (avg)","8.62 (avg)","NH4Cl (99.9%)"]
["Category","Freshwater/non-metal/non- plant","Paper and data unique identifier(eg. 1-1,10-150)","225-7"]
["Scores",10,10,5,5,5,5,5,5,5,4,4,0,4,4,4,3,3,3,3,87,0.95604395604395609,null,""]
["Answers","52 d","Biomass (total weight of fish at end of test divide by number of larvae at the beginning) ","NOEC","p 0.05","Yes","Triplicates","ASTM (1998)","Fertilised eggs","Dechlorinated tap water","Flow through","Measured weekly ","No ref tox","data provided for each treatment","ANOVA (Least sig diff and Ryan-Einot-Gabriel-Welsch)","p 0.05","7.62 (avg)","8.85 (avg)","8.62 (avg)","NH4Cl (99.9%)"]
["Category","Freshwater/non-metal/non- plant","Paper and data unique identifier(eg. 1-1,10-150)","225-8"]
["Scores",10,10,5,5,5,5,5,5,5,4,4,0,4,4,4,3,3,3,3,87,0.95604395604395609,null,""]
["Answers","52 d","Biomass (total weight of fish at end of test divide by number of larvae at the beginning) ","EC",20,"Yes","Triplicates","ASTM (1998)","Fertilised eggs","Dechlorinated tap water","Flow through","Measured weekly ","No ref tox","data provided for each treatment","Proc Probit","95% CL (30-183)","7.62 (avg)","8.85 (avg)","8.62 (avg)","NH4Cl (99.9%)"]
["Category","Freshwater/non-metal/non- plant","Paper and data unique identifier(eg. 1-1,10-150)","226-1"]
["Scores",10,5,5,5,5,5,5,5,5,4,4,0,4,4,4,3,3,3,3,82,0.90109890109890112,null,""]
["Answers","7 d","Mortality","LC",50,"Control ","Duplicate","Control response provided; QA max 10% mortality ","Fry (299 mg (SE 14.2 mg)","Synthetic softwater","Flow through","Every 2-3 days","No ref tox","data provided for each treatment","Trimmed Spearman-Karber","95% CL (1530-1760)","7.72 (7.59-7.79)","7.10 (6.95-7.40) mg/L","28 (28-28)","NH4Cl (99.9%); synth softwater characterised; control measured for ammonia"]
["Category","Freshwater/non-metal/non- plant","Paper and data unique identifier(eg. 1-1,10-150)","226-2"]
["Scores",10,5,5,5,5,5,5,5,5,4,4,0,4,4,4,3,3,3,3,82,0.90109890109890112,null,""]
["Answers","7 d","Mortality","LC",50,"Control ","Duplicate","Control response provided; QA max 10% mortality ","Fry (206 mg (SE 8.4 mg)","Synthetic softwater","Flow through","Every 2-3 days","No ref tox","data provided for each treatment","Trimmed Spearman-Karber","95% CL (1710-1860)","7.72 (7.59-7.79)","7.10 (6.95-7.40) mg/L","28 (28-28)","NH4Cl (99.9%); synth softwater characterised; control measured for ammonia"]
["Category","Freshwater/non-metal/non- plant","Paper and data unique identifier(eg. 1-1,10-150)","227-1"]
["Scores",10,10,5,5,5,5,0,5,5,4,4,0,4,4,4,3,3,3,3,82,0.90109890109890112,null,""]
["Answers","30 d","Mortality","LC",50,"Control ","four reps","Not stated or inferred (but more info available in a report by Meyer et al (2000)","late-stage larvae (wt 0.059 g; length 21 mm)","20% well water 80% deionised water","Flow through","once per week","No ref tox","observed","Trimmed Spearman-Karber","95% CL (420-480)","9.5 (SD=0.09)","6.2 (SD=0.38)","22.3 (SD=0.22)","NH4Cl; test water characterised; control measured for ammonia"]
["Category","Freshwater/non-metal/non- plant","Paper and data unique identifier(eg. 1-1,10-150)","227-2"]
["Scores",10,10,5,5,5,5,0,5,5,4,4,0,4,4,4,3,3,3,3,82,0.90109890109890112,null,""]
["Answers","30 d","Mortality","NOEC","p 0.05","Control ","four reps","Not stated or inferred (but more info available in a report by Meyer et al (2000)","late-stage larvae (wt 0.059 g; length 21 mm)","20% well water 80% deionised water","Flow through","once per week","No ref tox","observed","Trimmed Spearman-Karber","p 0.05","9.5 (SD=0.09)","6.2 (SD=0.38)","22.3 (SD=0.22)","NH4Cl; test water characterised; control measured for ammonia"]
["Category","Freshwater/non-metal/non- plant","Paper and data unique identifier(eg. 1-1,10-150)","228-1"]
["Scores",10,5,5,5,5,5,2,5,5,4,4,0,4,4,4,3,3,3,3,79,0.86813186813186816,null,""]
["Answers","10 d","Mortality","LC",50,"Control ","triplicate","ASTM, 1997","Embryo stage 12","Well water (uncontaminated, pH, cond, hardness, alk measured)","Daily renewal","at least 6-8 times","No ref tox","Data provided","Trimmed Spearman-Karber","95% CL (320-420)","6.7 (6.6-6.7)","7.6 (SD=0.1) mg/L",22,"NH4NO3 (99%); control measured"]
["Category","Freshwater/non-metal/non- plant","Paper and data unique identifier(eg. 1-1,10-150)","228-2"]
["Scores",10,5,5,5,5,5,2,5,5,4,4,0,4,4,4,3,3,3,3,79,0.86813186813186816,null,""]
["Answers","10 d","Mortality","LC",50,"Control ","triplicate","ASTM, 1997","Embryo stage 12","Well water (uncontaminated, pH, cond, hardness, alk measured)","Daily renewal","at least 6-8 times","No ref tox","Data provided","Trimmed Spearman-Karber","95% CL (570-720)","6.7 (6.6-6.7)","7.6 (SD=0.1) mg/L",22,"NH4Cl (99%); control measured"]
["Category","Freshwater/non-metal/non- plant","Paper and data unique identifier(eg. 1-1,10-150)","228-3"]
["Scores",10,5,5,5,5,5,2,5,5,4,4,0,4,4,4,3,3,3,3,79,0.86813186813186816,null,""]
["Answers","10 d","Mortality","LC",50,"Control ","triplicate","ASTM, 1997","Embryo stage 12","Well water (uncontaminated, pH, cond, hardness, alk measured)","Daily renewal","at least 6-8 times","No ref tox","Data provided","Trimmed Spearman-Karber","95% CL (470-560)","6.7 (6.6-6.7)","7.6 (SD=0.1) mg/L",22,"NH4SO4 (99%); control measured"]
["Category","Freshwater/non-metal/non- plant","Paper and data unique identifier(eg. 1-1,10-150)","228-4"]
["Scores",10,10,5,5,5,5,2,5,5,4,4,0,4,4,4,3,3,3,3,84,0.92307692307692313,null,""]
["Answers","10 d","Length and wet weight","NOAEL","p 0.05","Control ","triplicate","ASTM, 1997","Embryo stage 12","Well water (uncontaminated, pH, cond, hardness, alk measured)","Daily renewal","at least 6-8 times","No ref tox","Data provided","ANOVA, Dunnett's ","p 0.05","6.7 (6.6-6.7)","7.6 (SD=0.1) mg/L",22,"NH4NO3 (99%); control measured"]
["Category","Freshwater/non-metal/non- plant","Paper and data unique identifier(eg. 1-1,10-150)","228-5"]
["Scores",10,10,5,5,5,5,2,5,5,4,4,0,4,4,4,3,3,3,3,84,0.92307692307692313,null,""]
["Answers","10 d","Length and wet weight and deformaty","NOAEL","p 0.05","Control ","triplicate","ASTM, 1997","Embryo stage 12","Well water (uncontaminated, pH, cond, hardness, alk measured)","Daily renewal","at least 6-8 times","No ref tox","Data provided","ANOVA, Dunnett's ","p 0.05","6.7 (6.6-6.7)","7.6 (SD=0.1) mg/L",22,"NH4CL (99%); control measured"]
["Category","Freshwater/non-metal/non- plant","Paper and data unique identifier(eg. 1-1,10-150)","228-6"]
["Scores",10,10,5,5,5,5,2,5,5,4,4,0,4,4,4,3,3,3,3,84,0.92307692307692313,null,""]
["Answers","10 d","Wet weight ","NOAEL","p 0.05","Control ","triplicate","ASTM, 1997","Embryo stage 12","Well water (uncontaminated, pH, cond, hardness, alk measured)","Daily renewal","at least 6-8 times","No ref tox","Data provided","ANOVA, Dunnett's ","p 0.05","6.7 (6.6-6.7)","7.6 (SD=0.1) mg/L",22,"NH4SO4 (99%); control measured"]
["Category","Freshwater/non-metal/non- plant","Paper and data unique identifier(eg. 1-1,10-150)","228-7"]
["Scores",10,5,5,5,5,5,2,5,5,4,4,0,4,4,4,3,3,3,3,79,0.86813186813186816,null,""]
["Answers","10 d","Length","NOAEL","p 0.05","Control ","triplicate","ASTM, 1997","Embryo stage 12","Well water (uncontaminated, pH, cond, hardness, alk measured)","Daily renewal","at least 6-8 times","No ref tox","Data provided","ANOVA, Dunnett's ","p 0.05","6.7 (6.6-6.7)","7.6 (SD=0.1) mg/L",22,"NH4SO4 (99%); control measured"]
["Category","Freshwater/non-metal/non- plant","Paper and data unique identifier(eg. 1-1,10-150)","229-1"]
["Scores",10,5,5,5,5,5,2,5,5,4,4,0,4,4,4,3,3,1,3,77,0.84615384615384615,null,""]
["Answers","10 d","Survival","LC",50,"Control ","triplicate","ASTM, 1997","50-60 d (early hind limb bud, 60-130 mg)","Well water (uncontaminated, pH, cond, hardness, alk measured)","Daily renewal","at least 6-8 times","No ref tox","Data provided","Trimmed Spearman-Karber","95% CL (360-550)","7.0-7.6","7.2 (SD=0.1) mg/L","22 (not clear if measured)","NH4NO3 (99% Tech grade); control measured"]
["Category","Freshwater/non-metal/non- plant","Paper and data unique identifier(eg. 1-1,10-150)","229-2"]
["Scores",10,5,5,5,5,5,2,5,5,4,4,0,4,4,4,3,3,1,3,77,0.84615384615384615,null,""]
["Answers","10 d","Survival","LC",50,"Control ","triplicate","ASTM, 1997","14 d (early hind limb bud, 14-21 mg)","Well water (uncontaminated, pH, cond, hardness, alk measured)","Daily renewal","at least 6-8 times","No ref tox","Data provided","Trimmed Spearman-Karber","95% CL (250-320)","6.7-7.6","7.2 (SD=0.1) mg/L","22 (not clear if measured)","NH4NO3 (99% Tech grade); control measured"]
["Category","Freshwater/non-metal/non- plant","Paper and data unique identifier(eg. 1-1,10-150)","229-3"]
["Scores",10,5,5,5,5,5,2,5,5,4,4,0,4,4,4,3,3,1,3,77,0.84615384615384615,null,""]
["Answers","10 d","Survival","LC",50,"Control ","triplicate","ASTM, 1997","50-60 d (early hind limb bud, 60-130 mg)","Well water (uncontaminated, pH, cond, hardness, alk measured)","Daily renewal","at least 6-8 times","No ref tox","Data provided","Trimmed Spearman-Karber","95% CL (730-1070)","7.0-7.6","7.2 (SD=0.1) mg/L","22 (not clear if measured)","NH4SO4 (99% Tech grade); control measured"]
["Category","Freshwater/non-metal/non- plant","Paper and data unique identifier(eg. 1-1,10-150)","229-4"]
["Scores",10,5,5,5,5,5,2,5,5,4,4,0,4,4,4,3,3,1,3,77,0.84615384615384615,null,""]
["Answers","10 d","Survival","LC",50,"Control ","triplicate","ASTM, 1997","14 d (early hind limb bud, 14-21 mg)","Well water (uncontaminated, pH, cond, hardness, alk measured)","Daily renewal","at least 6-8 times","No ref tox","Data provided","Trimmed Spearman-Karber","95% CL (360-500)","6.7-7.6","7.2 (SD=0.1) mg/L","22 (not clear if measured)","NH4SO4 (99% Tech grade); control measured"]
["Category","Freshwater/non-metal/non- plant","Paper and data unique identifier(eg. 1-1,10-150)","229-5"]
["Scores",10,5,5,5,5,5,2,5,5,4,4,0,4,4,4,3,3,1,3,77,0.84615384615384615,null,""]
["Answers","10 d","Survival","LC",50,"Control ","triplicate","ASTM, 1997","14 d (early hind limb bud, 14-21 mg)","Well water (uncontaminated, pH, cond, hardness, alk measured)","Daily renewal","at least 6-8 times","No ref tox","Data provided","Trimmed Spearman-Karber","95% CL (290-380)","6.7-7.6","7.2 (SD=0.1) mg/L","22 (not clear if measured)","NH4Cl (99% Tech grade); control measured"]
["Category","Freshwater/non-metal/non- plant","Paper and data unique identifier(eg. 1-1,10-150)","229-6"]
["Scores",10,10,5,5,5,5,2,5,5,4,4,0,4,4,4,3,3,1,3,82,0.90109890109890112,null,""]
["Answers","10 d","Both length and wet weight endpoints","NOAEL","p 0.05","Control ","triplicate","ASTM, 1997","50-60 d (early hind limb bud, 60-130 mg)","Well water (uncontaminated, pH, cond, hardness, alk measured)","Daily renewal","at least 6-8 times","No ref tox","Data provided","Dunnetts","p 0.05","7.0-7.6","7.2 (SD=0.1) mg/L","22 (not clear if measured)","NH4NO3 (99% Tech grade); control measured"]
["Category","Freshwater/non-metal/non- plant","Paper and data unique identifier(eg. 1-1,10-150)","229-7"]
["Scores",10,10,5,5,5,5,2,5,5,4,4,0,4,4,4,3,3,1,3,82,0.90109890109890112,null,""]
["Answers","10 d","Both length and wet weight endpoints","NOAEL","p 0.05","Control ","triplicate","ASTM, 1997","14 d (early hind limb bud, 14-21 mg)","Well water (uncontaminated, pH, cond, hardness, alk measured)","Daily renewal","at least 6-8 times","No ref tox","Data provided","Dunnetts","p 0.05","6.7-7.6","7.2 (SD=0.1) mg/L","22 (not clear if measured)","NH4NO3 (99% Tech grade); control measured"]
["Category","Freshwater/non-metal/non- plant","Paper and data unique identifier(eg. 1-1,10-150)","229-8"]
["Scores",10,10,5,5,5,5,2,5,5,4,4,0,4,4,4,3,3,1,3,82,0.90109890109890112,null,""]
["Answers","10 d","Length ","NOAEL","p 0.05","Control ","triplicate","ASTM, 1997","50-60 d (early hind limb bud, 60-130 mg)","Well water (uncontaminated, pH, cond, hardness, alk measured)","Daily renewal","at least 6-8 times","No ref tox","Data provided","Dunnetts","p 0.05","7.0-7.6","7.2 (SD=0.1) mg/L","22 (not clear if measured)","NH4SO4 (99% Tech grade); control measured"]
["Category","Freshwater/non-metal/non- plant","Paper and data unique identifier(eg. 1-1,10-150)","229-9"]
["Scores",10,10,5,5,5,5,2,5,5,4,4,0,4,4,4,3,3,1,3,82,0.90109890109890112,null,""]
["Answers","10 d","Wet weight","NOAEL","p 0.05","Control ","triplicate","ASTM, 1997","50-60 d (early hind limb bud, 60-130 mg)","Well water (uncontaminated, pH, cond, hardness, alk measured)","Daily renewal","at least 6-8 times","No ref tox","Data provided","Dunnetts","p 0.05","7.0-7.6","7.2 (SD=0.1) mg/L","22 (not clear if measured)","NH4SO4 (99% Tech grade); control measured"]
["Category","Freshwater/non-metal/non- plant","Paper and data unique identifier(eg. 1-1,10-150)","229-10"]
["Scores",10,10,5,5,5,5,2,5,5,4,4,0,4,4,4,3,3,1,3,82,0.90109890109890112,null,""]
["Answers","10 d","Both length and wet weight","NOAEL","p 0.05","Control ","triplicate","ASTM, 1997","14 d (early hind limb bud, 14-21 mg)","Well water (uncontaminated, pH, cond, hardness, alk measured)","Daily renewal","at least 6-8 times","No ref tox","Data provided","Dunnetts","p 0.05","6.7-7.6","7.2 (SD=0.1) mg/L","22 (not clear if measured)","NH4SO4 (99% Tech grade); control measured"]
["Category","Freshwater/non-metal/non- plant","Paper and data unique identifier(eg. 1-1,10-150)","229-11"]
["Scores",10,10,5,5,5,5,2,5,5,4,4,0,4,4,4,3,3,1,3,82,0.90109890109890112,null,""]
["Answers","10 d","Both length and wet weight","NOAEL","p 0.05","Control ","triplicate","ASTM, 1997","14 d (early hind limb bud, 14-21 mg)","Well water (uncontaminated, pH, cond, hardness, alk measured)","Daily renewal","at least 6-8 times","No ref tox","Data provided","Dunnetts","p 0.05","6.7-7.6","7.2 (SD=0.1) mg/L","22 (not clear if measured)","NH4Cl (99% Tech grade); control measured"]
["Category","Freshwater/non-metal/non- plant","Paper and data unique identifier(eg. 1-1,10-150)","230-1"]
["Scores",10,5,5,5,5,0,0,5,0,4,4,0,0,0,4,1,0,1,0,49,0.53846153846153844,null,""]
["Answers","72 d","Mortality","LC",50,"Control ","Not reported","Not reported (30% mortality in controls)","fertilised eggs (with 24 h of fertilisation)","But measured for alkalinity and hardness","Semicontinuous","every three days ","No ref tox","Assumed but not provided","Unclear (Litchfield and Wilcoxon)","95% CL reported ",7.4,"Not reported",14.5,"NH4Cl (grade not reported); control measured (but not reported)"]
["Category","Freshwater/non-metal/non- plant","Paper and data unique identifier(eg. 1-1,10-150)","230-2"]
["Scores",10,5,5,5,5,0,0,5,0,4,4,0,0,0,0,1,0,1,0,45,0.49450549450549453,null,""]
["Answers","72 d","Mortality","LC",15,"Control ","Not reported","Not reported (30% mortality in controls)","fertilised eggs (with 24 h of fertilisation)","But measured for alkalinity and hardness","Semicontinuous","every three days ","No ref tox","Assumed but not provided","Unclear ","Not reported",7.4,"Not reported",14.5,"NH4Cl (grade not reported); control measured (but not reported)"]
["Category","Freshwater/non-metal/non- plant","Paper and data unique identifier(eg. 1-1,10-150)","231-1"]
["Scores",10,10,5,5,5,5,0,0,5,4,4,0,4,4,4,3,1,3,3,75,0.82417582417582413,null,""]
["Answers","29 days","abundance, number of juveniles","NOEC","p<0.05","control treatment (3 reps)","3 treatments, 3 reps each","NA, mesocosm natural population abundance study","NA, mixed mayfly natural population","tap water (Ruakura reservoir) with alkalinity adjusted to 92 mg/L","mesocosm, flow through","measured regularly throughout the 29 days (did fluctuate, especually in highest concentration treatment)","no ref tox tests","observed (figure) and stated","ANOVA (after testing for normality and homogeneity of variance)","p<0.05","8.3-8.4, measured every two days","measured (but not stated)","15.81 (avg) ","AR grade ammonium chloride, ammonia measured in controls and treatments. "]
["Category","Freshwater/non-metal/non- plant","Paper and data unique identifier(eg. 1-1,10-150)","232-1"]
["Scores",10,5,5,5,5,5,2,0,5,4,4,0,4,4,4,3,3,3,3,74,0.81318681318681318,null,""]
["Answers","96 h","population growth rate","EC10","10% effect","control treatment (3 reps)","7 treatments, 2 reps each","Referred to standard protocol of Riethmuller et al., 2003","10 hydra individuals (did not mention presence of a bud formation as described in protocol), animals also acclimated to test pH","Magela Ck water + HEPES buffer","static 24-h renewal","Start and end of test duration","no ref tox tests","observed (in figure) and stated","Non-linear 3-parameter log-logistic regression (with box-cox weighting function)","95% CL (0.48-1.71)","6.0 +/- 0.05 (SD)","91-103%",27.4,"ammonium sulfate, analyses of metals and major ions in dilution water "]
["Category","Freshwater/non-metal/non- plant","Paper and data unique identifier(eg. 1-1,10-150)","232-2"]
["Scores",10,5,5,5,5,5,2,0,5,4,4,0,4,4,4,3,3,3,3,74,0.81318681318681318,null,""]
["Answers","96 h","population growth rate","EC10","10% effect","control treatment (3 reps)","7 treatments, 2 reps each","Referred to standard protocol of Riethmuller et al., 2003","10 hydra individuals (did not mention presence of a bud formation as described in protocol), animals also acclimated to test pH","Magela Ck water + HEPES buffer","static 24-h renewal","Start and end of test duration","no ref tox tests","observed (in figure) and stated","Non-linear 3-parameter log-logistic regression (with box-cox weighting function)","95% CL (1.32-3.99)","6.6 +/- 0.06 (SD)","92-104%",27.4,"ammonium sulfate, analyses of metals and major ions in dilution water "]
["Category","Freshwater/non-metal/non- plant","Paper and data unique identifier(eg. 1-1,10-150)","232-3"]
["Scores",10,5,5,5,5,5,2,0,5,4,4,0,4,4,4,3,3,3,3,74,0.81318681318681318,null,""]
["Answers","96 h","population growth rate","EC10","10% effect","control treatment (3 reps)","7 treatments, 2 reps each","Referred to standard protocol of Riethmuller et al., 2003","10 hydra individuals (did not mention presence of a bud formation as described in protocol), animals also acclimated to test pH","Magela Ck water + HEPES buffer","static 24-h renewal","Start and end of test duration","no ref tox tests","observed (in figure) and stated","Non-linear 3-parameter log-logistic regression (with box-cox weighting function)","95% CL (2.20-4.28)","7.0 +/- 0.05 (SD)","87-103%",27.4,"ammonium sulfate, analyses of metals and major ions in dilution water "]
["Category","Freshwater/non-metal/non- plant","Paper and data unique identifier(eg. 1-1,10-150)","232-4"]
["Scores",10,5,5,5,5,5,2,0,5,4,4,0,4,4,4,3,3,3,3,74,0.81318681318681318,null,""]
["Answers","96 h","population growth rate","EC10","10% effect","control treatment (3 reps)","7 treatments, 2 reps each","Referred to standard protocol of Riethmuller et al., 2003","10 hydra individuals (did not mention presence of a bud formation as described in protocol), animals also acclimated to test pH","Magela Ck water + HEPES buffer","static 24-h renewal","Start and end of test duration","no ref tox tests","observed (in figure) and stated","Non-linear 3-parameter log-logistic regression (with box-cox weighting function)","95% CL (1.62-6.26)","7.5 +/- 0.10 (SD)","90-109%",27.4,"ammonium sulfate, analyses of metals and major ions in dilution water "]
["Category","Freshwater/non-metal/non- plant","Paper and data unique identifier(eg. 1-1,10-150)","232-5"]
["Scores",10,5,5,5,5,5,2,0,5,4,4,0,4,4,4,3,3,3,3,74,0.81318681318681318,null,""]
["Answers","96 h","population growth rate","EC10","10% effect","control treatment (3 reps)","7 treatments, 2 reps each","Referred to standard protocol of Riethmuller et al., 2003","10 hydra individuals (did not mention presence of a bud formation as described in protocol), animals also acclimated to test pH","Magela Ck water + HEPES buffer","static 24-h renewal","Start and end of test duration","no ref tox tests","observed (in figure) and stated","Non-linear 3-parameter log-logistic regression (with box-cox weighting function)","95% CL (2.37-7.90)","7.8 +/- 0.17 (SD)","91-100%",26.6,"ammonium sulfate, analyses of metals and major ions in dilution water "]
["Category","Freshwater/non-metal/non- plant","Paper and data unique identifier(eg. 1-1,10-150)","232-6"]
["Scores",10,5,5,5,5,5,2,0,5,4,4,0,4,4,4,3,3,3,3,74,0.81318681318681318,null,""]
["Answers","96 h","population growth rate","EC10","10% effect","control treatment (3 reps)","7 treatments, 2 reps each","Referred to standard protocol of Riethmuller et al., 2003","10 hydra individuals (did not mention presence of a bud formation as described in protocol), animals also acclimated to test pH","Magela Ck water + HEPES buffer","static 24-h renewal","Start and end of test duration","no ref tox tests","observed (in figure) and stated","Non-linear 3-parameter log-logistic regression (with box-cox weighting function)","95% CL (3.80-15.94)","8.1 +/- 0.29 (SD)","87-105%",27.1,"ammonium sulfate, analyses of metals and major ions in dilution water "]
["Category","Freshwater/non-metal/non- plant","Paper and data unique identifier(eg. 1-1,10-150)","233-3"]
["Scores",10,5,5,5,5,5,5,5,5,4,4,0,4,4,4,3,3,3,3,82,0.90109890109890112,null,""]
["Answers","96 h","population growth rate","EC10","10% effect","control treatment (3 reps)","3 reps control, 2 reps each","Referred to standard protocol of Riethmuller et al., 2003; QA criteria stated and stated criteria met","10 hydra individuals/rep woth bud formation","Magela Ck water (with atmospheric CO2 buffer)","24-h renewal","Start and end of test duration at a minimum","no ref tox tests","observed (in figure) and stated","Non-linear 3-parameter log-logistic regression (with box-cox weighting function), CETIS software","95% CL (0.69-2.92)","6.2 +/- 0.1 (SD) (n=112)",">= 83%","26.9 (26.7-27.1)","ammonium sulfate, analyses of metals and major ions in dilution water "]
["Category","Freshwater/non-metal/non- plant","Paper and data unique identifier(eg. 1-1,10-150)","233-4"]
["Scores",10,10,5,5,5,5,5,5,5,4,4,0,4,4,4,3,3,3,3,87,0.95604395604395609,null,""]
["Answers","120-144 h (3 broods in the control)","reproduction (neonates per adult)","EC10","10% effect","control treatment (10 reps)","each treatment with 10 reps (1 neonate per rep)","Referred to standard protocol of Riethmuller et al., 2003; QA criteria stated and stated criteria met","10 hydra individuals/rep with bud formation","Magela Ck water (with atmospheric CO2 buffer)","24-h renewal","Start and end of test duration at a minimum","no ref tox tests","observed (in figure) and stated","Non-linear 3-parameter log-logistic regression (with box-cox weighting function), CETIS software","95% CL (10.4-23.7)","6.0 +/- 0.1 (SD) (n=120)",">= 88%","27.5 (26.0-28.4)","ammonium sulfate, analyses of metals and major ions in dilution water "]
["Category","Freshwater/non-metal/non- plant","Paper and data unique identifier(eg. 1-1,10-150)","233-5"]
["Scores",10,10,5,5,5,5,5,5,5,4,4,0,4,4,4,3,3,3,3,87,0.95604395604395609,null,""]
["Answers","4 d","reproduction (mean eggs per snail pair)","EC10","10% effect","control treatment (3 reps)","3 reps (12 individuals (i.e. six pairs) per rep)","Referred to Houston et al., 2007 with ammendments in Mooney et al., 2016; QA criteria stated and stated criteria met","snails: 10-13 mm shell length","Magela Ck water (1 mM MES buffer)","24-h renewal","Start and end of test duration at a minimum","no ref tox tests","observed (in figure) and stated","Non-linear 3-parameter log-logistic regression (with box-cox weighting function), CETIS software","95% CL (6.1-26.2)","6.1 +/- 0.2 (SD) (n=336)",">= 75%","29.8 (27.7-31.5)","ammonium sulfate, analyses of metals and major ions in dilution water "]
["Category","Freshwater/non-metal/non- plant","Paper and data unique identifier(eg. 1-1,10-150)","233-6"]
["Scores",10,10,5,5,5,5,5,5,5,4,4,0,4,4,4,3,3,3,3,87,0.95604395604395609,null,""]
["Answers","9 d","reproduction (mean eggs per snail pair)","EC10","10% effect","control treatment (3 reps)","3 reps (12 individuals (i.e. six pairs) per rep)","Referred to Houston et al., 2007 with ammendments in Mooney et al., 2016; QA criteria stated and stated criteria met","snails: 10-13 mm shell length","Magela Ck water (1 mM MES buffer)","24-h renewal","Start and end of test duration at a minimum","no ref tox tests","observed (in figure) and stated","Non-linear 3-parameter log-logistic regression (with box-cox weighting function), CETIS software","95% CL (NA-32.6)","6.1 +/- 0.2 (SD) (n=336)",">= 75%","29.8 (27.7-31.5)","ammonium sulfate, analyses of metals and major ions in dilution water "]
["Category","Freshwater/non-metal/non- plant","Paper and data unique identifier(eg. 1-1,10-150)","233-7"]
["Scores",10,10,5,5,5,5,5,5,5,4,4,0,4,4,4,3,3,3,3,87,0.95604395604395609,null,""]
["Answers","14 d","reproduction (mean eggs per snail pair)","EC10","10% effect","control treatment (3 reps)","3 reps (12 individuals (i.e. six pairs) per rep)","Referred to Houston et al., 2007 with ammendments in Mooney et al., 2016; QA criteria stated and stated criteria met","snails: 10-13 mm shell length","Magela Ck water (1 mM MES buffer)","24-h renewal","Start and end of test duration at a minimum","no ref tox tests","observed (in figure) and stated","Non-linear 3-parameter log-logistic regression (with box-cox weighting function), CETIS software","95% CL (NA-38.4)","6.1 +/- 0.2 (SD) (n=336)",">= 75%","29.8 (27.7-31.5)","ammonium sulfate, analyses of metals and major ions in dilution water "]
["Category","Freshwater/non-metal/non- plant","Paper and data unique identifier(eg. 1-1,10-150)","233-8"]
["Scores",10,10,5,5,5,5,5,5,5,4,4,0,4,4,4,3,3,3,3,87,0.95604395604395609,null,""]
["Answers","7 d","Growth (growth rate, mean daily increase in length)","EC10","10% effect","control treatment (3 reps)","3 reps (10 individuals per rep)","Referred to Pease et al., 2016 (conference presentation); QA criteria stated and stated criteria met","larvae (20-30 h old) (transitions to fry on day 3 of test)","Magela Ck water (with atmospheric CO2 buffering)","24-h renewal","Start and end of test duration at a minimum","no ref tox tests","observed (in figure) and stated","Non-linear 3-parameter log-logistic regression (with box-cox weighting function), CETIS software","95% CL (NA-7.1)","6.1 +/- 0.2 (SD) (n=182)",">= 85%","27.1 (26.6-27.8)","ammonium sulfate, analyses of metals and major ions in dilution water "]
["Category","Freshwater/non-metal/non- plant","Paper and data unique identifier(eg. 1-1,10-150)","234-1"]
["Scores",10,5,5,5,5,5,5,5,5,4,4,0,4,4,4,3,3,3,3,82,0.90109890109890112,null,""]
["Answers","14 d","Growth (growth rate, µm/day)","EC10","10% effect","control treatment ","2 reps (10 individuals per rep)","QA criteria stated and and reported","juvenile (<24-h old)","Magela Ck water (with 1mM HEPES, 100 NTU suing fine sediment <63µm)","24-h renewal","Start and end of test duration at a minimum","no ref tox tests","observed (in figures) ","Non-linear 3-parameter log-logistic regression (with box-cox weighting function), CETIS software","95% CL (1.23-3.22)","5.99 +/- 0.02 (SD)","100.6 +/- 1.2%",27.2,"ammonium sulfate, analyses of metals and major ions in dilution water "]
["Category","Freshwater/non-metal/non- plant","Paper and data unique identifier(eg. 1-1,10-150)","234-2"]
["Scores",10,5,5,5,5,5,5,5,5,4,4,0,4,4,4,3,3,3,3,82,0.90109890109890112,null,""]
["Answers","14 d","Growth (growth rate, µm/day)","EC10","10% effect","control treatment ","2 reps (10 individuals per rep)","QA criteria stated and and reported","juvenile (<24-h old)","Magela Ck water (with 1mM HEPES, 100 NTU suing fine sediment <63µm)","24-h renewal","Start and end of test duration at a minimum","no ref tox tests","observed (in figures) ","Non-linear 3-parameter log-logistic regression (with box-cox weighting function), CETIS software","95% CL (1.12-2.57)","6.02 +/- 0.02 (SD) ","100.6 +/- 1.2%",27.2,"ammonium sulfate, analyses of metals and major ions in dilution water "]
["Category","Freshwater/non-metal/non- plant","Paper and data unique identifier(eg. 1-1,10-150)","234-3"]
["Scores",10,5,5,5,5,5,5,5,5,4,4,0,4,4,4,3,3,3,3,82,0.90109890109890112,null,""]
["Answers","14 d","Growth (growth rate, µm/day)","EC10","10% effect","control treatment ","2 reps (10 individuals per rep)","QA criteria stated and and reported","juvenile (<24-h old)","Magela Ck water (with 1mM HEPES, 100 NTU suing fine sediment <63µm)","24-h renewal","Start and end of test duration at a minimum","no ref tox tests","observed (in figures) ","Non-linear 3-parameter log-logistic regression (with box-cox weighting function), CETIS software","95% CL (0.75-2.68)","6.02 +/- 0.01 (SD) ","100.6 +/- 1.2%",27.2,"ammonium sulfate, analyses of metals and major ions in dilution water "]

{"sheet":"FW metal plant","index":9,"n_rows":87,"n_cols":53,"rows_kept":87,"cut":false,"hidden":false,"merged":[[3,4,7,4],[9,2,9,4],[11,2,13,2],[11,7,13,7],[14,2,16,2],[14,7,16,7],[17,2,19,2],[17,7,19,7],[20,2,21,2],[20,7,21,7],[22,2,24,2],[22,7,24,7],[25,2,27,2],[25,7,27,7],[28,2,30,2],[28,7,30,7],[31,2,33,2],[31,7,33,7],[34,2,36,2],[34,7,36,7],[37,2,39,2],[37,7,39,7],[40,2,42,2],[40,7,42,7],[43,2,45,2],[43,7,45,7],[46,2,48,2],[46,7,48,7],[49,2,51,2],[49,7,51,7],[71,2,74,2],[71,7,74,7],[52,2,54,2],[52,7,54,7],[68,2,70,2],[68,7,70,7],[65,7,67,7],[56,7,58,7],[59,7,61,7],[62,7,64,7]]}
[null,1,"Fill in the blank cells below, based on information provided in the paper being assessed. You can either pick an option from the dropdown list or add the appropriate detail using the 'Add to list' button. ",null,null,null,null,null,null,null,null,null,null,null,"* All the text in RED are used for drop down list ,make changes with caution."]
[null,null,"Category",{"$f":"IF(AF3=\"\",0,1)","v":0},"Freshwater/metal/plant",{"$f":"IF(E3=\"\",0,1)","v":0},"Citation No.",{"$f":"IF(ISERROR(FIND(\"-\",E3)),E3,LEFT(E3,FIND(\"-\",E3)-1))","v":0},null,"Taxonomic group",null,null,null,null,"Species",null,null,"Lifestage",null,null,"Exposure duration",null,null,"Measure of toxicity",null,null,"Toxicity endpoint",null,null,"Taxonomic group",null,null,"Phylum",null,null,"Class",null,null,"Media",null,null,"Temperature ",null,null,"Acute Or Chronic",null,null,"PH",null,null,"Salinity/Comdictivity"]
[null,null,"Paper and data unique identifier(eg. 1-1,10-150)",{"$f":"IF(AI3=\"\",0,1)","v":0},null,{"$f":"IF(E4=\"\",0,1)","v":0},"Species (Scientific name)",null,null,"Phylum",null,null,null,null,"Aedes albopictus",0,{"$f":"IF(P3=0,\"\",INDEX(O3:O108,P3))","v":""},"1 month",0,{"$f":"IF(S3=0,\"\",INDEX(R3:R108,S3))","v":""},"11 hour",0,{"$f":"IF(V3=0,\"\",INDEX(U3:U108,V3))","v":""},"LC50",0,{"$f":"IF(Y3=0,\"\",INDEX(X3:X108,Y3))","v":""},"Mortality",0,{"$f":"IF(AB3=0,\"\",INDEX(AA3:AA108,AB3))","v":""},"Fish ",0,{"$f":"IF(AE3=0,\"\",INDEX(AD3:AD108,AE3))","v":""},"Chlorophyta",0,{"$f":"IF(AH3=0,\"\",INDEX(AG3:AG108,AH3))","v":""},"Branchiopoda",0,{"$f":"IF(AK3=0,\"\",INDEX(AJ3:AJ108,AK3))","v":""},"Freshwater",0,{"$f":"IF(AN3=0,\"\",INDEX(AM3:AM108,AN3))","v":""},"15°C",0,{"$f":"IF(AQ3=0,\"\",INDEX(AP3:AP108,AQ3))","v":""},"Acute ",0,{"$f":"IF(AT3=0,\"\",INDEX(AS3:AS108,AT3))","v":""},"N.A.",0,{"$f":"IF(AW3=0,\"\",INDEX(AV3:AV108,AW3))","v":""},"Salinity1",null,"N.A."]
[null,null,"Citation",{"$f":"IF(AL3=\"\",0,1)","v":0},null,{"$f":"IF(H8=\"\",0,1)","v":0},"Lifestage",null,null,"Class",null,null,null,null,"Australian Bass",null,null,"1 year old",null,null,"13 days",null,null,"N.A.",null,null,"N.A.",null,null,"Microalga",null,null,"N.A.",null,null,"Chlorophyceae",null,null,"Marinewater",null,null,"25°C",null,null,"Chronic",null,null,"PH11",null,null,"Salinity2"]
[null,null,null,{"$f":"IF(AO3=\"\",0,1)","v":0},null,{"$f":"IF(AX3=\"\",0,1)","v":0},"Exposure duration",null,null,"Media",null,null,null,null,"N.A.",null,null,"N.A.",null,null,"N.A.",null,null,"NOEC",null,null,"Reproduction",null,null,"N.A.",null,null,"Tracheophyta",null,null,"N.A.",null,null,"N.A.",null,null,"N.A.",null,null,"N.A.",null,null,"PH7.0 "]
[null,null,null,{"$f":"IF(AR3=\"\",0,1)","v":0},null,{"$f":"IF(Q3=\"\",0,1)","v":0},"Measure of toxicity",null,null,"Temperature "]
[null,null,null,{"$f":"IF(AU3=\"\",0,1)","v":0},null,{"$f":"IF(T3=\"\",0,1)","v":0},"Toxicity endpoint",null,null,"Acute Or Chronic "]
[null,null,null,null,null,{"$f":"IF(W3=\"\",0,1)","v":0},"Toxicity value",null,null,"PH"]
[null,2,"Select the appropriate answer option to each question. Comments can be added to the cells in column H.",null,null,{"$f":"IF(Z3=\"\",0,1)","v":0},null,null,null,"Salinity/Conductivity","N.A."]
[null,"*","If the selected answer option does not work try clicking on any other cell first and then click back on the answer option again.",null,null,{"$f":"IF(AC3=\"\",0,1)","v":0}]
[null,"No.","Question","Marks Awarded","Answer Options","Option References","Scores","Answers"]
[null,null,"Was the duration of the exposure stated (e.g. 48 or 96 h)?",10,null,0,{"$f":"IF(F15=0,0,INDEX($D12:$D13,F12,1))","v":0}]
[null,1,null,0]
[]
[null,null,"Was the biological endpoint (e.g., immobilization or population growth) stated and defined (10 marks)? Award 5 marks if the biological endpoint is only stated.",10,null,0,{"$f":"IF(F15=0,0,INDEX($D15:$D17,F15,1))","v":0}]
[null,2,null,5]
[null,null,null,0]
[null,null,"Was the biological effect stated (e.g. LC or NOEC)?",5,null,0,{"$f":"IF(F18=0,0,INDEX($D18:$D19,F18,1))","v":0}]
[null,3,null,0]
[]
[null,4,"Was the biological effect quantified (e.g. 50% effect, 25% effect)? \nNote: The effect for NOEC and LOEC data must be quantified.",5,null,0,{"$f":"IF(F21=0,0,INDEX($D21:$D22,F21,1))","v":0}]
[null,null,null,0]
[null,5,"Were appropriate controls (e.g. a no-toxicant control and/or solvent control) used?",5,null,0,{"$f":"IF(F23=0,0,INDEX($D23:$D24,F23,1))","v":0}]
[null,null,null,0]
[]
[null,6,"Was each control and contaminant concentration at least duplicated?",5,null,0,{"$f":"IF(F26=0,0,INDEX($D26:$D27,F26,1))","v":0}]
[null,null,null,0]
[]
[null,7,"Were test acceptability criteria stated (e.g. mortality in controls must not exceed a certain percentage) (5 marks)?\nOR Were test acceptability criteria inferred (e.g. test method used [USEPA, OECD, ASTM etc.]) (award 2 marks). \nNote: Data that fail the acceptability criteria are automatically deemed to be of unacceptable quality and must not be used. ",5,null,0,{"$f":"IF(F29=0,0,INDEX($D29:$D31,F29,1))","v":0}]
[null,null,null,2]
[null,null,null,0]
[null,8,"Were the characteristics of the test organism (e.g. length, mass, age) stated?",5,null,0,{"$f":"IF(F32=0,0,INDEX($D32:$D34,F32,1))","v":0}]
[null,null,null,0]
[]
[null,9,"Was the type of test media used stated?",5,null,0,{"$f":"IF(F35=0,0,INDEX($D35:$D37,F35,1))","v":0}]
[null,null,null,0]
[]
[null,null,"Was the type of exposure (e.g. static, flow through) stated? ",4,null,0,{"$f":"IF(F38=0,0,INDEX($D38:$D40,F38,1))","v":0}]
[null,10,null,0]
[]
[null,null,"Were the contaminant concentrations measured at the beginning and end of the exposure (4 marks)? Award 2 marks if they were measured only once during the test.\nNote: If the concentrations were not measured then automatically the data cannot be high quality. ",4,null,0,{"$f":"IF(F41=0,0,INDEX($D41:$D43,F41,1))","v":0}]
[null,11,null,2]
[null,null,null,0]
[null,null,"Were parallel reference toxicant toxicity tests conducted?",4,null,0,{"$f":"IF(F44=0,0,INDEX($D44:$D46,F44,1))","v":0}]
[null,12,null,0]
[]
[null,null,"Was there a concentration–response relationship either observable or stated?",4,null,0,{"$f":"IF(F47=0,0,INDEX($D47:$D49,F47,1))","v":0}]
[null,13,null,0]
[]
[null,null,"Was an appropriate statistical method or model used to determine the toxicity?\nNote: They should be accepted by a recognised national or international regulatory body (e.g. USEPA, OECD, ASTM). ",4,null,0,{"$f":"IF(F50=0,0,INDEX($D50:$D52,F50,1))","v":0}]
[null,14,null,0]
[]
[null,15,"For LC/EC/BEC data was an estimate of variability provided? \nOR \nFor NO EC/LOEC data was the significance level 0.05 or less?  \n\n",4,null,0,{"$f":"IF(F53=0,0,INDEX($D53:$D55,F53,1))","v":0}]
[null,null,null,0]
[]
[null,16,"Were the following parameters measured and stated? (3 marks if measured and stated, 1 mark if just measured)."]
[null,null,null,3,null,0,{"$f":"IF(F57=0,0,INDEX($D57:$D59,F57,1))","v":0}]
[null,16.100000000000001,"pH ",1]
[null,null,null,0]
[null,null,null,3,null,0,{"$f":"IF(F60=0,0,INDEX($D60:$D62,F60,1))","v":0}]
[null,16.2,"Hardness",1]
[null,null,null,0]
[null,null,null,3,null,0,{"$f":"IF(F63=0,0,INDEX($D63:$D65,F63,1))","v":0}]
[null,16.3,"Alkalinity ",1]
[null,null,null,0]
[null,null,null,3,null,0,{"$f":"IF(F66=0,0,INDEX($D66:$D68,F66,1))","v":0}]
[null,16.399999999999999,"Organic carbon concentration",1]
[null,null,null,0]
[null,null,"Was the temperature measured and stated (3 marks)? Award 1 mark if the temperature was measured but not stated or if only the temperature settings of the room or chamber are stated.",3,null,0,{"$f":"IF(F69=0,0,INDEX($D69:$D71,F69,1))","v":0}]
[null,17,null,1]
[null,null,null,0]
[null,null,"Were test solutions, blanks and/or controls tested for contamination OR were analytical reagent grade chemicals used or the highest possible purity chemicals used for the experiment? (3 marks).",3,null,0,{"$f":"IF(F72=0,0,INDEX($D72:$D73,F72,1))","v":0}]
[null,18,null,0]
[]
[null,null,null,null,null,null,null,null,{"$f":"(COUNTIF(F12:F73,\"=0\"))+COUNTIF(F2:F10,\"=0\")+COUNTIF(D2:D7,\"=0\")","v":36}]
[]
[]
[null,null,"Total score",null,null,null,{"$f":"IF(SUM(G12:G72)=0,\"\",SUM(G12:G72))","v":""}]
[null,null,"Total Max. possible score for the various types of data and contaminants ",null,{"$f":"D12+D15+D18+D21+D23+D26+D29+D32+D35+D38+D41+D44+D47+D50+D53+D57+D66+D69+D72+D60+D63","v":97}]
[null,null,"Quality Score",null,{"$f":"\"= [Total score / Total possible score] * 100 = \"","v":"= [Total score / Total possible score] * 100 = "},null,{"$f":"IF(ISERROR(G78/E79),#N/A,G78/E79)","v":{"$error":"#N/A"}},{"$f":"IF(F41=3,\"The highest possible grade for this datum is acceptable.\",\"\")","v":""}]
[]
[null,null,"H = high quality                           Quality score ≥ 80%      "]
[null,null,"A = acceptable quality         > 50% Quality score < 80%      "]
[null,null,"U = unacceptable quality              Quality score ≤ 50%  "]
[]
[3,null,"Click the 'Save & Update' button to save and export the answers to the 'All results' worksheet. "]
[null,null,"Select the 'Reset Answers' button if you wish to clear all answers."]

{"sheet":"FW metal plant_WS","index":10,"n_rows":5,"n_cols":24,"rows_kept":5,"cut":false,"hidden":false,"merged":[]}
[]
["Question No.",1,2,3,4,5,6,7,8,9,10,11,12,13,14,15,16.100000000000001,16.2,16.3,16.399999999999999,17,18,"Total Score","Quality Score"]
["Short Questions","Duration of the exposure ","Biological endpoint","Biological effect stated or not","Biological effect quantified or not","Appropriate controls","Control & contaminant concentration","Test acceptability criteria","Characteristics of the test organism"," Type of test media","Type of exposure","Contaminant concentrations","Parallel reference toxicant toxicity tests","Concentration–response relationship","Determine the toxicity","NOEC/LOEC or LC/EC/BEC","pH","Hardness","Alkalinity ","Organic carbon concentration","Temperature","Grade or purity"]
["Marks Awarded ","10 or 0","10,5 or 0","5 or 0 ","5 or 0 ","5 or 0 ","5 or 0 ","5 or 0 ","5 or 0 ","5 or 0 ","4 or 0","4 or 2 or 0","4 or 2","4 or 2","4 or 2","4 or 2","3 or 1 or 0","3 or 1 or 0","3 or 1 or 0","3 or 1 or 0","3 or 0","3 or 0 "]
["Max. Possible Score",10,10,5,5,5,5,5,5,5,4,4,4,4,4,4,3,3,3,3,3,3,{"$f":"SUM(B5:V5)","v":97}]

{"sheet":"FW nonmetal plant","index":11,"n_rows":79,"n_cols":53,"rows_kept":79,"cut":false,"hidden":false,"merged":[[3,4,7,4],[9,2,9,4],[11,2,13,2],[11,7,13,7],[14,2,16,2],[14,7,16,7],[17,2,19,2],[17,7,19,7],[20,2,21,2],[20,7,21,7],[22,2,24,2],[22,7,24,7],[25,2,27,2],[25,7,27,7],[28,2,30,2],[28,7,30,7],[31,2,33,2],[31,7,33,7],[34,2,36,2],[34,7,36,7],[37,2,39,2],[37,7,39,7],[40,2,42,2],[40,7,42,7],[43,2,45,2],[43,7,45,7],[46,2,48,2],[46,7,48,7],[49,2,51,2],[49,7,51,7],[60,2,62,2],[60,7,62,7],[63,2,66,2],[63,7,66,7],[52,2,54,2],[52,7,54,7],[56,2,59,2],[56,7,59,7]]}
[null,1,"Fill in the blank cells below, based on information provided in the paper being assessed. You can either pick an option from the dropdown list or add the appropriate detail using the 'Add to list' button. ",null,null,null,null,null,null,null,null,null,null,null,"* All the text in RED are used for drop down list ,make changes with caution."]
[null,null,"Category",{"$f":"IF(AF3=\"\",0,1)","v":1},"Freshwater/non-metal/plant",{"$f":"IF(E3=\"\",0,1)","v":1},"Citation No.",{"$f":"IF(ISERROR(FIND(\"-\",E3)),E3,LEFT(E3,FIND(\"-\",E3)-1))","v":"233"},null,"Taxonomic group",null,null,null,null,"Species",null,null,"Lifestage",null,null,"Exposure duration",null,null,"Measure of toxicity",null,null,"Toxicity endpoint",null,null,"Taxonomic group",null,null,"Phylum",null,null,"Class",null,null,"Media",null,null,"Temperature ",null,null,"Acute Or Chronic",null,null,"PH",null,null,"Salinity/Conductivity"]
[null,null,"Paper and data unique identifier(eg. 1-1,10-150)",{"$f":"IF(AI3=\"\",0,1)","v":1},"233-2",{"$f":"IF(E4=\"\",0,1)","v":1},"Species (Scientific name)",null,null,"Phylum",null,null,null,null,"Aedes albopictus",5,{"$f":"IF(P3=0,\"\",INDEX(O3:O100,P3))","v":"Lemna aequinoctialis"},"1 month",6,{"$f":"IF(S3=0,\"\",INDEX(R3:R100,S3))","v":"3 fronds"},"11 hours",5,{"$f":"IF(V3=0,\"\",INDEX(U3:U100,V3))","v":"96 h"},"LC50",4,{"$f":"IF(Y3=0,\"\",INDEX(X3:X100,Y3))","v":"IC10"},"Mortality",5,{"$f":"IF(AB3=0,\"\",INDEX(AA3:AA100,AB3))","v":"Growth (surface area)"},"Fish",4,{"$f":"IF(AE3=0,\"\",INDEX(AD3:AD100,AE3))","v":"Macrophyt"},"Chlorophyta",4,{"$f":"IF(AH3=0,\"\",INDEX(AG3:AG100,AH3))","v":"Tracheophyta"},"Branchiopoda",5,{"$f":"IF(AK3=0,\"\",INDEX(AJ3:AJ102,AK3))","v":"Liliopsida"},"Freshwater",1,{"$f":"IF(AN3=0,\"\",INDEX(AM3:AM100,AN3))","v":"Freshwater"},"15°C",5,{"$f":"IF(AQ3=0,\"\",INDEX(AP3:AP100,AQ3))","v":29},"Acute ",2,{"$f":"IF(AT3=0,\"\",INDEX(AS3:AS100,AT3))","v":"Chronic"},"N.A.",5,{"$f":"IF(AW3=0,\"\",INDEX(AV3:AV100,AW3))","v":5.9},"30 ppt",null,"N.A."]
[null,null,"Citation",{"$f":"IF(AL3=\"\",0,1)","v":1},"Mooney, T.J., Pease, C., Hogan, A.C., Trenfield, M., Kleinhenz, L.S., Humphrey, C., van Dam, R. and Harford, A.J. (2018-in press) Freshwater chronic ammonia toxicity: a tropical-to-temperate comparison. Environmental Toxicology and Chemsitry (in press).",{"$f":"IF(AX3=\"\",0,1)","v":1},"Lifestage",null,null,"Class",null,null,null,null,"Australian Bass",null,null,"1 year old",null,null,"13 days ",null,null,"N.A.",null,null,"N.A.",null,null,"Microalga",null,null,"N.A.",null,null,"Chlorophyceae",null,null,"Marinewater",null,null,"25°C",null,null,"Chronic",null,null,"PH11",null,null,"150 uS/cm"]
[null,null,null,{"$f":"IF(AO3=\"\",0,1)","v":1},null,{"$f":"IF(H8=\"\",0,1)","v":1},"Exposure duration",null,null,"Media",null,null,null,null,"N.A.",null,null,"N.A.",null,null,"N.A.",null,null,"NOEC",null,null,"Reproduction",null,null,"N.A.",null,null,"Tracheophyta",null,null,"N.A.",null,null,"N.A.",null,null,"N.A.",null,null,"N.A.",null,null,"PH7.0",null,null,"N.A."]
[null,null,null,{"$f":"IF(AR3=\"\",0,1)","v":1},null,{"$f":"IF(Q3=\"\",0,1)","v":1},"Measure of toxicity",null,null,"Temperature ",null,null,null,null,"Chlorella sp.",null,null,"exponential growth",null,null,"72 h",null,null,"IC10",null,null,"Population growth rate",null,null,"Macrophyt",null,null,"Tracheophyta",null,null,"Trebouxiophyceae",null,null,null,null,null,27,null,null,null,null,null,6.1]
[null,null,null,{"$f":"IF(AU3=\"\",0,1)","v":1},null,{"$f":"IF(T3=\"\",0,1)","v":1},"Toxicity endpoint",null,null,"Acute Or Chronic ",null,null,null,null,"Lemna aequinoctialis",null,null,"3 finds",null,null,"96 h",null,null,null,null,null,"Growth (surface area)",null,null,null,null,null,null,null,null,"Liliopsida",null,null,null,null,null,29,null,null,null,null,null,5.9]
[null,null,null,null,null,{"$f":"IF(W3=\"\",0,1)","v":1},"Toxicity value",15,null,"PH",null,null,null,null,null,null,null,"3 fronds"]
[null,2,"Select the appropriate answer option to each question. Comments can be added to the cells in column H.",null,null,{"$f":"IF(Z3=\"\",0,1)","v":1},null,null,null,"Salinity/Conductivity","N.A."]
[null,"*","If the selected answer option does not work try clicking on any other cell first and then click back on the answer option again.",null,null,{"$f":"IF(AC3=\"\",0,1)","v":1}]
[null,"No.","Question","Marks Awarded","Answer Options","Option References","Scores","Answers"]
[null,null,"Was the duration of the exposure stated (e.g. 48 or 96 h)?",10,null,1,{"$f":"IF(F15=0,0,INDEX($D12:$D13,F12,1))","v":10},"96 h"]
[null,1,null,0]
[]
[null,null,"Was the biological endpoint (e.g., immobilization or population growth) stated and defined (10 marks)? Award 5 marks if the biological endpoint is only stated.",10,null,2,{"$f":"IF(F15=0,0,INDEX($D15:$D17,F15,1))","v":5},"growth - surface area increase per day"]
[null,2,null,5]
[null,null,null,0]
[null,null,"Was the biological effect stated (e.g. LC or NOEC)?",5,null,1,{"$f":"IF(F18=0,0,INDEX($D18:$D19,F18,1))","v":5},"IC10"]
[null,3,null,0]
[]
[null,4,"Was the biological effect quantified (e.g. 50% effect, 25% effect)? \nNote: The effect for NOEC and LOEC data must be quantified.",5,null,1,{"$f":"IF(F21=0,0,INDEX($D21:$D22,F21,1))","v":5},"IC10 (10% inhibition)"]
[null,null,null,0]
[null,5,"Were appropriate controls (e.g. a no-toxicant control and/or solvent control) used?",5,null,1,{"$f":"IF(F23=0,0,INDEX($D23:$D24,F23,1))","v":5},"Control (no toxicant)"]
[null,null,null,0]
[]
[null,6,"Was each control and contaminant concentration at least duplicated?",5,null,1,{"$f":"IF(F26=0,0,INDEX($D26:$D27,F26,1))","v":5},"triplicate controls, duplicate treatments"]
[null,null,null,0]
[]
[null,7,"Were test acceptability criteria stated (e.g. mortality in controls must not exceed a certain percentage) (5 marks)?\nOR Were test acceptability criteria inferred (e.g. test method used [USEPA, OECD, ASTM etc.]) (award 2 marks). \nNote: Data that fail the acceptability criteria are automatically deemed to be of unacceptable quality and must not be used. ",5,null,1,{"$f":"IF(F29=0,0,INDEX($D29:$D31,F29,1))","v":5},"QA defined and stated it was met"]
[null,null,null,2]
[null,null,null,0]
[null,8,"Were the characteristics of the test organism (e.g. length, mass, age) stated?",5,null,1,{"$f":"IF(F32=0,0,INDEX($D32:$D34,F32,1))","v":5},"4 plants each with 3 fronds"]
[null,null,null,0]
[]
[null,9,"Was the type of test media used stated?",5,null,1,{"$f":"IF(F35=0,0,INDEX($D35:$D37,F35,1))","v":5},"Magela Ck water + nitrate + phosphate + MES buffer (1 mM)"]
[null,null,null,0]
[]
[null,null,"Was the type of exposure (e.g. static, flow through) stated? ",4,null,1,{"$f":"IF(F38=0,0,INDEX($D38:$D40,F38,1))","v":4},"non-renewal"]
[null,10,null,0]
[]
[null,null,"Were the contaminant concentrations measured at the beginning and end of the exposure (4 marks)? Award 2 marks if they were measured only once during the test.\nNote: If the concentrations were not measured then automatically the data cannot be high quality. ",4,null,1,{"$f":"IF(F41=0,0,INDEX($D41:$D43,F41,1))","v":4},"measured at beginning and end"]
[null,11,null,2]
[null,null,null,0]
[null,null,"Were parallel reference toxicant toxicity tests conducted?",4,null,2,{"$f":"IF(F44=0,0,INDEX($D44:$D46,F44,1))","v":0},"No ref tox tests"]
[null,12,null,0]
[]
[null,null,"Was there a concentration–response relationship either observable or stated?",4,null,1,{"$f":"IF(F47=0,0,INDEX($D47:$D49,F47,1))","v":4},"stated and observed in figures"]
[null,13,null,0]
[]
[null,null,"Was an appropriate statistical method or model used to determine the toxicity?\nNote: They should be accepted by a recognised national or international regulatory body (e.g. USEPA, OECD, ASTM). ",4,null,1,{"$f":"IF(F50=0,0,INDEX($D50:$D52,F50,1))","v":4},"non-linear 3 parameter log-logistic model (CETIS software)"]
[null,14,null,0]
[]
[null,15,"For LC/EC/BEC data was an estimate of variability provided? \nOR \nFor NO EC/LOEC data was the significance level 0.05 or less?  \n\n",4,null,1,{"$f":"IF(F53=0,0,INDEX($D53:$D55,F53,1))","v":4},"95% CL (10-19 ug/L)"]
[null,null,null,0]
[]
[null,16,"Were the following parameters measured and stated? (3 marks if measured and stated, 1 mark if just measured)."]
[null,null,"pH",3,null,1,{"$f":"IF(F57=0,0,INDEX($D57:$D59,F57,1))","v":3},"5.9 +/- 0 (n=77) measured number times throughout the test; pH maintained with HEPES buffer"]
[null,16.100000000000001,null,1]
[null,null,null,0]
[]
[null,null,"Was the temperature measured and stated (3 marks)? Award 1 mark if the temperature was measured but not stated or if only the temperature settings of the room or chamber are stated.",3,null,1,{"$f":"IF(F61=0,0,INDEX($D61:$D63,F61,1))","v":3},"28.5 (27.5-29.2) degrees C"]
[null,17,null,1]
[null,null,null,0]
[null,null,"Were test solutions, blanks and/or controls tested for contamination OR were analytical reagent grade chemicals used or the highest possible purity chemicals used for the experiment? (3 marks).",3,null,1,{"$f":"IF(F64=0,0,INDEX($D64:$D65,F64,1))","v":3},"ammonium sulfate, all solutions/dilution water extensively tested for metals, major ions"]
[null,18,null,0]
[]
[null,null,null,null,null,null,null,null,{"$f":"COUNTIF(D2:D7,\"=0\")+COUNTIF(F2:F10,\"=0\")+COUNTIF(F12:F64,\"=0\")","v":0}]
[]
[]
[null,null,"Total score",null,null,null,{"$f":"IF(SUM(G12:G67)=0,\"\",SUM(G12:G67))","v":79}]
[null,null,"Total Max. possible score for the various types of data and contaminants ",null,{"$f":"D12+D15+D18+D21+D23+D26+D29+D32+D35+D38+D41+D44+D47+D50+D53+D57+D61+D64","v":88}]
[null,null,"Quality Score",null,{"$f":"\"= [Total score / Total possible score] * 100 = \"","v":"= [Total score / Total possible score] * 100 = "},null,{"$f":"IF(ISERROR(G70/E71),#N/A,G70/E71)","v":0.89772727272727271},{"$f":"IF(F41=3,\"The highest possible grade for this datum is acceptable.\",\"\")","v":""}]
[]
[null,null,"H = high quality                           Quality score ≥ 80%  "]
[null,null,"A = acceptable quality         > 50% Quality score < 80%     "]
[null,null,"U = unacceptable quality              Quality score ≤ 50%"]
[]
[3,null,"Click the 'Save & Update' button to save and export the answers to the 'All results' worksheet. "]
[null,null,"Select the 'Reset Answers' button if you wish to clear all answers."]

{"sheet":"FW nonmetal plant_WS","index":12,"n_rows":9,"n_cols":22,"rows_kept":9,"cut":false,"hidden":false,"merged":[]}
[]
["Question No.",1,2,3,4,5,6,7,8,9,10,11,12,13,14,15,16.100000000000001,17,18,"Total Score","Quality Score","Comment "]
["Short Questions","Duration of the exposure ","Biological endpoint","Biological effect stated or not","Biological effect quantified or not","Appropriate controls","Control & contaminant concentration","Test acceptability criteria","Characteristics of the test organism"," Type of test media","Type of exposure","Contaminant concentrations","Parallel reference toxicant toxicity tests","Concentration–response relationship","Determine the toxicity","NOEC/LOEC or LC/EC/BEC","pH","Temperature","Grade or purity"]
["Category","Freshwater/non-metal/plant","Paper and data unique identifier(eg. 1-1,10-150)","233-1"]
["Scores",10,5,5,5,5,5,5,5,5,4,4,0,4,4,4,3,3,3,79,0.89772727272727271,""]
["Answers","72 h","population growth rate","IC10","IC10 (10% inhibition)","Control (no toxicant)","triplicate controls, duplicate treatments","QA defined and stated it was met","< 5 days (i.e. exponential growth) initial cell desnity was 3x10^3 cells/mL","Magela Ck water + nitrate + phosphate + HEPES buffer (1 mM)","non-renewal","measured at beginning and end","No ref tox tests","stated and observed in figures","95% CL (55-95 ug/L)","95% CL (55-95 ug/L)","6.1 +/- 0.1 (n=26) measured number times throughout the test; pH maintained with HEPES buffer","29.3 (28.8-29.6) degrees C","ammonium sulfate, all solutions/dilution water extensively tested for metals, major ions"]
["Category","Freshwater/non-metal/plant","Paper and data unique identifier(eg. 1-1,10-150)","233-2"]
["Scores",10,5,5,5,5,5,5,5,5,4,4,0,4,4,4,3,3,3,79,0.89772727272727271,""]
["Answers","96 h","growth - surface area increase per day","IC10","IC10 (10% inhibition)","Control (no toxicant)","triplicate controls, duplicate treatments","QA defined and stated it was met","4 plants each with 3 fronds","Magela Ck water + nitrate + phosphate + MES buffer (1 mM)","non-renewal","measured at beginning and end","No ref tox tests","stated and observed in figures","95% CL (10-19 ug/L)","95% CL (10-19 ug/L)","5.9 +/- 0 (n=77) measured number times throughout the test; pH maintained with HEPES buffer","28.5 (27.5-29.2) degrees C","ammonium sulfate, all solutions/dilution water extensively tested for metals, major ions"]

{"sheet":"MEW nonplant","index":13,"n_rows":84,"n_cols":53,"rows_kept":84,"cut":false,"hidden":false,"merged":[[68,2,71,2],[68,7,71,7],[56,7,58,7],[65,7,67,7],[52,2,54,2],[52,7,54,7],[59,7,61,7],[65,2,67,2],[62,2,64,2],[62,7,64,7],[43,2,45,2],[43,7,45,7],[46,2,48,2],[46,7,48,7],[49,2,51,2],[49,7,51,7],[34,2,36,2],[34,7,36,7],[37,2,39,2],[37,7,39,7],[40,2,42,2],[40,7,42,7],[25,2,27,2],[25,7,27,7],[28,2,30,2],[28,7,30,7],[31,2,33,2],[31,7,33,7],[17,2,19,2],[17,7,19,7],[20,2,21,2],[20,7,21,7],[22,2,24,2],[22,7,24,7],[3,4,7,4],[9,2,9,4],[11,2,13,2],[11,7,13,7],[14,2,16,2],[14,7,16,7]]}
[null,1,"Fill in the blank cells below, based on information provided in the paper being assessed. You can either pick an option from the dropdown list or add the appropriate detail using the 'Add to list' button. ",null,null,{"$f":"IF(BA3=\"\",0,1)","v":0},null,null,null,null,null,null,null,null,"* All the text in RED are used for drop down list ,make changes with caution."]
[null,null,"Category",{"$f":"IF(AF3=\"\",0,1)","v":0},"MEW_nonplant",{"$f":"IF(E3=\"\",0,1)","v":0},"Citation No.",{"$f":"IF(ISERROR(FIND(\"-\",E3)),E3,LEFT(E3,FIND(\"-\",E3)-1))","v":0},null,"Taxonomic group",null,null,null,null,"Species",null,null,"Lifestage",null,null,"Exposure duration",null,null,"Measure of toxicity",null,null,"Toxicity endpoint",null,null,"Taxonomic group",null,null,"Phylum",null,null,"Class",null,null,"Media",null,null,"Temperature ",null,null,"Acute Or Chronic",null,null,"PH",null,null,"Salinity/Comdictivity"]
[null,null,"Paper and data unique identifier(eg. 1-1,10-150)",{"$f":"IF(AI3=\"\",0,1)","v":0},null,{"$f":"IF(E4=\"\",0,1)","v":0},"Species (Scientific name)",null,null,"Phylum",null,null,null,null,"Aedes albopictus",0,{"$f":"IF(P3=0,\"\",INDEX(O3:O105,P3))","v":""},"1 month",0,{"$f":"IF(S3=0,\"\",INDEX(R3:R105,S3))","v":""},"11 hour",0,{"$f":"IF(V3=0,\"\",INDEX(U3:U105,V3))","v":""},"LC50",0,{"$f":"IF(Y3=0,\"\",INDEX(X3:X105,Y3))","v":""},"Mortality",0,{"$f":"IF(AB3=0,\"\",INDEX(AA3:AA105,AB3))","v":""},"Fish ",0,{"$f":"IF(AE3=0,\"\",INDEX(AD3:AD105,AE3))","v":""},"Chlorophyta",0,{"$f":"IF(AH3=0,\"\",INDEX(AG3:AG105,AH3))","v":""},"Branchiopoda",0,{"$f":"IF(AK3=0,\"\",INDEX(AJ3:AJ105,AK3))","v":""},"Freshwater",0,{"$f":"IF(AN3=0,\"\",INDEX(AM3:AM105,AN3))","v":""},"15°C",0,{"$f":"IF(AQ3=0,\"\",INDEX(AP3:AP105,AQ3))","v":""},"Acute",0,{"$f":"IF(AT3=0,\"\",INDEX(AS3:AS105,AT3))","v":""},"N.A.",0,{"$f":"IF(AW3=0,\"\",INDEX(AV3:AV105,AW3))","v":""},"150 uS/cm",0,{"$f":"IF(AZ3=0,\"\",INDEX(AY3:AY105,AZ3))","v":""}]
[null,null,"Citation",{"$f":"IF(AL3=\"\",0,1)","v":0},null,{"$f":"IF(H8=\"\",0,1)","v":0},"Lifestage",null,null,"Class",null,null,null,null,"Australian Bass",null,null,"1 year old",null,null,"13 days",null,null,"N.A.",null,null,"N.A.",null,null,"Microalga",null,null,"N.A.",null,null,"Chlorophyceae",null,null,"Marinewater",null,null,"25°C",null,null,"Chronic",null,null,"PH11",null,null,"30 ppt"]
[null,null,null,{"$f":"IF(AO3=\"\",0,1)","v":0},null,{"$f":"IF(AX3=\"\",0,1)","v":0},"Exposure duration",null,null,"Media",null,null,null,null,"N.A.",null,null,"N.A.",null,null,"N.A.",null,null,"NOEC",null,null,"Reproduction",null,null,"N.A.",null,null,"Tracheophyta",null,null,"N.A.",null,null,"N.A.",null,null,"N.A.",null,null,"N.A.",null,null,"PH7.0",null,null,"N.A."]
[null,null,null,{"$f":"IF(AR3=\"\",0,1)","v":0},null,{"$f":"IF(Q3=\"\",0,1)","v":0},"Measure of toxicity",null,null,"Temperature "]
[null,null,null,{"$f":"IF(AU3=\"\",0,1)","v":0},null,{"$f":"IF(T3=\"\",0,1)","v":0},"Toxicity endpoint",null,null,"Acute Or Chronic "]
[null,null,null,null,null,{"$f":"IF(W3=\"\",0,1)","v":0},"Toxicity value",null,null,"PH"]
[null,2,"Select the appropriate answer option to each question. Comments can be added to the cells in column H.",null,null,{"$f":"IF(Z3=\"\",0,1)","v":0},null,null,null,"Salinity/Conductivity"]
[null,"*","If the selected answer option does not work try clicking on any other cell first and then click back on the answer option again.",null,null,{"$f":"IF(AC3=\"\",0,1)","v":0}]
[null,"No.","Question","Marks Awarded","Answer Options","Option References","Scores","Answers"]
[null,null,"Was the duration of the exposure stated (e.g. 48 or 96 h)?",10,null,0,{"$f":"IF(F15=0,0,INDEX($D12:$D13,F12,1))","v":0}]
[null,1,null,0]
[]
[null,null,"Was the biological endpoint (e.g., immobilization or population growth) stated and defined (10 marks)? Award 5 marks if the biological endpoint is only stated.",10,null,0,{"$f":"IF(F15=0,0,INDEX($D15:$D17,F15,1))","v":0}]
[null,2,null,5]
[null,null,null,0]
[null,null,"Was the biological effect stated (e.g. LC or NOEC)?",5,null,0,{"$f":"IF(F18=0,0,INDEX($D18:$D19,F18,1))","v":0}]
[null,3,null,0]
[]
[null,4,"Was the biological effect quantified (e.g. 50% effect, 25% effect)? \nNote: The effect for NOEC and LOEC data must be quantified.",5,null,0,{"$f":"IF(F21=0,0,INDEX($D21:$D22,F21,1))","v":0}]
[null,null,null,0]
[null,5,"Were appropriate controls (e.g. a no-toxicant control and/or solvent control) used?",5,null,0,{"$f":"IF(F23=0,0,INDEX($D23:$D24,F23,1))","v":0}]
[null,null,null,0]
[]
[null,6,"Was each control and contaminant concentration at least duplicated?",5,null,0,{"$f":"IF(F26=0,0,INDEX($D26:$D27,F26,1))","v":0}]
[null,null,null,0]
[]
[null,7,"Were test acceptability criteria stated (e.g. mortality in controls must not exceed a certain percentage) (5 marks)?\nOR Were test acceptability criteria inferred (e.g. test method used [USEPA, OECD, ASTM etc.]) (award 2 marks). \nNote: Data that fail the acceptability criteria are automatically deemed to be of unacceptable quality and must not be used. ",5,null,0,{"$f":"IF(F29=0,0,INDEX($D29:$D31,F29,1))","v":0}]
[null,null,null,2]
[null,null,null,0]
[null,8,"Were the characteristics of the test organism (e.g. length, mass, age) stated?",5,null,0,{"$f":"IF(F32=0,0,INDEX($D32:$D34,F32,1))","v":0}]
[null,null,null,0]
[]
[null,9,"Was the type of test media used stated?",5,null,0,{"$f":"IF(F35=0,0,INDEX($D35:$D37,F35,1))","v":0}]
[null,null,null,0]
[]
[null,null,"Was the type of exposure (e.g. static, flow through) stated? ",4,null,0,{"$f":"IF(F38=0,0,INDEX($D38:$D40,F38,1))","v":0}]
[null,10,null,0]
[]
[null,null,"Were the contaminant concentrations measured at the beginning and end of the exposure (4 marks)? Award 2 marks if they were measured only once during the test.\nNote: If the concentrations were not measured then automatically the data cannot be high quality. ",4,null,0,{"$f":"IF(F41=0,0,INDEX($D41:$D43,F41,1))","v":0}]
[null,11,null,2]
[null,null,null,0]
[null,null,"Were parallel reference toxicant toxicity tests conducted?",4,null,0,{"$f":"IF(F44=0,0,INDEX($D44:$D46,F44,1))","v":0}]
[null,12,null,0]
[]
[null,null,"Was there a concentration–response relationship either observable or stated?",4,null,0,{"$f":"IF(F47=0,0,INDEX($D47:$D49,F47,1))","v":0}]
[null,13,null,0]
[]
[null,null,"Was an appropriate statistical method or model used to determine the toxicity?\nNote: They should be accepted by a recognised national or international regulatory body (e.g. USEPA, OECD, ASTM). ",4,null,0,{"$f":"IF(F50=0,0,INDEX($D50:$D52,F50,1))","v":0}]
[null,14,null,0]
[]
[null,15,"For LC/EC/BEC data was an estimate of variability provided? \nOR \nFor NO EC/LOEC data was the significance level 0.05 or less?  \n\n",4,null,0,{"$f":"IF(F53=0,0,INDEX($D53:$D55,F53,1))","v":0}]
[null,null,null,0]
[]
[null,16,"Were the following parameters measured and stated? (3 marks if measured and stated, 1 mark if just measured)."]
[null,null,null,3,null,0,{"$f":"IF(F57=0,0,INDEX($D57:$D59,F57,1))","v":0}]
[null,16.100000000000001,"Conductivity/Salinity",1]
[null,null,null,0]
[null,null,null,3,null,0,{"$f":"IF(F60=0,0,INDEX($D60:$D62,F60,1))","v":0}]
[null,16.2,"Dissolved Oxygen",1]
[null,null,null,0]
[null,null,"pH",3,null,0,{"$f":"IF(F63=0,0,INDEX(D63:D65,F63,1))","v":0}]
[null,16.3,null,1]
[null,null,null,0]
[null,null,"Was the temperature measured and stated (3 marks)? Award 1 mark if the temperature was measured but not stated or if only the temperature settings of the room or chamber are stated.\n\n",3,null,0,{"$f":"IF(F66=0,0,INDEX(D66:D68,F66,1))","v":0}]
[null,17,null,1]
[null,null,null,0]
[null,null,"Were test solutions, blanks and/or controls tested for contamination OR were analytical reagent grade chemicals used or the highest possible purity chemicals used for the experiment? (3 marks).",3,null,0,{"$f":"IF(F69=0,0,INDEX($D69:$D70,F69,1))","v":0}]
[null,18,null,0]
[]
[null,null,null,null,null,null,null,null,{"$f":"(COUNTIF(F12:F70,\"=0\"))+COUNTIF(F1:F10,\"=0\")+COUNTIF(D2:D7,\"=0\")","v":36}]
[]
[]
[null,null,"Total score",null,null,null,{"$f":"IF(SUM(G12:G69)=0,\"\",SUM(G12:G69))","v":""}]
[null,null,"Total Max. possible score for the various types of data and contaminants ",null,{"$f":"D12+D15+D18+D21+D23+D26+D29+D32+D35+D38+D41+D44+D47+D50+D53+D57+D60+D66+D69+D63","v":94}]
[null,null,"Quality Score",null,{"$f":"\"= [Total score / Total possible score] * 100 = \"","v":"= [Total score / Total possible score] * 100 = "},null,{"$f":"IF(ISERROR(G75/E76),#N/A,G75/E76)","v":{"$error":"#N/A"}},{"$f":"IF(F41=3,\"The highest possible grade for this datum is acceptable.\",\"\")","v":""}]
[]
[null,null,"H = high quality                           Quality score ≥ 80%"]
[null,null,"A = acceptable quality         > 50% Quality score < 80%  "]
[null,null,"U = unacceptable quality              Quality score ≤ 50%"]
[]
[3,null,"Click the 'Save & Update' button to save and export the answers to the 'All results' worksheet. "]
[null,null,"Select the 'Reset Answers' button if you wish to clear all answers."]

{"sheet":"MEW nonplant_WS","index":14,"n_rows":5,"n_cols":23,"rows_kept":5,"cut":false,"hidden":false,"merged":[]}
[]
["Question No.",1,2,3,4,5,6,7,8,9,10,11,12,13,14,15,16.100000000000001,16.2,16.3,17,18,"Total Score","Quality Score"]
["Short Questions","Duration of the exposure ","Biological endpoint","Biological effect stated or not","Biological effect quantified or not","Appropriate controls","Control & contaminant concentration","Test acceptability criteria","Characteristics of the test organism"," Type of test media","Type of exposure","Contaminant concentrations","Parallel reference toxicant toxicity tests","Concentration–response relationship","Determine the toxicity","NOEC/LOEC or LC/EC/BEC","Conductivity/Salinity","Dissolved Oxygen","PH","Temperature","Grade or purity"]
["Marks Awarded ","10 or 0","10,5 or 0","5 or 0 ","5 or 0 ","5 or 0 ","5 or 0 ","5 or 0 ","5 or 0 ","5 or 0 ","4 or 0","4 or 2 or 0","4 or 2","4 or 2","4 or 2","4 or 2","3 or 1 or 0","3 or 1 or 0","3 or 1 or 0","3 or 0","3 or 0 "]
["Max. Possible Score",10,10,5,5,5,5,5,5,5,4,4,4,4,4,4,3,3,3,3,3,{"$f":"SUM(B5:U5)","v":94}]

{"sheet":"MEW plant","index":15,"n_rows":81,"n_cols":53,"rows_kept":81,"cut":false,"hidden":false,"merged":[[52,2,54,2],[52,7,54,7],[59,7,61,7],[62,2,64,2],[62,7,64,7],[56,1,58,1],[56,2,58,2],[56,7,58,7],[65,2,68,2],[65,7,68,7],[43,2,45,2],[43,7,45,7],[46,2,48,2],[46,7,48,7],[49,2,51,2],[49,7,51,7],[34,2,36,2],[34,7,36,7],[37,2,39,2],[37,7,39,7],[40,2,42,2],[40,7,42,7],[25,2,27,2],[25,7,27,7],[28,2,30,2],[28,7,30,7],[31,2,33,2],[31,7,33,7],[17,2,19,2],[17,7,19,7],[20,2,21,2],[20,7,21,7],[22,2,24,2],[22,7,24,7],[3,4,7,4],[9,2,9,4],[11,2,13,2],[11,7,13,7],[14,2,16,2],[14,7,16,7]]}
[null,1,"Fill in the blank cells below, based on information provided in the paper being assessed. You can either pick an option from the dropdown list or add the appropriate detail using the 'Add to list' button. ",null,null,{"$f":"IF(BA3=\"\",0,1)","v":0},null,null,null,null,null,null,null,null,"* All the text in RED are used for drop down list ,make changes with caution."]
[null,null,"Category",{"$f":"IF(AF3=\"\",0,1)","v":0},"MEW_plant",{"$f":"IF(E3=\"\",0,1)","v":0},"Citation No.",{"$f":"IF(ISERROR(FIND(\"-\",E3)),E3,LEFT(E3,FIND(\"-\",E3)-1))","v":0},null,"Taxonomic group",null,null,null,null,"Species",null,null,"Lifestage",null,null,"Exposure duration",null,null,"Measure of toxicity",null,null,"Toxicity endpoint",null,null,"Taxonomic group",null,null,"Phylum",null,null,"Class",null,null,"Media",null,null,"Temperature ",null,null,"Acute Or Chronic",null,null,"PH",null,null,"Salinity/Comdictivity"]
[null,null,"Paper and data unique identifier(eg. 1-1,10-150)",{"$f":"IF(AI3=\"\",0,1)","v":0},null,{"$f":"IF(E4=\"\",0,1)","v":0},"Species (Scientific name)",null,null,"Phylum",null,null,null,null,"Aedes albopictus",0,{"$f":"IF(P3=0,\"\",INDEX(O3:O102,P3))","v":""},"1 month",0,{"$f":"IF(S3=0,\"\",INDEX(R3:R102,S3))","v":""},"11 hour",0,{"$f":"IF(V3=0,\"\",INDEX(U3:U102,V3))","v":""},"LC50",0,{"$f":"IF(Y3=0,\"\",INDEX(X3:X102,Y3))","v":""},"Fish ",0,{"$f":"IF(AB3=0,\"\",INDEX(AA3:AA102,AB3))","v":""},"Fish ",0,{"$f":"IF(AE3=0,\"\",INDEX(AD3:AD102,AE3))","v":""},"Chlorophyta",0,{"$f":"IF(AH3=0,\"\",INDEX(AG3:AG102,AH3))","v":""},"Branchiopoda",0,{"$f":"IF(AK3=0,\"\",INDEX(AJ3:AJ102,AK3))","v":""},"Freshwater",0,{"$f":"IF(AN3=0,\"\",INDEX(AM3:AM102,AN3))","v":""},"15°C",0,{"$f":"IF(AQ3=0,\"\",INDEX(AP3:AP102,AQ3))","v":""},"Acute",0,{"$f":"IF(AT3=0,\"\",INDEX(AS3:AS102,AT3))","v":""},"N.A.",0,{"$f":"IF(AW3=0,\"\",INDEX(AV3:AV102,AW3))","v":""},"150 uS/cm",0,{"$f":"IF(AZ3=0,\"\",INDEX(AY3:AY102,AZ3))","v":""}]
[null,null,"Citation",{"$f":"IF(AL3=\"\",0,1)","v":0},null,{"$f":"IF(H8=\"\",0,1)","v":0},"Lifestage",null,null,"Class",null,null,null,null,"Australian Bass",null,null,"1 year old",null,null,"13 days",null,null,"N.A.",null,null,"Microalga",null,null,"Microalga",null,null,"N.A.",null,null,"Chlorophyceae",null,null,"Marinewater",null,null,"25°C",null,null,"Chronic",null,null,"PH11",null,null,"30 ppt"]
[null,null,null,{"$f":"IF(AO3=\"\",0,1)","v":0},null,{"$f":"IF(AX3=\"\",0,1)","v":0},"Exposure duration",null,null,"Media",null,null,null,null,"N.A.",null,null,"N.A.",null,null,"N.A.",null,null,"NOEC",null,null,"N.A.",null,null,"N.A.",null,null,"Tracheophyta",null,null,"N.A.",null,null,"N.A.",null,null,"N.A.",null,null,"N.A.",null,null,"PH7.0",null,null,"N.A."]
[null,null,null,{"$f":"IF(AR3=\"\",0,1)","v":0},null,{"$f":"IF(Q3=\"\",0,1)","v":0},"Measure of toxicity",null,null,"Temperature "]
[null,null,null,{"$f":"IF(AU3=\"\",0,1)","v":0},null,{"$f":"IF(T3=\"\",0,1)","v":0},"Toxicity endpoint",null,null,"Acute Or Chronic "]
[null,null,null,null,null,{"$f":"IF(W3=\"\",0,1)","v":0},"Toxicity value",null,null,"PH"]
[null,2,"Select the appropriate answer option to each question. Comments can be added to the cells in column H.",null,null,{"$f":"IF(Z3=\"\",0,1)","v":0},null,null,null,"Salinity/Conductivity"]
[null,"*","If the selected answer option does not work try clicking on any other cell first and then click back on the answer option again.",null,null,{"$f":"IF(AC3=\"\",0,1)","v":0}]
[null,"No.","Question","Marks Awarded","Answer Options","Option References","Scores","Answers"]
[null,null,"Was the duration of the exposure stated (e.g. 48 or 96 h)?",10,null,0,{"$f":"IF(F15=0,0,INDEX($D12:$D13,F12,1))","v":0}]
[null,1,null,0]
[]
[null,null,"Was the biological endpoint (e.g., immobilization or population growth) stated and defined (10 marks)? Award 5 marks if the biological endpoint is only stated.",10,null,0,{"$f":"IF(F15=0,0,INDEX($D15:$D17,F15,1))","v":0}]
[null,2,null,5]
[null,null,null,0]
[null,null,"Was the biological effect stated (e.g. LC or NOEC)?",5,null,0,{"$f":"IF(F18=0,0,INDEX($D18:$D19,F18,1))","v":0}]
[null,3,null,0]
[]
[null,4,"Was the biological effect quantified (e.g. 50% effect, 25% effect)? \nNote: The effect for NOEC and LOEC data must be quantified.",5,null,0,{"$f":"IF(F21=0,0,INDEX($D21:$D22,F21,1))","v":0}]
[null,null,null,0]
[null,5,"Were appropriate controls (e.g. a no-toxicant control and/or solvent control) used?",5,null,0,{"$f":"IF(F23=0,0,INDEX($D23:$D24,F23,1))","v":0}]
[null,null,null,0]
[]
[null,6,"Was each control and contaminant concentration at least duplicated?",5,null,0,{"$f":"IF(F26=0,0,INDEX($D26:$D27,F26,1))","v":0}]
[null,null,null,0]
[]
[null,7,"Were test acceptability criteria stated (e.g. mortality in controls must not exceed a certain percentage) (5 marks)?\nOR Were test acceptability criteria inferred (e.g. test method used [USEPA, OECD, ASTM etc.]) (award 2 marks). \nNote: Data that fail the acceptability criteria are automatically deemed to be of unacceptable quality and must not be used. ",5,null,0,{"$f":"IF(F29=0,0,INDEX($D29:$D31,F29,1))","v":0}]
[null,null,null,2]
[null,null,null,0]
[null,8,"Were the characteristics of the test organism (e.g. length, mass, age) stated?",5,null,0,{"$f":"IF(F32=0,0,INDEX($D32:$D34,F32,1))","v":0}]
[null,null,null,0]
[]
[null,9,"Was the type of test media used stated?",5,null,0,{"$f":"IF(F35=0,0,INDEX($D35:$D37,F35,1))","v":0}]
[null,null,null,0]
[]
[null,null,"Was the type of exposure (e.g. static, flow through) stated? ",4,null,0,{"$f":"IF(F38=0,0,INDEX($D38:$D40,F38,1))","v":0}]
[null,10,null,0]
[]
[null,null,"Were the contaminant concentrations measured at the beginning and end of the exposure (4 marks)? Award 2 marks if they were measured only once during the test.\nNote: If the concentrations were not measured then automatically the data cannot be high quality. ",4,null,0,{"$f":"IF(F41=0,0,INDEX($D41:$D43,F41,1))","v":0}]
[null,11,null,2]
[null,null,null,0]
[null,null,"Were parallel reference toxicant toxicity tests conducted?",4,null,0,{"$f":"IF(F44=0,0,INDEX($D44:$D46,F44,1))","v":0}]
[null,12,null,0]
[]
[null,null,"Was there a concentration–response relationship either observable or stated?",4,null,0,{"$f":"IF(F47=0,0,INDEX($D47:$D49,F47,1))","v":0}]
[null,13,null,0]
[]
[null,null,"Was an appropriate statistical method or model used to determine the toxicity?\nNote: They should be accepted by a recognised national or international regulatory body (e.g. USEPA, OECD, ASTM). ",4,null,0,{"$f":"IF(F50=0,0,INDEX($D50:$D52,F50,1))","v":0}]
[null,14,null,0]
[]
[null,15,"For LC/EC/BEC data was an estimate of variability provided? \nOR \nFor NO EC/LOEC data was the significance level 0.05 or less?  \n\n",4,null,0,{"$f":"IF(F53=0,0,INDEX($D53:$D55,F53,1))","v":0}]
[null,null,null,0]
[]
[null,16,"Were the following parameters measured and stated? (3 marks if measured and stated, 1 mark if just measured)."]
[null,16.100000000000001,"Conductivity/Salinity",3,null,0,{"$f":"IF(F57=0,0,INDEX(D57:D59,F57,1))","v":0}]
[null,null,null,1]
[null,null,null,0]
[null,null,null,3,null,0,{"$f":"IF(F60=0,0,INDEX($D60:$D62,F60,1))","v":0}]
[null,16.2,"pH ",1]
[null,null,null,0]
[null,null,"Was the temperature measured and stated (3 marks)? Award 1 mark if the temperature was measured but not stated or if only the temperature settings of the room or chamber are stated.\n",3,null,0,{"$f":"IF(F63=0,0,INDEX($D63:$D65,F63,1))","v":0}]
[null,17,null,1]
[null,null,null,0]
[null,null,"Were test solutions, blanks and/or controls tested for contamination OR were analytical reagent grade chemicals used or the highest possible purity chemicals used for the experiment? (3 marks).",3,null,0,{"$f":"IF(F66=0,0,INDEX($D66:$D67,F66,1))","v":0}]
[null,18,null,0]
[]
[null,null,null,null,null,null,null,null,{"$f":"(COUNTIF(F12:F67,\"=0\"))+COUNTIF(F1:F10,\"=0\")+COUNTIF(D2:D7,\"=0\")","v":35}]
[]
[]
[null,null,"Total score",null,null,null,{"$f":"IF(SUM(G12:G66)=0,\"\",SUM(G12:G66))","v":""}]
[null,null,"Total Max. possible score for the various types of data and contaminants ",null,{"$f":"D12+D15+D18+D21+D23+D26+D29+D32+D35+D38+D41+D44+D47+D50+D53+D60+D63+D66+D57","v":91}]
[null,null,"Quality Score",null,{"$f":"\"= [Total score / Total possible score] * 100 = \"","v":"= [Total score / Total possible score] * 100 = "},null,{"$f":"IF(ISERROR(G72/E73),#N/A,G72/E73)","v":{"$error":"#N/A"}},{"$f":"IF(F41=3,\"The highest possible grade for this datum is acceptable.\",\"\")","v":""}]
[]
[null,null,"H = high quality                           Quality score ≥ 80%    "]
[null,null,"A = acceptable quality         > 50% Quality score < 80%  "]
[null,null,"U = unacceptable quality              Quality score ≤ 50%"]
[]
[3,null,"Click the 'Save & Update' button to save and export the answers to the 'All results' worksheet. "]
[null,null,"Select the 'Reset Answers' button if you wish to clear all answers."]

{"sheet":"MEW plant_WS","index":16,"n_rows":5,"n_cols":23,"rows_kept":5,"cut":false,"hidden":false,"merged":[]}
[]
["Question No.",1,2,3,4,5,6,7,8,9,10,11,12,13,14,15,16.100000000000001,16.3,17,18,"Total Score","Quality Score","Comment "]
["Short Questions","Duration of the exposure ","Biological endpoint","Biological effect stated or not","Biological effect quantified or not","Appropriate controls","Control & contaminant concentration","Test acceptability criteria","Characteristics of the test organism"," Type of test media","Type of exposure","Contaminant concentrations","Parallel reference toxicant toxicity tests","Concentration–response relationship","Determine the toxicity","NOEC/LOEC or LC/EC/BEC","Conductivity/Salinity","PH","Temperature","Grade or purity"]
["Marks Awarded ","10 or 0","10,5 or 0","5 or 0 ","5 or 0 ","5 or 0 ","5 or 0 ","5 or 0 ","5 or 0 ","5 or 0 ","4 or 0","4 or 2 or 0","4 or 2","4 or 2","4 or 2","4 or 2","3 or 1 or 0","3 or 1 or 0","3 or 0","3 or 0 "]
["Max. Possible Score",10,10,5,5,5,5,5,5,5,4,4,4,4,4,4,3,3,3,3,{"$f":"SUM(B5:T5)","v":91}]

{"sheet":"Terrestrial Data QA","index":17,"n_rows":98,"n_cols":25,"rows_kept":98,"cut":false,"hidden":false,"merged":[[80,2,82,2],[80,7,82,7],[83,2,86,2],[83,7,86,7],[76,2,79,2],[76,7,79,7],[3,4,7,4],[53,7,56,7],[57,7,60,7],[37,7,39,7],[40,7,42,7],[43,7,45,7],[46,7,48,7],[34,7,36,7],[28,7,30,7],[31,7,33,7],[61,7,64,7],[65,7,68,7],[11,7,13,7],[49,7,51,7],[14,7,16,7],[22,7,24,7],[25,7,27,7],[17,7,19,7],[20,7,21,7],[11,2,13,2],[20,2,21,2],[22,2,24,2],[25,2,27,2],[14,2,16,2],[17,2,19,2],[72,7,75,7],[34,2,36,2],[28,2,30,2],[57,2,60,2],[37,2,39,2],[40,2,42,2],[72,2,75,2],[43,2,45,2],[31,2,33,2],[69,2,71,2],[46,2,48,2],[49,2,51,2],[53,2,56,2],[61,2,64,2],[65,2,68,2],[69,7,71,7]]}
[null,1,"FILL IN BLANKS BELOW,PICK OPTIONS FROM DROPDOWN LIST",null,null,null,null,null,null,null,"* All the text in Blue are used for drop down list ,make changes with caution."]
[null,null,"Category",null,"Terrestrial Quality",{"$f":"IF(M3=\"\",0,1)","v":0},"Citation No.",{"$f":"IF(ISERROR(FIND(\"-\",E3)),E3,LEFT(E3,FIND(\"-\",E3)-1))","v":0},null,null,"Species",null,null,"Lifestage",null,null,"Exposure duration",null,null,"Measure of toxicity",null,null,"Toxicity endpoint"]
[null,null,"Paper and data unique identifier(eg. 1-1,10-150)",null,null,{"$f":"IF(E3=\"\",0,1)","v":0},"Species (Scientific name)",null,null,null,"Australian Bass",0,{"$f":"IF(L3=0,\"\",INDEX(K3:K47,L3))","v":""},"Phase 1",0,{"$f":"IF(O3=0,\"\",INDEX(N3:N47,O3))","v":""},"1 hour ",0,{"$f":"IF(R3=0,\"\",INDEX(Q3:Q47,R3))","v":""},"Method 1",0,{"$f":"IF(U3=0,\"\",INDEX(T3:T47,U3))","v":""},0.01,0,{"$f":"IF(X3=0,\"\",INDEX(W3:W47,X3))","v":""}]
[null,null,"Citation",null,null,{"$f":"IF(E4=\"\",0,1)","v":0},"Lifestage",null,null,null,"Bala Shark",null,null,"Phase 2",null,null,"2 hours",null,null,"Method 2",null,null,0.02]
[null,null,null,null,null,{"$f":"IF(S3=\"\",0,1)","v":0},"Exposure duration",null,null,null,"Basa",null,null,"Phase 3",null,null,"3 hours",null,null,"Method 3",null,null,0.03]
[null,null,null,null,null,{"$f":"IF(V3=\"\",0,1)","v":0},"Measure of toxicity",null,null,null,"Black Parinha",null,null,"Phase 4",null,null,"4 hours",null,null,"Method 4",null,null,0.04]
[null,null,null,null,null,{"$f":"IF(Y3=\"\",0,1)","v":0},"Toxicity endpoint",null,null,null,"Catfish",null,null,"Phase 5",null,null,"5 Hours",null,null,"Method 5",null,null,0.05]
[null,null,null,null,null,{"$f":"IF(H8=\"\",0,1)","v":0},"Toxicity value",null,null,null,null,null,null,"phase 6"]
[null,2,"CHOOSE ANSWER OPTIONS AND FILL IN ANSWERS IN ANSWER COLUMN",null,null,{"$f":"IF(M3=\"\",0,1)","v":0}]
[null,"*","If had problem click on answer options,click on any  other cells first and then click back again",null,null,{"$f":"IF(P3=\"\",0,1)","v":0}]
[null,"No.","Question","Marks Awarded","Answer Options","Option References","Scores","Answers"]
[null,null,"Was the duration of the exposure stated (e.g., 48 or 96 h)?",10,null,0,{"$f":"IF(F15=0,0,INDEX($D12:$D13,F12,1))","v":0}]
[null,1,null,0]
[]
[null,null,"Was the biological endpoint (e.g., immobilization or population growth) stated and defined (10 marks)? Award 5 marks if the biological endpoint is only stated.",10,null,0,{"$f":"IF(F15=0,0,INDEX($D15:$D17,F15,1))","v":0}]
[null,2,null,5]
[null,null,null,0]
[null,null,"Was the biological effect stated (e.g., LC or NOEC)?",5,null,0,{"$f":"IF(F18=0,0,INDEX($D18:$D19,F18,1))","v":0}]
[null,3,null,0]
[]
[null,4,"Was the biological effect quantified (e.g., 50% effect, 25% effect)? The effect for NOEC and LOEC data must be quantified.",5,null,0,{"$f":"IF(F21=0,0,INDEX($D21:$D22,F21,1))","v":0}]
[null,null,null,0]
[null,5,"Were appropriate controls (e.g., a no-toxicant control and/or solvent control) used?",5,null,0,{"$f":"IF(F23=0,0,INDEX($D23:$D24,F23,1))","v":0}]
[null,null,null,0]
[]
[null,6,"Was each control and contaminant concentration at least duplicated?",5,null,0,{"$f":"IF(F26=0,0,INDEX($D26:$D27,F26,1))","v":0}]
[null,null,null,0]
[]
[null,7,"Were test acceptability criteria stated (e.g., mortality in controls must not exceed a certain percentage) (5 marks)?\nOR\nWere test acceptability criteria inferred (e.g., test method used [USEPA, OECD, ASTM etc]) (award 2 marks). Note: Invalid data must no",5,null,0,{"$f":"IF(F29=0,0,INDEX($D29:$D31,F29,1))","v":0}]
[null,null,null,2]
[null,null,null,0]
[null,8,"Were the characteristics of the test organism (e.g., length, mass, age) stated?",5,null,0,{"$f":"IF(F32=0,0,INDEX($D32:$D34,F32,1))","v":0}]
[null,null,null,0]
[]
[null,9,"Was the type of test media used stated?",5,null,0,{"$f":"IF(F35=0,0,INDEX($D35:$D37,F35,1))","v":0}]
[null,null,null,0]
[]
[null,null,"Were the contaminant concentrations measured?",4,null,0,{"$f":"IF(F38=0,0,INDEX($D38:$D40,F38,1))","v":0}]
[null,10,null,0]
[]
[null,null,"Were parallel reference toxicant toxicity tests conducted?",4,null,0,{"$f":"IF(F41=0,0,INDEX($D41:$D43,F41,1))","v":0}]
[null,11,null,0]
[]
[null,null,"Was there a concentration–response relationship either observable or stated",4,null,0,{"$f":"IF(F44=0,0,INDEX($D44:$D46,F44,1))","v":0}]
[null,12,null,0]
[]
[null,null,"Was an appropriate statistical method or model used to determine the toxicity?",4,null,0,{"$f":"IF(F47=0,0,INDEX($D47:$D49,F47,1))","v":0}]
[null,13,null,0]
[]
[null,14,"For NOEC/LOEC data was the significance level 0.05 or less?   Or                                         For LC/EC/BEC data was an estimate of variability provided?\n\n",4,null,0,{"$f":"IF(F50=0,0,INDEX($D50:$D52,F50,1))","v":0}]
[null,null,null,0]
[]
[null,15,"Were the following parameters measured and stated? (3 marks if measured and stated, 1 if just measured)"]
[null,null,"pH",3,null,0,{"$f":"IF(F54=0,0,INDEX($D54:$D56,F54,1))","v":0}]
[null,15.1,null,1]
[null,null,null,0]
[]
[null,null,"OM or OC content",3,null,0,{"$f":"IF(F58=0,0,INDEX($D58:$D60,F58,1))","v":0}]
[null,15.2,null,1]
[null,null,null,0]
[]
[null,null,"Clay Contect",3,null,0,{"$f":"IF(F62=0,0,INDEX($D62:$D64,F62,1))","v":0}]
[null,15.3,null,1]
[null,null,null,0]
[]
[null,null,"CEC",3,null,0,{"$f":"IF(F66=0,0,INDEX($D66:$D68,F66,1))","v":0}]
[null,15.4,null,1]
[null,null,null,0]
[]
[null,null,"Was the temperature measured and stated?",3,null,0,{"$f":"IF(F70=0,0,INDEX($D70:$D72,F70,1))","v":0}]
[null,16,null,0]
[]
[null,null,"Was the grade or purity of the test contaminant stated?",3,null,0,{"$f":"IF(F73=0,0,INDEX($D73:$D74,F73,1))","v":0}]
[null,17,null,0]
[]
[]
[null,null,"Were other cations and or major soil elements measured?                                                  Or                                                                                                                             Were known interacting elements on bioavailability measured (e.g. Mo for Cu and Cl for Cd)?",3,null,0,{"$f":"IF(F77=0,0,INDEX($D77:$D78,F77,1))","v":0}]
[null,18,null,0]
[]
[]
[null,null,"For spiked soils with metal salts: Were the soils leached after spiking?",3,null,0,{"$f":"IF(F81=0,0,INDEX($D81:$D83,F81,1))","v":0}]
[null,19,null,0]
[]
[null,null,"Were the incubation conditions and duration stated?",3,null,0,{"$f":"IF(F84=0,0,INDEX($D84:$D87,F84,1))","v":0}]
[null,20,null,1]
[null,null,null,0]
[null,null,null,null,null,null,null,null,{"$f":"(COUNTIF(F12:F87,\"=0\"))+COUNTIF(F2:F10,\"=0\")","v":32}]
[]
[]
[null,null,"Total Score",null,null,null,{"$f":"IF(SUM(G12:G84)=0,\"\",SUM(G12:G84))","v":""}]
[null,null,"Total Max. possible score for the various types of data and contaminants ",null,{"$f":"D12+D15+D18+D21+D23+D26+D29+D32+D35+D38+D41+D44+D47+D50+D54+D58+D62+D66+D70+D73+D77+D81+D84","v":102}]
[null,null,"Quality Score",null,{"$f":"\"= [Total score / Total possible score] * 100 = \"","v":"= [Total score / Total possible score] * 100 = "},null,{"$f":"IF(ISERROR(G90/E91),#N/A,G90/E91)","v":{"$error":"#N/A"}}]
[]
[null,null,"H = high quality                           Quality score >=80%      "]
[null,null,"A = acceptable quality         80%>Quality score>50%      "]
[null,null,"U = unacceptable quality              Quality score <=50%  "]
[]
[3,null,"CLICK \"Save&Update\" BUTTON TO SAVE ANSWER TO SAMPLE FINALISED ASSESSMENT SHEET"]

{"sheet":"Terrestrial Quality","index":18,"n_rows":5,"n_cols":26,"rows_kept":5,"cut":false,"hidden":false,"merged":[]}
[]
["Question No.",1,2,3,4,5,6,7,8,9,10,11,12,13,14,15.1,15.2,15.3,15.4,16,17,18,19,20,"Total Score","Quality Score"]
["Short Questions","duration of the exposure  ","biological endpoint","biological effect stated or not","biological effect qualified or not","appropriate controls","control & contaminant concentration","test acceptability criteria ","characteristics of the test organism"," type of test media"," contaminant concentrations "," parallel reference toxicant toxicity","concentration–response relationship"," statistical method or model to determine the toxicity","LC/EC/BEC data","pH","OM or OC content","Clay content","CEC","Temperature","Grade or purity","cations and or major soil elements measured or  interacting elements on bioavailability measured ","soils leached after spiking","incubation conditions and duration"]
["Marks Awarded","10 or 0","10,5 or 0","5 or 0 ","5 or 0 ","5 or 0 ","5 or 0 ","5 ,2 or 0 ","5 or 0 ","5 or 0 ","4 or 0","4 or 0","4 or 0","4 or 0","4 or 0","3,1,or 0","3,1,or 0","3,1,or 0","3,1,or 0","3 or 0","3 or 0","3 or 0","3 or 0","3 or 0"]
["Max. Possible Score",10,10,5,5,5,5,5,5,5,4,4,4,4,4,3,3,3,3,3,3,3,3,3,{"$f":"SUM(B5:X5)","v":102}]

{"sheet":"Sediment Data QA","index":19,"n_rows":103,"n_cols":25,"rows_kept":103,"cut":false,"hidden":false,"merged":[[72,7,75,7],[76,7,79,7],[52,7,54,7],[89,2,90,2],[68,2,71,2],[80,2,82,2],[72,2,75,2],[76,2,79,2],[80,7,82,7],[64,2,67,2],[64,7,67,7],[68,7,71,7],[60,2,63,2],[56,2,59,2],[91,2,92,2],[89,7,90,7],[91,7,92,7],[87,7,88,7],[83,7,86,7],[83,2,86,2],[40,2,42,2],[46,2,48,2],[49,2,51,2],[52,2,54,2],[43,2,45,2],[28,2,30,2],[22,7,24,7],[25,7,27,7],[31,2,33,2],[37,7,39,7],[34,2,36,2],[37,2,39,2],[11,2,13,2],[20,2,21,2],[22,2,24,2],[25,2,27,2],[14,2,16,2],[17,2,19,2],[3,4,7,4],[56,7,59,7],[60,7,63,7],[40,7,42,7],[43,7,45,7],[46,7,48,7],[11,7,13,7],[17,7,19,7],[49,7,51,7],[34,7,36,7],[14,7,16,7],[20,7,21,7],[28,7,30,7],[31,7,33,7]]}
[null,1,"FILL IN BLANKS BELOW,PICK OPTIONS FROM DROPDOWN LIST",null,null,null,null,null,null,null,"* All the text in Blue are used for drop down list ,make changes with caution."]
[null,null,"Category",null,"Sediment ",{"$f":"IF(M3=\"\",0,1)","v":0},"Citation No.",{"$f":"IF(ISERROR(FIND(\"-\",E3)),E3,LEFT(E3,FIND(\"-\",E3)-1))","v":0},null,null,"Species",null,null,"Lifestage",null,null,"Exposure duration",null,null,"Measure of toxicity",null,null,"Toxicity endpoint"]
[null,null,"Paper and data unique identifier(eg. 1-1,10-150)",null,null,{"$f":"IF(E3=\"\",0,1)","v":0},"Species (Scientific name)",null,null,null,"Australian Bass",0,{"$f":"IF(L3=0,\"\",INDEX(K3:K50,L3))","v":""},"Phase 1",0,{"$f":"IF(O3=0,\"\",INDEX(N3:N50,O3))","v":""},"1 hour ",0,{"$f":"IF(R3=0,\"\",INDEX(Q3:Q50,R3))","v":""},"Method 1",0,{"$f":"IF(U3=0,\"\",INDEX(T3:T50,U3))","v":""},0.01,0,{"$f":"IF(X3=0,\"\",INDEX(W3:W50,X3))","v":""}]
[null,null,"Citation",null,null,{"$f":"IF(E4=\"\",0,1)","v":0},"Lifestage",null,null,null,"Bala Shark",null,null,"Phase 10",null,null,"2 hours",null,null,"Method 10",null,null,0.02]
[null,null,null,null,null,{"$f":"IF(S3=\"\",0,1)","v":0},"Exposure duration",null,null,null,"Basa",null,null,"phase 14",null,null,"3 hours",null,null,"Method 2",null,null,0.03]
[null,null,null,null,null,{"$f":"IF(V3=\"\",0,1)","v":0},"Measure of toxicity",null,null,null,"Black Parinha",null,null,"Phase 2",null,null,"4 hours",null,null,"Method 3",null,null,0.04]
[null,null,null,null,null,{"$f":"IF(Y3=\"\",0,1)","v":0},"Toxicity endpoint",null,null,null,"Catfish",null,null,"Phase 3",null,null,"5 hours",null,null,"Method 4",null,null,0.05]
[null,null,null,null,null,{"$f":"IF(H8=\"\",0,1)","v":0},"Toxicity value",null,null,null,"Eel",null,null,"Phase 4",null,null,"6 hours",null,null,"Method 5",null,null,0.06]
[null,2,"CHOOSE ANSWER OPTIONS AND FILL IN ANSWERS IN ANSWER COLUMN",null,null,{"$f":"IF(M3=\"\",0,1)","v":0},null,null,null,null,"Lungfish",null,null,"Phase 5",null,null,"7 hours",null,null,"Method 6",null,null,7.0000000000000007E-2]
[null,"*","If had problem click on answer options,click on any  other cells first and then click back again",null,null,{"$f":"IF(P3=\"\",0,1)","v":0},null,null,null,null,"Murray Cod",null,null,"Phase 6",null,null,"8 hours",null,null,"Method 7",null,null,0.08]
[null,"No.","Question","Marks Awarded","Answer Options","Option References","Scores","Answers",null,null,"Nemo",null,null,"Phase 7 ",null,null,"9 hours",null,null,"Method 8",null,null,0.09]
[null,null,"Was the duration of the exposure stated (e.g., 48 or 96 h)?",10,null,0,{"$f":"IF(F15=0,0,INDEX($D12:$D13,F12,1))","v":0},null,null,null,"Redclaw",null,null,"Phase 8",null,null,null,null,null,null,null,null,0.1]
[null,1,null,0,null,null,null,null,null,null,"Sea Mullet",null,null,"Phase 9"]
[null,null,null,null,null,null,null,null,null,null,"SilverPerch"]
[null,null,"Was the biological endpoint (e.g., immobilization or population growth) stated and defined (10 marks)? Award 5 marks if the biological endpoint is only stated.",10,null,0,{"$f":"IF(F15=0,0,INDEX($D15:$D17,F15,1))","v":0},null,null,null,"Whale"]
[null,2,null,5]
[null,null,null,0]
[null,null,"Was the biological effect stated (e.g., LC or NOEC)?",5,null,0,{"$f":"IF(F18=0,0,INDEX($D18:$D19,F18,1))","v":0}]
[null,3,null,0]
[]
[null,4,"Was the biological effect quantified (e.g., 50% effect, 25% effect)? The effect for NOEC and LOEC data must be quantified.",5,null,0,{"$f":"IF(F21=0,0,INDEX($D21:$D22,F21,1))","v":0}]
[null,null,null,0]
[null,5,"Were appropriate controls (e.g., a no-toxicant control and/or solvent control) used?",5,null,0,{"$f":"IF(F23=0,0,INDEX($D23:$D24,F23,1))","v":0}]
[null,null,null,0]
[]
[null,6,"Was each control and contaminant concentration at least duplicated?",5,null,0,{"$f":"IF(F26=0,0,INDEX($D26:$D27,F26,1))","v":0}]
[null,null,null,0]
[]
[null,7,"Were test acceptability criteria stated (e.g., mortality in controls must not exceed a certain percentage) (5 marks)?\nOR\nWere test acceptability criteria inferred (e.g., test method used [USEPA, OECD, ASTM etc]) (award 2 marks). Note: Invalid data must no",5,null,0,{"$f":"IF(F29=0,0,INDEX($D29:$D31,F29,1))","v":0}]
[null,null,null,2]
[null,null,null,0]
[null,8,"Were the characteristics of the test organism (e.g., length, mass, age) stated?",5,null,0,{"$f":"IF(F32=0,0,INDEX($D32:$D34,F32,1))","v":0}]
[null,null,null,0]
[]
[null,9,"Was the type of test media used stated?",5,null,0,{"$f":"IF(F35=0,0,INDEX($D35:$D37,F35,1))","v":0}]
[null,null,null,0]
[]
[null,null,"Was the type of exposure (e.g. static, flow through) stated? ",4,null,0,{"$f":"IF(F38=0,0,INDEX($D38:$D40,F38,1))","v":0}]
[null,10,null,0]
[]
[null,null,"Were the contaminant concentrations measured?",4,null,0,{"$f":"IF(F41=0,0,INDEX($D41:$D43,F41,1))","v":0}]
[null,11,null,0]
[]
[null,null,"Were parallel reference toxicant toxicity tests conducted?",4,null,0,{"$f":"IF(F44=0,0,INDEX($D44:$D46,F44,1))","v":0}]
[null,12,null,0]
[]
[null,null,"Was there a concentration–response relationship either observable or stated",4,null,0,{"$f":"IF(F47=0,0,INDEX($D47:$D49,F47,1))","v":0}]
[null,13,null,0]
[]
[null,null,"Was an appropriate statistical method or model used to determine the toxicity?",4,null,0,{"$f":"IF(F50=0,0,INDEX($D50:$D52,F50,1))","v":0}]
[null,14,null,0]
[]
[null,15,"For LC/EC/BEC data values derived was an estimate of variability provided? (10/20 effects data desirable)\nOR If NO EC/LOEC data, was the significance level 0.05 or less?                                                 \n\n",4,null,0,{"$f":"IF(F53=0,0,INDEX($D53:$D55,F53,1))","v":0}]
[null,null,null,0]
[]
[null,16,"Were the following parameters measured and stated? (3 marks if measured and stated, 1 if just measured)"]
[null,null,"pH",3,null,0,{"$f":"IF(F57=0,0,INDEX($D57:$D59,F57,1))","v":0}]
[null,16.100000000000001,null,1]
[null,null,null,0]
[]
[null,null,"Particulate organic carbon (POC)",3,null,0,{"$f":"IF(F61=0,0,INDEX($D61:$D63,F61,1))","v":0}]
[null,16.2,null,1]
[null,null,null,0]
[]
[null,null,"Particle size (e.g. <63 µm or silt/clay)",3,null,0,{"$f":"IF(F65=0,0,INDEX($D65:$D67,F65,1))","v":0}]
[null,16.3,null,1]
[null,null,null,0]
[]
[null,null,"Acid-volatile sulfide (AVS) and 1-M HCl extractable metals",3,null,0,{"$f":"IF(F69=0,0,INDEX($D69:$D71,F69,1))","v":0}]
[null,16.399999999999999,null,1]
[null,null,null,0]
[]
[null,null,"Dissolved contaminants (e.g. metals) in porewater or overlying water",3,null,0,{"$f":"IF(F73=0,0,INDEX($D73:$D75,F73,1))","v":0}]
[null,16.5,null,1]
[null,null,null,0]
[]
[null,null,"Dissolved ammonia and sulfide in porewater or overlying water",3,null,0,{"$f":"IF(F77=0,0,INDEX($D77:$D79,F77,1))","v":0}]
[null,16.600000000000001,null,1]
[null,null,null,0]
[]
[null,null,"Was the temperature measured and stated?",3,null,0,{"$f":"IF(F81=0,0,INDEX($D81:$D83,F81,1))","v":0}]
[null,17,null,0]
[]
[null,null,"Was the grade or purity of the test contaminant stated?",3,null,0,{"$f":"IF(F84=0,0,INDEX($D84:$D85,F84,1))","v":0}]
[null,18,null,0]
[]
[]
[null,19,"Was the salinity/conductivity measured and stated?",3,null,0,{"$f":"IF(F88=0,0,INDEX($D88:$D89,F88,1))","v":0}]
[null,null,null,0]
[null,20,"Was the alkalinity, hardness, or concentrations of Ca and Mg measured in the overlying water?Were known interacting elements on bioavailability measured (e.g. Cl for Cd)?",3,null,0,{"$f":"IF(F90=0,0,INDEX($D90:$D91,F90,1))","v":0}]
[null,null,null,0]
[null,21,"For sediments spiked with metal salts were the equilibration conditions adequate?",3,null,0,{"$f":"IF(F92=0,0,INDEX($D92:$D93,F92,1))","v":0}]
[null,null,null,0,null,null,null,null,{"$f":"(COUNTIF(F12:F93,\"=0\"))+COUNTIF(F2:F10,\"=0\")","v":35}]
[]
[null,null,"Total score",null,null,null,{"$f":"IF(SUM(G12:G92)=0,\"\",SUM(G12:G92))","v":""}]
[null,null,"Total Max. possible score for the various types of data and contaminants ",null,{"$f":"D12+D15+D18+D21+D23+D26+D29+D32+D35+D38+D41+D44+D47+D50+D53+D57+D61+D65+D69+D73+D77+D81+D84+D88+D90+D92","v":112}]
[null,null,"Quality Score",null,{"$f":"\"= [Total score / Total possible score] * 100 = \"","v":"= [Total score / Total possible score] * 100 = "},null,{"$f":"IF(ISERROR(G95/E96),#N/A,G95/E96)","v":{"$error":"#N/A"}}]
[]
[null,null,"H = high quality                           Quality score >=80%      "]
[null,null,"A = acceptable quality         80%>Quality score>50%      "]
[null,null,"U = unacceptable quality              Quality score <=50%  "]
[]
[3,null,"CLICK \"Save&Update\" BUTTON TO SAVE ANSWER TO SAMPLE FINALISED ASSESSMENT SHEET"]

{"sheet":"Sediment Quality","index":20,"n_rows":5,"n_cols":29,"rows_kept":5,"cut":false,"hidden":false,"merged":[]}
[]
["Question No.",1,2,3,4,5,6,7,8,9,10,11,12,13,14,15,16.100000000000001,16.2,16.3,16.399999999999999,16.5,16.600000000000001,17,18,19,20,21,"Total Score","Quality Score"]
["Short Questions","duration of the exposure ","biological endpoint","biological effect stated ornot","biological effect quantified or not","appropriate controls","control & contaminant concentration","test acceptability criteria","characteristics of the test organism"," type of test media","type of exposure","contaminant concentrations","parallel reference toxicant toxicity tests","concentration–response relationship","determine the toxicity","LC/EC/BEC ","pH","POC","Particle size","AVS & 1-M HCl extractable metals","Dissolved contaminants","Dissolved ammonia and sulfide","Temperature","Grade or purity"," salinity/conductivity","alkalinity, hardness, or concentrations of Ca and Mg","equilibration conditions "]
["Marks Awarded","10 or 0","10,5 or 0","5 or 0 ","5 or 0 ","5 or 0 ","5 or 0 ","5 or 0 ","5 or 0 ","5 or 0 ","4 or 0","4 or 0","4 or 0","4 or 0","4 or 0","4 or 0","3,1,or 0","3,1,or 0","3,1,or 0","3,1,or 0","3,1,or 0","3,1,or 0","3 or 0","3 or 0","3 or 0","3 or 0"]
["Max. Possible Score",10,10,5,5,5,5,5,5,5,4,4,4,4,4,4,3,3,3,3,3,3,3,3,3,3,3,{"$f":"SUM(B5:AA5)","v":112}]

{"sheet":"Sheet2","index":21,"n_rows":0,"n_cols":0,"rows_kept":0,"cut":false,"hidden":false,"merged":[]}